Body Name,Date Paid,Transaction Number,Amount,Supplier Name,Supplier Type,Expense Area,Cost Centre Description,Expense Type
Cambridgeshire County Council,23-Apr-18,51300021769,-10843.57,PLUS ONE (SOUTH WEST) LTD,CARE ESTABLISHMENT,LAC Placements,Placements - Social Care,Agency Placements - Out of County
Cambridgeshire County Council,08-Apr-18,65300000135,-5305.17,ALDERWOOD LLA LTD,CARE ESTABLISHMENT,LD - Hunts Locality,LD - Huntigndonshire - Special Needs,Residential Care
Cambridgeshire County Council,15-Apr-18,65300003265,-5305.17,ALDERWOOD LLA LTD,CARE ESTABLISHMENT,LD - Hunts Locality,LD - Huntigndonshire - Special Needs,Residential Care
Cambridgeshire County Council,22-Apr-18,65300000956,-5305.17,ALDERWOOD LLA LTD,CARE ESTABLISHMENT,LD - Hunts Locality,LD - Huntigndonshire - Special Needs,Residential Care
Cambridgeshire County Council,29-Apr-18,65300002899,-5305.17,ALDERWOOD LLA LTD,CARE ESTABLISHMENT,LD - Hunts Locality,LD - Huntigndonshire - Special Needs,Residential Care
Cambridgeshire County Council,17-Apr-18,51300040366,-4655,BROOKDALE HEALTHCARE LIMITED#1,CARE ESTABLISHMENT,LD - Hunts Locality,LD - Huntigndonshire - Special Needs,Rehabilitation And Respite Care
Cambridgeshire County Council,17-Apr-18,51300040356,-4655,BROOKDALE HEALTHCARE LIMITED#1,CARE ESTABLISHMENT,LD - Hunts Locality,LD - Huntigndonshire - Special Needs,Rehabilitation And Respite Care
Cambridgeshire County Council,17-Apr-18,51300040362,-4655,BROOKDALE HEALTHCARE LIMITED#1,CARE ESTABLISHMENT,LD - Hunts Locality,LD - Huntigndonshire - Special Needs,Rehabilitation And Respite Care
Cambridgeshire County Council,17-Apr-18,51300040371,-4655,BROOKDALE HEALTHCARE LIMITED#1,CARE ESTABLISHMENT,LD - Hunts Locality,LD - Huntigndonshire - Special Needs,Rehabilitation And Respite Care
Cambridgeshire County Council,17-Apr-18,51300040368,-4655,BROOKDALE HEALTHCARE LIMITED#1,CARE ESTABLISHMENT,LD - Hunts Locality,LD - Huntigndonshire - Special Needs,Rehabilitation And Respite Care
Cambridgeshire County Council,17-Apr-18,51300040355,-4655,BROOKDALE HEALTHCARE LIMITED#1,CARE ESTABLISHMENT,LD - Hunts Locality,LD - Huntigndonshire - Special Needs,Rehabilitation And Respite Care
Cambridgeshire County Council,17-Apr-18,51300040364,-4655,BROOKDALE HEALTHCARE LIMITED#1,CARE ESTABLISHMENT,LD - Hunts Locality,LD - Huntigndonshire - Care,Rehabilitation And Respite Care
Cambridgeshire County Council,17-Apr-18,51300040363,-4655,BROOKDALE HEALTHCARE LIMITED#1,CARE ESTABLISHMENT,LD - Hunts Locality,LD - Huntigndonshire - Care,Rehabilitation And Respite Care
Cambridgeshire County Council,17-Apr-18,51300040361,-4655,BROOKDALE HEALTHCARE LIMITED#1,CARE ESTABLISHMENT,LD - Hunts Locality,LD - Huntigndonshire - Care,Rehabilitation And Respite Care
Cambridgeshire County Council,26-Apr-18,51300060497,-4655,BROOKDALE HEALTHCARE LIMITED#1,CARE ESTABLISHMENT,LD - Hunts Locality,LD - Huntigndonshire - Special Needs,Rehabilitation And Respite Care
Cambridgeshire County Council,26-Apr-18,51300078391,-4655,BROOKDALE HEALTHCARE LIMITED#1,CARE ESTABLISHMENT,LD - Hunts Locality,LD - Huntigndonshire - Special Needs,Rehabilitation And Respite Care
Cambridgeshire County Council,26-Apr-18,51300060491,-4655,BROOKDALE HEALTHCARE LIMITED#1,CARE ESTABLISHMENT,LD - Hunts Locality,LD - Huntigndonshire - Special Needs,Rehabilitation And Respite Care
Cambridgeshire County Council,26-Apr-18,51300078382,-4655,BROOKDALE HEALTHCARE LIMITED#1,CARE ESTABLISHMENT,LD - Hunts Locality,LD - Huntigndonshire - Special Needs,Rehabilitation And Respite Care
Cambridgeshire County Council,26-Apr-18,51300060501,-4655,BROOKDALE HEALTHCARE LIMITED#1,CARE ESTABLISHMENT,LD - Hunts Locality,LD - Huntigndonshire - Special Needs,Rehabilitation And Respite Care
Cambridgeshire County Council,26-Apr-18,51300078389,-4655,BROOKDALE HEALTHCARE LIMITED#1,CARE ESTABLISHMENT,LD - Hunts Locality,LD - Huntigndonshire - Special Needs,Rehabilitation And Respite Care
Cambridgeshire County Council,26-Apr-18,51300060489,-4655,BROOKDALE HEALTHCARE LIMITED#1,CARE ESTABLISHMENT,LD - Hunts Locality,LD - Huntigndonshire - Special Needs,Rehabilitation And Respite Care
Cambridgeshire County Council,26-Apr-18,51300060495,-4655,BROOKDALE HEALTHCARE LIMITED#1,CARE ESTABLISHMENT,LD - Hunts Locality,LD - Huntigndonshire - Special Needs,Rehabilitation And Respite Care
Cambridgeshire County Council,26-Apr-18,51300060487,-4655,BROOKDALE HEALTHCARE LIMITED#1,CARE ESTABLISHMENT,LD - Hunts Locality,LD - Huntigndonshire - Special Needs,Rehabilitation And Respite Care
Cambridgeshire County Council,26-Apr-18,51300060499,-4655,BROOKDALE HEALTHCARE LIMITED#1,CARE ESTABLISHMENT,LD - Hunts Locality,LD - Huntigndonshire - Special Needs,Rehabilitation And Respite Care
Cambridgeshire County Council,26-Apr-18,51300060504,-4655,BROOKDALE HEALTHCARE LIMITED#1,CARE ESTABLISHMENT,LD - Hunts Locality,LD - Huntigndonshire - Special Needs,Rehabilitation And Respite Care
Cambridgeshire County Council,26-Apr-18,51300060486,-4655,BROOKDALE HEALTHCARE LIMITED#1,CARE ESTABLISHMENT,LD - Hunts Locality,LD - Huntigndonshire - Special Needs,Rehabilitation And Respite Care
Cambridgeshire County Council,26-Apr-18,51300078379,-4655,BROOKDALE HEALTHCARE LIMITED#1,CARE ESTABLISHMENT,LD - Hunts Locality,LD - Huntigndonshire - Special Needs,Rehabilitation And Respite Care
Cambridgeshire County Council,26-Apr-18,51300078390,-4655,BROOKDALE HEALTHCARE LIMITED#1,CARE ESTABLISHMENT,LD - Hunts Locality,LD - Huntigndonshire - Care,Rehabilitation And Respite Care
Cambridgeshire County Council,26-Apr-18,51300078383,-4655,BROOKDALE HEALTHCARE LIMITED#1,CARE ESTABLISHMENT,LD - Hunts Locality,LD - Huntigndonshire - Care,Rehabilitation And Respite Care
Cambridgeshire County Council,26-Apr-18,51300078375,-4655,BROOKDALE HEALTHCARE LIMITED#1,CARE ESTABLISHMENT,LD - Hunts Locality,LD - Huntigndonshire - Care,Rehabilitation And Respite Care
Cambridgeshire County Council,26-Apr-18,51300078378,-4655,BROOKDALE HEALTHCARE LIMITED#1,CARE ESTABLISHMENT,LD - Hunts Locality,LD - Huntigndonshire - Care,Rehabilitation And Respite Care
Cambridgeshire County Council,26-Apr-18,51300078381,-4655,BROOKDALE HEALTHCARE LIMITED#1,CARE ESTABLISHMENT,LD - Hunts Locality,LD - Huntigndonshire - Care,Rehabilitation And Respite Care
Cambridgeshire County Council,22-Apr-18,65300004753,-3647.87,SENSE NATIONAL DEAF & BLIND,CARE ESTABLISHMENT,LD - Fenland Locality,LD - Fenland - Special Needs,Residential Care
Cambridgeshire County Council,29-Apr-18,65300000459,-3647.87,SENSE NATIONAL DEAF & BLIND,CARE ESTABLISHMENT,LD - Fenland Locality,LD - Fenland - Special Needs,Residential Care
Cambridgeshire County Council,17-Apr-18,51300040367,-3325,BROOKDALE HEALTHCARE LIMITED#1,CARE ESTABLISHMENT,LD - Hunts Locality,LD - Huntigndonshire - Care,Rehabilitation And Respite Care
Cambridgeshire County Council,26-Apr-18,51300060493,-3325,BROOKDALE HEALTHCARE LIMITED#1,CARE ESTABLISHMENT,LD - Hunts Locality,LD - Huntigndonshire - Special Needs,Rehabilitation And Respite Care
Cambridgeshire County Council,26-Apr-18,51300078388,-3325,BROOKDALE HEALTHCARE LIMITED#1,CARE ESTABLISHMENT,LD - Hunts Locality,LD - Huntigndonshire - Special Needs,Rehabilitation And Respite Care
Cambridgeshire County Council,01-Apr-18,65300000715,-3252.71,GRETTON HOMES,CARE ESTABLISHMENT,LD - South Locality,LD - South Cambs - Special Needs,Residential Care
Cambridgeshire County Council,15-Apr-18,65300003757,-3132.31,CONGREGATION OF THE DAUGHTERS OF THE CROSS OF LIEGE (ST ELIZABETHS CENTRE),CARE ESTABLISHMENT,LD - Hunts Locality,LD - Huntigndonshire - Special Needs,Residential Care
Cambridgeshire County Council,22-Apr-18,65300004453,-3132.31,CONGREGATION OF THE DAUGHTERS OF THE CROSS OF LIEGE (ST ELIZABETHS CENTRE),CARE ESTABLISHMENT,LD - Hunts Locality,LD - Huntigndonshire - Special Needs,Residential Care
Cambridgeshire County Council,29-Apr-18,65300000005,-3132.31,CONGREGATION OF THE DAUGHTERS OF THE CROSS OF LIEGE (ST ELIZABETHS CENTRE),CARE ESTABLISHMENT,LD - Hunts Locality,LD - Huntigndonshire - Special Needs,Residential Care
Cambridgeshire County Council,26-Apr-18,51300054719,-3039.92,THERA EAST ANGLIA#2,CARE ESTABLISHMENT,LD - East Locality,LD - East Cambs - Special Needs,Suppported Living
Cambridgeshire County Council,26-Apr-18,51300059370,-2990,THERA EAST ANGLIA#2,CARE ESTABLISHMENT,LD - East Locality,LD - East Cambs - Special Needs,Suppported Living
Cambridgeshire County Council,13-Apr-18,51300023978,-2977.44,DECOY FARM,CARE ESTABLISHMENT,LD - East Locality,LD - East Cambs - Special Needs,Residential Care
Cambridgeshire County Council,13-Apr-18,51300024084,-2977.44,DECOY FARM,CARE ESTABLISHMENT,LD - East Locality,LD - East Cambs - Special Needs,Residential Care
Cambridgeshire County Council,13-Apr-18,51300024007,-2977.44,DECOY FARM,CARE ESTABLISHMENT,LD - East Locality,LD - East Cambs - Special Needs,Residential Care
Cambridgeshire County Council,13-Apr-18,51300023986,-2977.44,DECOY FARM,CARE ESTABLISHMENT,LD - East Locality,LD - East Cambs - Special Needs,Residential Care
Cambridgeshire County Council,13-Apr-18,51300024060,-2977.44,DECOY FARM,CARE ESTABLISHMENT,LD - East Locality,LD - East Cambs - Special Needs,Residential Care
Cambridgeshire County Council,13-Apr-18,51300023983,-2977.44,DECOY FARM,CARE ESTABLISHMENT,LD - East Locality,LD - East Cambs - Special Needs,Residential Care
Cambridgeshire County Council,13-Apr-18,51300024004,-2977.44,DECOY FARM,CARE ESTABLISHMENT,LD - East Locality,LD - East Cambs - Special Needs,Residential Care
Cambridgeshire County Council,13-Apr-18,51300024064,-2977.44,DECOY FARM,CARE ESTABLISHMENT,LD - East Locality,LD - East Cambs - Special Needs,Residential Care
Cambridgeshire County Council,13-Apr-18,51300023853,-2977.44,DECOY FARM,CARE ESTABLISHMENT,LD - East Locality,LD - East Cambs - Special Needs,Residential Care
Cambridgeshire County Council,13-Apr-18,51300023971,-2977.44,DECOY FARM,CARE ESTABLISHMENT,LD - East Locality,LD - East Cambs - Special Needs,Residential Care
Cambridgeshire County Council,13-Apr-18,51300023926,-2977.44,DECOY FARM,CARE ESTABLISHMENT,LD - East Locality,LD - East Cambs - Special Needs,Residential Care
Cambridgeshire County Council,13-Apr-18,51300024071,-2977.44,DECOY FARM,CARE ESTABLISHMENT,LD - East Locality,LD - East Cambs - Special Needs,Residential Care
Cambridgeshire County Council,13-Apr-18,51300024104,-2977.44,DECOY FARM,CARE ESTABLISHMENT,LD - East Locality,LD - East Cambs - Special Needs,Residential Care
Cambridgeshire County Council,13-Apr-18,51300023841,-2977.44,DECOY FARM,CARE ESTABLISHMENT,LD - East Locality,LD - East Cambs - Special Needs,Residential Care
Cambridgeshire County Council,13-Apr-18,51300023913,-2977.44,DECOY FARM,CARE ESTABLISHMENT,LD - East Locality,LD - East Cambs - Special Needs,Residential Care
Cambridgeshire County Council,13-Apr-18,51300023862,-2977.44,DECOY FARM,CARE ESTABLISHMENT,LD - East Locality,LD - East Cambs - Special Needs,Residential Care
Cambridgeshire County Council,13-Apr-18,51300023965,-2977.44,DECOY FARM,CARE ESTABLISHMENT,LD - East Locality,LD - East Cambs - Special Needs,Residential Care
Cambridgeshire County Council,13-Apr-18,51300023984,-2977.44,DECOY FARM,CARE ESTABLISHMENT,LD - East Locality,LD - East Cambs - Special Needs,Residential Care
Cambridgeshire County Council,13-Apr-18,51300024043,-2977.44,DECOY FARM,CARE ESTABLISHMENT,LD - East Locality,LD - East Cambs - Special Needs,Residential Care
Cambridgeshire County Council,13-Apr-18,51300024099,-2977.44,DECOY FARM,CARE ESTABLISHMENT,LD - East Locality,LD - East Cambs - Special Needs,Residential Care
Cambridgeshire County Council,13-Apr-18,51300023868,-2977.44,DECOY FARM,CARE ESTABLISHMENT,LD - East Locality,LD - East Cambs - Special Needs,Residential Care
Cambridgeshire County Council,13-Apr-18,51300023848,-2977.44,DECOY FARM,CARE ESTABLISHMENT,LD - East Locality,LD - East Cambs - Special Needs,Residential Care
Cambridgeshire County Council,13-Apr-18,51300024010,-2977.44,DECOY FARM,CARE ESTABLISHMENT,LD - East Locality,LD - East Cambs - Special Needs,Residential Care
Cambridgeshire County Council,13-Apr-18,51300023927,-2977.44,DECOY FARM,CARE ESTABLISHMENT,LD - East Locality,LD - East Cambs - Special Needs,Residential Care
Cambridgeshire County Council,13-Apr-18,51300024087,-2977.44,DECOY FARM,CARE ESTABLISHMENT,LD - East Locality,LD - East Cambs - Special Needs,Residential Care
Cambridgeshire County Council,13-Apr-18,51300024063,-2977.44,DECOY FARM,CARE ESTABLISHMENT,LD - East Locality,LD - East Cambs - Special Needs,Residential Care
Cambridgeshire County Council,13-Apr-18,51300023990,-2977.44,DECOY FARM,CARE ESTABLISHMENT,LD - East Locality,LD - East Cambs - Special Needs,Residential Care
Cambridgeshire County Council,13-Apr-18,51300024091,-2977.44,DECOY FARM,CARE ESTABLISHMENT,LD - East Locality,LD - East Cambs - Special Needs,Residential Care
Cambridgeshire County Council,13-Apr-18,51300023975,-2977.44,DECOY FARM,CARE ESTABLISHMENT,LD - East Locality,LD - East Cambs - Special Needs,Residential Care
Cambridgeshire County Council,13-Apr-18,51300023884,-2977.44,DECOY FARM,CARE ESTABLISHMENT,LD - East Locality,LD - East Cambs - Special Needs,Residential Care
Cambridgeshire County Council,13-Apr-18,51300023968,-2977.44,DECOY FARM,CARE ESTABLISHMENT,LD - East Locality,LD - East Cambs - Special Needs,Residential Care
Cambridgeshire County Council,13-Apr-18,51300023891,-2977.44,DECOY FARM,CARE ESTABLISHMENT,LD - East Locality,LD - East Cambs - Special Needs,Residential Care
Cambridgeshire County Council,13-Apr-18,51300024085,-2977.44,DECOY FARM,CARE ESTABLISHMENT,LD - East Locality,LD - East Cambs - Special Needs,Residential Care
Cambridgeshire County Council,13-Apr-18,51300023951,-2977.44,DECOY FARM,CARE ESTABLISHMENT,LD - East Locality,LD - East Cambs - Special Needs,Residential Care
Cambridgeshire County Council,13-Apr-18,51300023919,-2977.44,DECOY FARM,CARE ESTABLISHMENT,LD - East Locality,LD - East Cambs - Special Needs,Residential Care
Cambridgeshire County Council,13-Apr-18,51300023871,-2977.44,DECOY FARM,CARE ESTABLISHMENT,LD - East Locality,LD - East Cambs - Special Needs,Residential Care
Cambridgeshire County Council,13-Apr-18,51300024094,-2977.44,DECOY FARM,CARE ESTABLISHMENT,LD - East Locality,LD - East Cambs - Special Needs,Residential Care
Cambridgeshire County Council,13-Apr-18,51300023887,-2977.44,DECOY FARM,CARE ESTABLISHMENT,LD - East Locality,LD - East Cambs - Special Needs,Residential Care
Cambridgeshire County Council,13-Apr-18,51300023925,-2977.44,DECOY FARM,CARE ESTABLISHMENT,LD - East Locality,LD - East Cambs - Special Needs,Residential Care
Cambridgeshire County Council,13-Apr-18,51300024011,-2977.44,DECOY FARM,CARE ESTABLISHMENT,LD - East Locality,LD - East Cambs - Special Needs,Residential Care
Cambridgeshire County Council,13-Apr-18,51300023893,-2977.44,DECOY FARM,CARE ESTABLISHMENT,LD - East Locality,LD - East Cambs - Special Needs,Residential Care
Cambridgeshire County Council,13-Apr-18,51300024100,-2977.44,DECOY FARM,CARE ESTABLISHMENT,LD - East Locality,LD - East Cambs - Special Needs,Residential Care
Cambridgeshire County Council,13-Apr-18,51300023873,-2977.44,DECOY FARM,CARE ESTABLISHMENT,LD - East Locality,LD - East Cambs - Special Needs,Residential Care
Cambridgeshire County Council,13-Apr-18,51300024046,-2977.44,DECOY FARM,CARE ESTABLISHMENT,LD - East Locality,LD - East Cambs - Special Needs,Residential Care
Cambridgeshire County Council,13-Apr-18,51300023961,-2977.44,DECOY FARM,CARE ESTABLISHMENT,LD - East Locality,LD - East Cambs - Special Needs,Residential Care
Cambridgeshire County Council,13-Apr-18,51300023976,-2977.44,DECOY FARM,CARE ESTABLISHMENT,LD - East Locality,LD - East Cambs - Special Needs,Residential Care
Cambridgeshire County Council,13-Apr-18,51300024061,-2977.44,DECOY FARM,CARE ESTABLISHMENT,LD - East Locality,LD - East Cambs - Special Needs,Residential Care
Cambridgeshire County Council,13-Apr-18,51300023999,-2977.44,DECOY FARM,CARE ESTABLISHMENT,LD - East Locality,LD - East Cambs - Special Needs,Residential Care
Cambridgeshire County Council,13-Apr-18,51300023899,-2977.44,DECOY FARM,CARE ESTABLISHMENT,LD - East Locality,LD - East Cambs - Special Needs,Residential Care
Cambridgeshire County Council,13-Apr-18,51300023993,-2977.44,DECOY FARM,CARE ESTABLISHMENT,LD - East Locality,LD - East Cambs - Special Needs,Residential Care
Cambridgeshire County Council,13-Apr-18,51300023892,-2977.44,DECOY FARM,CARE ESTABLISHMENT,LD - East Locality,LD - East Cambs - Special Needs,Residential Care
Cambridgeshire County Council,13-Apr-18,51300024098,-2977.44,DECOY FARM,CARE ESTABLISHMENT,LD - East Locality,LD - East Cambs - Special Needs,Residential Care
Cambridgeshire County Council,13-Apr-18,51300023981,-2977.44,DECOY FARM,CARE ESTABLISHMENT,LD - East Locality,LD - East Cambs - Special Needs,Residential Care
Cambridgeshire County Council,13-Apr-18,51300024103,-2977.44,DECOY FARM,CARE ESTABLISHMENT,LD - East Locality,LD - East Cambs - Special Needs,Residential Care
Cambridgeshire County Council,13-Apr-18,51300023840,-2977.44,DECOY FARM,CARE ESTABLISHMENT,LD - East Locality,LD - East Cambs - Special Needs,Residential Care
Cambridgeshire County Council,13-Apr-18,51300024065,-2977.44,DECOY FARM,CARE ESTABLISHMENT,LD - East Locality,LD - East Cambs - Special Needs,Residential Care
Cambridgeshire County Council,13-Apr-18,51300023881,-2977.44,DECOY FARM,CARE ESTABLISHMENT,LD - East Locality,LD - East Cambs - Special Needs,Residential Care
Cambridgeshire County Council,13-Apr-18,51300024003,-2977.44,DECOY FARM,CARE ESTABLISHMENT,LD - East Locality,LD - East Cambs - Special Needs,Residential Care
Cambridgeshire County Council,13-Apr-18,51300024017,-2977.44,DECOY FARM,CARE ESTABLISHMENT,LD - East Locality,LD - East Cambs - Special Needs,Residential Care
Cambridgeshire County Council,13-Apr-18,51300023878,-2977.44,DECOY FARM,CARE ESTABLISHMENT,LD - East Locality,LD - East Cambs - Special Needs,Residential Care
Cambridgeshire County Council,13-Apr-18,51300024055,-2977.44,DECOY FARM,CARE ESTABLISHMENT,LD - East Locality,LD - East Cambs - Special Needs,Residential Care
Cambridgeshire County Council,13-Apr-18,51300023985,-2977.44,DECOY FARM,CARE ESTABLISHMENT,LD - East Locality,LD - East Cambs - Special Needs,Residential Care
Cambridgeshire County Council,13-Apr-18,51300023989,-2977.44,DECOY FARM,CARE ESTABLISHMENT,LD - East Locality,LD - East Cambs - Special Needs,Residential Care
Cambridgeshire County Council,13-Apr-18,51300023907,-2977.44,DECOY FARM,CARE ESTABLISHMENT,LD - East Locality,LD - East Cambs - Special Needs,Residential Care
Cambridgeshire County Council,13-Apr-18,51300023900,-2977.44,DECOY FARM,CARE ESTABLISHMENT,LD - East Locality,LD - East Cambs - Special Needs,Residential Care
Cambridgeshire County Council,13-Apr-18,51300024075,-2977.44,DECOY FARM,CARE ESTABLISHMENT,LD - East Locality,LD - East Cambs - Special Needs,Residential Care
Cambridgeshire County Council,13-Apr-18,51300024049,-2977.44,DECOY FARM,CARE ESTABLISHMENT,LD - East Locality,LD - East Cambs - Special Needs,Residential Care
Cambridgeshire County Council,13-Apr-18,51300023889,-2977.44,DECOY FARM,CARE ESTABLISHMENT,LD - East Locality,LD - East Cambs - Special Needs,Residential Care
Cambridgeshire County Council,13-Apr-18,51300024034,-2977.44,DECOY FARM,CARE ESTABLISHMENT,LD - East Locality,LD - East Cambs - Special Needs,Residential Care
Cambridgeshire County Council,13-Apr-18,51300024095,-2977.44,DECOY FARM,CARE ESTABLISHMENT,LD - East Locality,LD - East Cambs - Special Needs,Residential Care
Cambridgeshire County Council,13-Apr-18,51300023980,-2977.44,DECOY FARM,CARE ESTABLISHMENT,LD - East Locality,LD - East Cambs - Special Needs,Residential Care
Cambridgeshire County Council,13-Apr-18,51300023883,-2977.44,DECOY FARM,CARE ESTABLISHMENT,LD - East Locality,LD - East Cambs - Special Needs,Residential Care
Cambridgeshire County Council,13-Apr-18,51300023960,-2977.44,DECOY FARM,CARE ESTABLISHMENT,LD - East Locality,LD - East Cambs - Special Needs,Residential Care
Cambridgeshire County Council,13-Apr-18,51300023969,-2977.44,DECOY FARM,CARE ESTABLISHMENT,LD - East Locality,LD - East Cambs - Special Needs,Residential Care
Cambridgeshire County Council,13-Apr-18,51300023880,-2977.44,DECOY FARM,CARE ESTABLISHMENT,LD - East Locality,LD - East Cambs - Special Needs,Residential Care
Cambridgeshire County Council,13-Apr-18,51300011859,-2977.44,DECOY FARM,CARE ESTABLISHMENT,Control Accounts,Control Accounts - Payables,Migration Only - Marked as Do Not Use
Cambridgeshire County Council,13-Apr-18,51300011897,-2977.44,DECOY FARM,CARE ESTABLISHMENT,Control Accounts,Control Accounts - Payables,Migration Only - Marked as Do Not Use
Cambridgeshire County Council,13-Apr-18,51300012051,-2977.44,DECOY FARM,CARE ESTABLISHMENT,Control Accounts,Control Accounts - Payables,Migration Only - Marked as Do Not Use
Cambridgeshire County Council,13-Apr-18,51300012071,-2977.44,DECOY FARM,CARE ESTABLISHMENT,Control Accounts,Control Accounts - Payables,Migration Only - Marked as Do Not Use
Cambridgeshire County Council,13-Apr-18,51300011835,-2977.44,DECOY FARM,CARE ESTABLISHMENT,Control Accounts,Control Accounts - Payables,Migration Only - Marked as Do Not Use
Cambridgeshire County Council,13-Apr-18,51300012021,-2977.44,DECOY FARM,CARE ESTABLISHMENT,Control Accounts,Control Accounts - Payables,Migration Only - Marked as Do Not Use
Cambridgeshire County Council,13-Apr-18,51300012005,-2977.44,DECOY FARM,CARE ESTABLISHMENT,Control Accounts,Control Accounts - Payables,Migration Only - Marked as Do Not Use
Cambridgeshire County Council,13-Apr-18,51300011923,-2977.44,DECOY FARM,CARE ESTABLISHMENT,Control Accounts,Control Accounts - Payables,Migration Only - Marked as Do Not Use
Cambridgeshire County Council,13-Apr-18,51300011839,-2977.44,DECOY FARM,CARE ESTABLISHMENT,Control Accounts,Control Accounts - Payables,Migration Only - Marked as Do Not Use
Cambridgeshire County Council,13-Apr-18,51300012007,-2977.44,DECOY FARM,CARE ESTABLISHMENT,Control Accounts,Control Accounts - Payables,Migration Only - Marked as Do Not Use
Cambridgeshire County Council,13-Apr-18,51300011907,-2977.44,DECOY FARM,CARE ESTABLISHMENT,Control Accounts,Control Accounts - Payables,Migration Only - Marked as Do Not Use
Cambridgeshire County Council,13-Apr-18,51300011969,-2977.44,DECOY FARM,CARE ESTABLISHMENT,Control Accounts,Control Accounts - Payables,Migration Only - Marked as Do Not Use
Cambridgeshire County Council,13-Apr-18,51300011989,-2977.44,DECOY FARM,CARE ESTABLISHMENT,Control Accounts,Control Accounts - Payables,Migration Only - Marked as Do Not Use
Cambridgeshire County Council,13-Apr-18,51300011937,-2977.44,DECOY FARM,CARE ESTABLISHMENT,Control Accounts,Control Accounts - Payables,Migration Only - Marked as Do Not Use
Cambridgeshire County Council,13-Apr-18,51300011843,-2977.44,DECOY FARM,CARE ESTABLISHMENT,Control Accounts,Control Accounts - Payables,Migration Only - Marked as Do Not Use
Cambridgeshire County Council,13-Apr-18,51300011853,-2977.44,DECOY FARM,CARE ESTABLISHMENT,Control Accounts,Control Accounts - Payables,Migration Only - Marked as Do Not Use
Cambridgeshire County Council,13-Apr-18,51300012043,-2977.44,DECOY FARM,CARE ESTABLISHMENT,Control Accounts,Control Accounts - Payables,Migration Only - Marked as Do Not Use
Cambridgeshire County Council,13-Apr-18,51300011905,-2977.44,DECOY FARM,CARE ESTABLISHMENT,Control Accounts,Control Accounts - Payables,Migration Only - Marked as Do Not Use
Cambridgeshire County Council,13-Apr-18,51300011875,-2977.44,DECOY FARM,CARE ESTABLISHMENT,Control Accounts,Control Accounts - Payables,Migration Only - Marked as Do Not Use
Cambridgeshire County Council,13-Apr-18,51300011975,-2977.44,DECOY FARM,CARE ESTABLISHMENT,Control Accounts,Control Accounts - Payables,Migration Only - Marked as Do Not Use
Cambridgeshire County Council,13-Apr-18,51300012073,-2977.44,DECOY FARM,CARE ESTABLISHMENT,Control Accounts,Control Accounts - Payables,Migration Only - Marked as Do Not Use
Cambridgeshire County Council,13-Apr-18,51300011957,-2977.44,DECOY FARM,CARE ESTABLISHMENT,Control Accounts,Control Accounts - Payables,Migration Only - Marked as Do Not Use
Cambridgeshire County Council,13-Apr-18,51300011951,-2977.44,DECOY FARM,CARE ESTABLISHMENT,Control Accounts,Control Accounts - Payables,Migration Only - Marked as Do Not Use
Cambridgeshire County Council,13-Apr-18,51300012067,-2977.44,DECOY FARM,CARE ESTABLISHMENT,Control Accounts,Control Accounts - Payables,Migration Only - Marked as Do Not Use
Cambridgeshire County Council,13-Apr-18,51300011983,-2977.44,DECOY FARM,CARE ESTABLISHMENT,Control Accounts,Control Accounts - Payables,Migration Only - Marked as Do Not Use
Cambridgeshire County Council,13-Apr-18,51300012013,-2977.44,DECOY FARM,CARE ESTABLISHMENT,Control Accounts,Control Accounts - Payables,Migration Only - Marked as Do Not Use
Cambridgeshire County Council,13-Apr-18,51300012035,-2977.44,DECOY FARM,CARE ESTABLISHMENT,Control Accounts,Control Accounts - Payables,Migration Only - Marked as Do Not Use
Cambridgeshire County Council,13-Apr-18,51300011883,-2977.44,DECOY FARM,CARE ESTABLISHMENT,Control Accounts,Control Accounts - Payables,Migration Only - Marked as Do Not Use
Cambridgeshire County Council,13-Apr-18,51300012045,-2977.44,DECOY FARM,CARE ESTABLISHMENT,Control Accounts,Control Accounts - Payables,Migration Only - Marked as Do Not Use
Cambridgeshire County Council,13-Apr-18,51300011899,-2977.44,DECOY FARM,CARE ESTABLISHMENT,Control Accounts,Control Accounts - Payables,Migration Only - Marked as Do Not Use
Cambridgeshire County Council,13-Apr-18,51300011913,-2977.44,DECOY FARM,CARE ESTABLISHMENT,Control Accounts,Control Accounts - Payables,Migration Only - Marked as Do Not Use
Cambridgeshire County Council,13-Apr-18,51300012031,-2977.44,DECOY FARM,CARE ESTABLISHMENT,Control Accounts,Control Accounts - Payables,Migration Only - Marked as Do Not Use
Cambridgeshire County Council,13-Apr-18,51300011987,-2977.44,DECOY FARM,CARE ESTABLISHMENT,Control Accounts,Control Accounts - Payables,Migration Only - Marked as Do Not Use
Cambridgeshire County Council,13-Apr-18,51300012017,-2977.44,DECOY FARM,CARE ESTABLISHMENT,Control Accounts,Control Accounts - Payables,Migration Only - Marked as Do Not Use
Cambridgeshire County Council,13-Apr-18,51300011871,-2977.44,DECOY FARM,CARE ESTABLISHMENT,Control Accounts,Control Accounts - Payables,Migration Only - Marked as Do Not Use
Cambridgeshire County Council,13-Apr-18,51300011903,-2977.44,DECOY FARM,CARE ESTABLISHMENT,Control Accounts,Control Accounts - Payables,Migration Only - Marked as Do Not Use
Cambridgeshire County Council,13-Apr-18,51300012049,-2977.44,DECOY FARM,CARE ESTABLISHMENT,Control Accounts,Control Accounts - Payables,Migration Only - Marked as Do Not Use
Cambridgeshire County Council,13-Apr-18,51300011981,-2977.44,DECOY FARM,CARE ESTABLISHMENT,Control Accounts,Control Accounts - Payables,Migration Only - Marked as Do Not Use
Cambridgeshire County Council,13-Apr-18,51300012065,-2977.44,DECOY FARM,CARE ESTABLISHMENT,Control Accounts,Control Accounts - Payables,Migration Only - Marked as Do Not Use
Cambridgeshire County Council,13-Apr-18,51300012069,-2977.44,DECOY FARM,CARE ESTABLISHMENT,Control Accounts,Control Accounts - Payables,Migration Only - Marked as Do Not Use
Cambridgeshire County Council,13-Apr-18,51300011919,-2977.44,DECOY FARM,CARE ESTABLISHMENT,Control Accounts,Control Accounts - Payables,Migration Only - Marked as Do Not Use
Cambridgeshire County Council,13-Apr-18,51300011985,-2977.44,DECOY FARM,CARE ESTABLISHMENT,Control Accounts,Control Accounts - Payables,Migration Only - Marked as Do Not Use
Cambridgeshire County Council,13-Apr-18,51300012063,-2977.44,DECOY FARM,CARE ESTABLISHMENT,Control Accounts,Control Accounts - Payables,Migration Only - Marked as Do Not Use
Cambridgeshire County Council,13-Apr-18,51300011963,-2977.44,DECOY FARM,CARE ESTABLISHMENT,Control Accounts,Control Accounts - Payables,Migration Only - Marked as Do Not Use
Cambridgeshire County Council,13-Apr-18,51300011925,-2977.44,DECOY FARM,CARE ESTABLISHMENT,Control Accounts,Control Accounts - Payables,Migration Only - Marked as Do Not Use
Cambridgeshire County Council,13-Apr-18,51300011845,-2977.44,DECOY FARM,CARE ESTABLISHMENT,Control Accounts,Control Accounts - Payables,Migration Only - Marked as Do Not Use
Cambridgeshire County Council,13-Apr-18,51300012061,-2977.44,DECOY FARM,CARE ESTABLISHMENT,Control Accounts,Control Accounts - Payables,Migration Only - Marked as Do Not Use
Cambridgeshire County Council,13-Apr-18,51300011961,-2977.44,DECOY FARM,CARE ESTABLISHMENT,Control Accounts,Control Accounts - Payables,Migration Only - Marked as Do Not Use
Cambridgeshire County Council,13-Apr-18,51300011877,-2977.44,DECOY FARM,CARE ESTABLISHMENT,Control Accounts,Control Accounts - Payables,Migration Only - Marked as Do Not Use
Cambridgeshire County Council,13-Apr-18,51300011927,-2977.44,DECOY FARM,CARE ESTABLISHMENT,Control Accounts,Control Accounts - Payables,Migration Only - Marked as Do Not Use
Cambridgeshire County Council,13-Apr-18,51300012011,-2977.44,DECOY FARM,CARE ESTABLISHMENT,Control Accounts,Control Accounts - Payables,Migration Only - Marked as Do Not Use
Cambridgeshire County Council,13-Apr-18,51300011847,-2977.44,DECOY FARM,CARE ESTABLISHMENT,Control Accounts,Control Accounts - Payables,Migration Only - Marked as Do Not Use
Cambridgeshire County Council,13-Apr-18,51300011863,-2977.44,DECOY FARM,CARE ESTABLISHMENT,Control Accounts,Control Accounts - Payables,Migration Only - Marked as Do Not Use
Cambridgeshire County Council,13-Apr-18,51300012025,-2977.44,DECOY FARM,CARE ESTABLISHMENT,Control Accounts,Control Accounts - Payables,Migration Only - Marked as Do Not Use
Cambridgeshire County Council,13-Apr-18,51300012041,-2977.44,DECOY FARM,CARE ESTABLISHMENT,Control Accounts,Control Accounts - Payables,Migration Only - Marked as Do Not Use
Cambridgeshire County Council,13-Apr-18,51300011833,-2977.44,DECOY FARM,CARE ESTABLISHMENT,Control Accounts,Control Accounts - Payables,Migration Only - Marked as Do Not Use
Cambridgeshire County Council,13-Apr-18,51300011955,-2977.44,DECOY FARM,CARE ESTABLISHMENT,Control Accounts,Control Accounts - Payables,Migration Only - Marked as Do Not Use
Cambridgeshire County Council,13-Apr-18,51300011881,-2977.44,DECOY FARM,CARE ESTABLISHMENT,Control Accounts,Control Accounts - Payables,Migration Only - Marked as Do Not Use
Cambridgeshire County Council,13-Apr-18,51300012055,-2977.44,DECOY FARM,CARE ESTABLISHMENT,Control Accounts,Control Accounts - Payables,Migration Only - Marked as Do Not Use
Cambridgeshire County Council,13-Apr-18,51300011901,-2977.44,DECOY FARM,CARE ESTABLISHMENT,Control Accounts,Control Accounts - Payables,Migration Only - Marked as Do Not Use
Cambridgeshire County Council,13-Apr-18,51300011851,-2977.44,DECOY FARM,CARE ESTABLISHMENT,Control Accounts,Control Accounts - Payables,Migration Only - Marked as Do Not Use
Cambridgeshire County Council,13-Apr-18,51300011965,-2977.44,DECOY FARM,CARE ESTABLISHMENT,Control Accounts,Control Accounts - Payables,Migration Only - Marked as Do Not Use
Cambridgeshire County Council,13-Apr-18,51300011993,-2977.44,DECOY FARM,CARE ESTABLISHMENT,Control Accounts,Control Accounts - Payables,Migration Only - Marked as Do Not Use
Cambridgeshire County Council,13-Apr-18,51300011857,-2977.44,DECOY FARM,CARE ESTABLISHMENT,Control Accounts,Control Accounts - Payables,Migration Only - Marked as Do Not Use
Cambridgeshire County Council,13-Apr-18,51300011895,-2977.44,DECOY FARM,CARE ESTABLISHMENT,Control Accounts,Control Accounts - Payables,Migration Only - Marked as Do Not Use
Cambridgeshire County Council,13-Apr-18,51300011867,-2977.44,DECOY FARM,CARE ESTABLISHMENT,Control Accounts,Control Accounts - Payables,Migration Only - Marked as Do Not Use
Cambridgeshire County Council,13-Apr-18,51300011953,-2977.44,DECOY FARM,CARE ESTABLISHMENT,Control Accounts,Control Accounts - Payables,Migration Only - Marked as Do Not Use
Cambridgeshire County Council,13-Apr-18,51300012059,-2977.44,DECOY FARM,CARE ESTABLISHMENT,Control Accounts,Control Accounts - Payables,Migration Only - Marked as Do Not Use
Cambridgeshire County Council,13-Apr-18,51300012033,-2977.44,DECOY FARM,CARE ESTABLISHMENT,Control Accounts,Control Accounts - Payables,Migration Only - Marked as Do Not Use
Cambridgeshire County Council,13-Apr-18,51300011943,-2977.44,DECOY FARM,CARE ESTABLISHMENT,Control Accounts,Control Accounts - Payables,Migration Only - Marked as Do Not Use
Cambridgeshire County Council,13-Apr-18,51300012009,-2977.44,DECOY FARM,CARE ESTABLISHMENT,Control Accounts,Control Accounts - Payables,Migration Only - Marked as Do Not Use
Cambridgeshire County Council,13-Apr-18,51300011929,-2977.44,DECOY FARM,CARE ESTABLISHMENT,Control Accounts,Control Accounts - Payables,Migration Only - Marked as Do Not Use
Cambridgeshire County Council,13-Apr-18,51300012083,-2977.44,DECOY FARM,CARE ESTABLISHMENT,Control Accounts,Control Accounts - Payables,Migration Only - Marked as Do Not Use
Cambridgeshire County Council,13-Apr-18,51300011869,-2977.44,DECOY FARM,CARE ESTABLISHMENT,Control Accounts,Control Accounts - Payables,Migration Only - Marked as Do Not Use
Cambridgeshire County Council,13-Apr-18,51300012023,-2977.44,DECOY FARM,CARE ESTABLISHMENT,Control Accounts,Control Accounts - Payables,Migration Only - Marked as Do Not Use
Cambridgeshire County Council,13-Apr-18,51300012053,-2977.44,DECOY FARM,CARE ESTABLISHMENT,Control Accounts,Control Accounts - Payables,Migration Only - Marked as Do Not Use
Cambridgeshire County Council,13-Apr-18,51300011891,-2977.44,DECOY FARM,CARE ESTABLISHMENT,Control Accounts,Control Accounts - Payables,Migration Only - Marked as Do Not Use
Cambridgeshire County Council,13-Apr-18,51300011837,-2977.44,DECOY FARM,CARE ESTABLISHMENT,Control Accounts,Control Accounts - Payables,Migration Only - Marked as Do Not Use
Cambridgeshire County Council,13-Apr-18,51300011991,-2977.44,DECOY FARM,CARE ESTABLISHMENT,Control Accounts,Control Accounts - Payables,Migration Only - Marked as Do Not Use
Cambridgeshire County Council,13-Apr-18,51300012029,-2977.44,DECOY FARM,CARE ESTABLISHMENT,Control Accounts,Control Accounts - Payables,Migration Only - Marked as Do Not Use
Cambridgeshire County Council,13-Apr-18,51300011831,-2977.44,DECOY FARM,CARE ESTABLISHMENT,Control Accounts,Control Accounts - Payables,Migration Only - Marked as Do Not Use
Cambridgeshire County Council,13-Apr-18,51300011967,-2977.44,DECOY FARM,CARE ESTABLISHMENT,Control Accounts,Control Accounts - Payables,Migration Only - Marked as Do Not Use
Cambridgeshire County Council,13-Apr-18,51300012077,-2977.44,DECOY FARM,CARE ESTABLISHMENT,Control Accounts,Control Accounts - Payables,Migration Only - Marked as Do Not Use
Cambridgeshire County Council,13-Apr-18,51300011979,-2977.44,DECOY FARM,CARE ESTABLISHMENT,Control Accounts,Control Accounts - Payables,Migration Only - Marked as Do Not Use
Cambridgeshire County Council,13-Apr-18,51300012003,-2977.44,DECOY FARM,CARE ESTABLISHMENT,Control Accounts,Control Accounts - Payables,Migration Only - Marked as Do Not Use
Cambridgeshire County Council,13-Apr-18,51300011849,-2977.44,DECOY FARM,CARE ESTABLISHMENT,Control Accounts,Control Accounts - Payables,Migration Only - Marked as Do Not Use
Cambridgeshire County Council,13-Apr-18,51300012081,-2977.44,DECOY FARM,CARE ESTABLISHMENT,Control Accounts,Control Accounts - Payables,Migration Only - Marked as Do Not Use
Cambridgeshire County Council,13-Apr-18,51300011949,-2977.44,DECOY FARM,CARE ESTABLISHMENT,Control Accounts,Control Accounts - Payables,Migration Only - Marked as Do Not Use
Cambridgeshire County Council,13-Apr-18,51300011945,-2977.44,DECOY FARM,CARE ESTABLISHMENT,Control Accounts,Control Accounts - Payables,Migration Only - Marked as Do Not Use
Cambridgeshire County Council,13-Apr-18,51300011893,-2977.44,DECOY FARM,CARE ESTABLISHMENT,Control Accounts,Control Accounts - Payables,Migration Only - Marked as Do Not Use
Cambridgeshire County Council,13-Apr-18,51300011873,-2977.44,DECOY FARM,CARE ESTABLISHMENT,Control Accounts,Control Accounts - Payables,Migration Only - Marked as Do Not Use
Cambridgeshire County Council,13-Apr-18,51300012079,-2977.44,DECOY FARM,CARE ESTABLISHMENT,Control Accounts,Control Accounts - Payables,Migration Only - Marked as Do Not Use
Cambridgeshire County Council,13-Apr-18,51300011973,-2977.44,DECOY FARM,CARE ESTABLISHMENT,Control Accounts,Control Accounts - Payables,Migration Only - Marked as Do Not Use
Cambridgeshire County Council,13-Apr-18,51300012027,-2977.44,DECOY FARM,CARE ESTABLISHMENT,Control Accounts,Control Accounts - Payables,Migration Only - Marked as Do Not Use
Cambridgeshire County Council,13-Apr-18,51300011999,-2977.44,DECOY FARM,CARE ESTABLISHMENT,Control Accounts,Control Accounts - Payables,Migration Only - Marked as Do Not Use
Cambridgeshire County Council,13-Apr-18,51300011971,-2977.44,DECOY FARM,CARE ESTABLISHMENT,Control Accounts,Control Accounts - Payables,Migration Only - Marked as Do Not Use
Cambridgeshire County Council,13-Apr-18,51300011889,-2977.44,DECOY FARM,CARE ESTABLISHMENT,Control Accounts,Control Accounts - Payables,Migration Only - Marked as Do Not Use
Cambridgeshire County Council,13-Apr-18,51300012075,-2977.44,DECOY FARM,CARE ESTABLISHMENT,Control Accounts,Control Accounts - Payables,Migration Only - Marked as Do Not Use
Cambridgeshire County Council,13-Apr-18,51300011887,-2977.44,DECOY FARM,CARE ESTABLISHMENT,Control Accounts,Control Accounts - Payables,Migration Only - Marked as Do Not Use
Cambridgeshire County Council,13-Apr-18,51300011947,-2977.44,DECOY FARM,CARE ESTABLISHMENT,Control Accounts,Control Accounts - Payables,Migration Only - Marked as Do Not Use
Cambridgeshire County Council,13-Apr-18,51300011841,-2977.44,DECOY FARM,CARE ESTABLISHMENT,Control Accounts,Control Accounts - Payables,Migration Only - Marked as Do Not Use
Cambridgeshire County Council,13-Apr-18,51300012015,-2977.44,DECOY FARM,CARE ESTABLISHMENT,Control Accounts,Control Accounts - Payables,Migration Only - Marked as Do Not Use
Cambridgeshire County Council,13-Apr-18,51300011911,-2977.44,DECOY FARM,CARE ESTABLISHMENT,Control Accounts,Control Accounts - Payables,Migration Only - Marked as Do Not Use
Cambridgeshire County Council,13-Apr-18,51300011941,-2977.44,DECOY FARM,CARE ESTABLISHMENT,Control Accounts,Control Accounts - Payables,Migration Only - Marked as Do Not Use
Cambridgeshire County Council,13-Apr-18,51300012057,-2977.44,DECOY FARM,CARE ESTABLISHMENT,Control Accounts,Control Accounts - Payables,Migration Only - Marked as Do Not Use
Cambridgeshire County Council,13-Apr-18,51300011997,-2977.44,DECOY FARM,CARE ESTABLISHMENT,Control Accounts,Control Accounts - Payables,Migration Only - Marked as Do Not Use
Cambridgeshire County Council,13-Apr-18,51300011917,-2977.44,DECOY FARM,CARE ESTABLISHMENT,Control Accounts,Control Accounts - Payables,Migration Only - Marked as Do Not Use
Cambridgeshire County Council,13-Apr-18,51300011921,-2977.44,DECOY FARM,CARE ESTABLISHMENT,Control Accounts,Control Accounts - Payables,Migration Only - Marked as Do Not Use
Cambridgeshire County Council,13-Apr-18,51300011977,-2977.44,DECOY FARM,CARE ESTABLISHMENT,Control Accounts,Control Accounts - Payables,Migration Only - Marked as Do Not Use
Cambridgeshire County Council,13-Apr-18,51300012047,-2977.44,DECOY FARM,CARE ESTABLISHMENT,Control Accounts,Control Accounts - Payables,Migration Only - Marked as Do Not Use
Cambridgeshire County Council,13-Apr-18,51300011879,-2977.44,DECOY FARM,CARE ESTABLISHMENT,Control Accounts,Control Accounts - Payables,Migration Only - Marked as Do Not Use
Cambridgeshire County Council,13-Apr-18,51300011915,-2977.44,DECOY FARM,CARE ESTABLISHMENT,Control Accounts,Control Accounts - Payables,Migration Only - Marked as Do Not Use
Cambridgeshire County Council,13-Apr-18,51300011861,-2977.44,DECOY FARM,CARE ESTABLISHMENT,Control Accounts,Control Accounts - Payables,Migration Only - Marked as Do Not Use
Cambridgeshire County Council,13-Apr-18,51300011909,-2977.44,DECOY FARM,CARE ESTABLISHMENT,Control Accounts,Control Accounts - Payables,Migration Only - Marked as Do Not Use
Cambridgeshire County Council,13-Apr-18,51300012001,-2977.44,DECOY FARM,CARE ESTABLISHMENT,Control Accounts,Control Accounts - Payables,Migration Only - Marked as Do Not Use
Cambridgeshire County Council,13-Apr-18,51300011995,-2977.44,DECOY FARM,CARE ESTABLISHMENT,Control Accounts,Control Accounts - Payables,Migration Only - Marked as Do Not Use
Cambridgeshire County Council,13-Apr-18,51300011855,-2977.44,DECOY FARM,CARE ESTABLISHMENT,Control Accounts,Control Accounts - Payables,Migration Only - Marked as Do Not Use
Cambridgeshire County Council,13-Apr-18,51300011959,-2977.44,DECOY FARM,CARE ESTABLISHMENT,Control Accounts,Control Accounts - Payables,Migration Only - Marked as Do Not Use
Cambridgeshire County Council,13-Apr-18,51300011935,-2977.44,DECOY FARM,CARE ESTABLISHMENT,Control Accounts,Control Accounts - Payables,Migration Only - Marked as Do Not Use
Cambridgeshire County Council,13-Apr-18,51300011865,-2977.44,DECOY FARM,CARE ESTABLISHMENT,Control Accounts,Control Accounts - Payables,Migration Only - Marked as Do Not Use
Cambridgeshire County Council,13-Apr-18,51300011885,-2977.44,DECOY FARM,CARE ESTABLISHMENT,Control Accounts,Control Accounts - Payables,Migration Only - Marked as Do Not Use
Cambridgeshire County Council,13-Apr-18,51300012019,-2977.44,DECOY FARM,CARE ESTABLISHMENT,Control Accounts,Control Accounts - Payables,Migration Only - Marked as Do Not Use
Cambridgeshire County Council,13-Apr-18,51300011939,-2977.44,DECOY FARM,CARE ESTABLISHMENT,Control Accounts,Control Accounts - Payables,Migration Only - Marked as Do Not Use
Cambridgeshire County Council,13-Apr-18,51300023898,-2977.44,DECOY FARM,CARE ESTABLISHMENT,LD - East Locality,LD - East Cambs - Special Needs,Residential Care
Cambridgeshire County Council,13-Apr-18,51300023922,-2977.44,DECOY FARM,CARE ESTABLISHMENT,LD - East Locality,LD - East Cambs - Special Needs,Residential Care
Cambridgeshire County Council,13-Apr-18,51300024022,-2977.44,DECOY FARM,CARE ESTABLISHMENT,LD - East Locality,LD - East Cambs - Special Needs,Residential Care
Cambridgeshire County Council,13-Apr-18,51300024069,-2977.44,DECOY FARM,CARE ESTABLISHMENT,LD - East Locality,LD - East Cambs - Special Needs,Residential Care
Cambridgeshire County Council,13-Apr-18,51300024012,-2977.44,DECOY FARM,CARE ESTABLISHMENT,LD - East Locality,LD - East Cambs - Special Needs,Residential Care
Cambridgeshire County Council,13-Apr-18,51300023852,-2977.44,DECOY FARM,CARE ESTABLISHMENT,LD - East Locality,LD - East Cambs - Special Needs,Residential Care
Cambridgeshire County Council,13-Apr-18,51300024066,-2977.44,DECOY FARM,CARE ESTABLISHMENT,LD - East Locality,LD - East Cambs - Special Needs,Residential Care
Cambridgeshire County Council,13-Apr-18,51300023921,-2977.44,DECOY FARM,CARE ESTABLISHMENT,LD - East Locality,LD - East Cambs - Special Needs,Residential Care
Cambridgeshire County Council,13-Apr-18,51300024051,-2977.44,DECOY FARM,CARE ESTABLISHMENT,LD - East Locality,LD - East Cambs - Special Needs,Residential Care
Cambridgeshire County Council,13-Apr-18,51300023894,-2977.44,DECOY FARM,CARE ESTABLISHMENT,LD - East Locality,LD - East Cambs - Special Needs,Residential Care
Cambridgeshire County Council,13-Apr-18,51300023995,-2977.44,DECOY FARM,CARE ESTABLISHMENT,LD - East Locality,LD - East Cambs - Special Needs,Residential Care
Cambridgeshire County Council,13-Apr-18,51300024044,-2977.44,DECOY FARM,CARE ESTABLISHMENT,LD - East Locality,LD - East Cambs - Special Needs,Residential Care
Cambridgeshire County Council,13-Apr-18,51300024101,-2977.44,DECOY FARM,CARE ESTABLISHMENT,LD - East Locality,LD - East Cambs - Special Needs,Residential Care
Cambridgeshire County Council,13-Apr-18,51300024062,-2977.44,DECOY FARM,CARE ESTABLISHMENT,LD - East Locality,LD - East Cambs - Special Needs,Residential Care
Cambridgeshire County Council,13-Apr-18,51300024019,-2977.44,DECOY FARM,CARE ESTABLISHMENT,LD - East Locality,LD - East Cambs - Special Needs,Residential Care
Cambridgeshire County Council,13-Apr-18,51300023906,-2977.44,DECOY FARM,CARE ESTABLISHMENT,LD - East Locality,LD - East Cambs - Special Needs,Residential Care
Cambridgeshire County Council,13-Apr-18,51300024077,-2977.44,DECOY FARM,CARE ESTABLISHMENT,LD - East Locality,LD - East Cambs - Special Needs,Residential Care
Cambridgeshire County Council,13-Apr-18,51300024068,-2977.44,DECOY FARM,CARE ESTABLISHMENT,LD - East Locality,LD - East Cambs - Special Needs,Residential Care
Cambridgeshire County Council,13-Apr-18,51300024081,-2977.44,DECOY FARM,CARE ESTABLISHMENT,LD - East Locality,LD - East Cambs - Special Needs,Residential Care
Cambridgeshire County Council,13-Apr-18,51300024015,-2977.44,DECOY FARM,CARE ESTABLISHMENT,LD - East Locality,LD - East Cambs - Special Needs,Residential Care
Cambridgeshire County Council,13-Apr-18,51300023954,-2977.44,DECOY FARM,CARE ESTABLISHMENT,LD - East Locality,LD - East Cambs - Special Needs,Residential Care
Cambridgeshire County Council,13-Apr-18,51300023874,-2977.44,DECOY FARM,CARE ESTABLISHMENT,LD - East Locality,LD - East Cambs - Special Needs,Residential Care
Cambridgeshire County Council,13-Apr-18,51300023991,-2977.44,DECOY FARM,CARE ESTABLISHMENT,LD - East Locality,LD - East Cambs - Special Needs,Residential Care
Cambridgeshire County Council,13-Apr-18,51300023959,-2977.44,DECOY FARM,CARE ESTABLISHMENT,LD - East Locality,LD - East Cambs - Special Needs,Residential Care
Cambridgeshire County Council,13-Apr-18,51300023936,-2977.44,DECOY FARM,CARE ESTABLISHMENT,LD - East Locality,LD - East Cambs - Special Needs,Residential Care
Cambridgeshire County Council,13-Apr-18,51300023939,-2977.44,DECOY FARM,CARE ESTABLISHMENT,LD - East Locality,LD - East Cambs - Special Needs,Residential Care
Cambridgeshire County Council,13-Apr-18,51300024023,-2977.44,DECOY FARM,CARE ESTABLISHMENT,LD - East Locality,LD - East Cambs - Special Needs,Residential Care
Cambridgeshire County Council,13-Apr-18,51300023875,-2977.44,DECOY FARM,CARE ESTABLISHMENT,LD - East Locality,LD - East Cambs - Special Needs,Residential Care
Cambridgeshire County Council,13-Apr-18,51300023839,-2977.44,DECOY FARM,CARE ESTABLISHMENT,LD - East Locality,LD - East Cambs - Special Needs,Residential Care
Cambridgeshire County Council,13-Apr-18,51300023916,-2977.44,DECOY FARM,CARE ESTABLISHMENT,LD - East Locality,LD - East Cambs - Special Needs,Residential Care
Cambridgeshire County Council,13-Apr-18,51300023901,-2977.44,DECOY FARM,CARE ESTABLISHMENT,LD - East Locality,LD - East Cambs - Special Needs,Residential Care
Cambridgeshire County Council,13-Apr-18,51300024089,-2977.44,DECOY FARM,CARE ESTABLISHMENT,LD - East Locality,LD - East Cambs - Special Needs,Residential Care
Cambridgeshire County Council,13-Apr-18,51300023895,-2977.44,DECOY FARM,CARE ESTABLISHMENT,LD - East Locality,LD - East Cambs - Special Needs,Residential Care
Cambridgeshire County Council,13-Apr-18,51300023934,-2977.44,DECOY FARM,CARE ESTABLISHMENT,LD - East Locality,LD - East Cambs - Special Needs,Residential Care
Cambridgeshire County Council,13-Apr-18,51300023966,-2977.44,DECOY FARM,CARE ESTABLISHMENT,LD - East Locality,LD - East Cambs - Special Needs,Residential Care
Cambridgeshire County Council,13-Apr-18,51300023973,-2977.44,DECOY FARM,CARE ESTABLISHMENT,LD - East Locality,LD - East Cambs - Special Needs,Residential Care
Cambridgeshire County Council,13-Apr-18,51300024050,-2977.44,DECOY FARM,CARE ESTABLISHMENT,LD - East Locality,LD - East Cambs - Special Needs,Residential Care
Cambridgeshire County Council,13-Apr-18,51300023911,-2977.44,DECOY FARM,CARE ESTABLISHMENT,LD - East Locality,LD - East Cambs - Special Needs,Residential Care
Cambridgeshire County Council,13-Apr-18,51300023957,-2977.44,DECOY FARM,CARE ESTABLISHMENT,LD - East Locality,LD - East Cambs - Special Needs,Residential Care
Cambridgeshire County Council,13-Apr-18,51300023967,-2977.44,DECOY FARM,CARE ESTABLISHMENT,LD - East Locality,LD - East Cambs - Special Needs,Residential Care
Cambridgeshire County Council,13-Apr-18,51300023944,-2977.44,DECOY FARM,CARE ESTABLISHMENT,LD - East Locality,LD - East Cambs - Special Needs,Residential Care
Cambridgeshire County Council,13-Apr-18,51300024029,-2977.44,DECOY FARM,CARE ESTABLISHMENT,LD - East Locality,LD - East Cambs - Special Needs,Residential Care
Cambridgeshire County Council,13-Apr-18,51300024031,-2977.44,DECOY FARM,CARE ESTABLISHMENT,LD - East Locality,LD - East Cambs - Special Needs,Residential Care
Cambridgeshire County Council,13-Apr-18,51300024082,-2977.44,DECOY FARM,CARE ESTABLISHMENT,LD - East Locality,LD - East Cambs - Special Needs,Residential Care
Cambridgeshire County Council,13-Apr-18,51300023947,-2977.44,DECOY FARM,CARE ESTABLISHMENT,LD - East Locality,LD - East Cambs - Special Needs,Residential Care
Cambridgeshire County Council,13-Apr-18,51300023846,-2977.44,DECOY FARM,CARE ESTABLISHMENT,LD - East Locality,LD - East Cambs - Special Needs,Residential Care
Cambridgeshire County Council,13-Apr-18,51300024097,-2977.44,DECOY FARM,CARE ESTABLISHMENT,LD - East Locality,LD - East Cambs - Special Needs,Residential Care
Cambridgeshire County Council,13-Apr-18,51300023845,-2977.44,DECOY FARM,CARE ESTABLISHMENT,LD - East Locality,LD - East Cambs - Special Needs,Residential Care
Cambridgeshire County Council,15-Apr-18,65300006947,-2977.44,DECOY FARM,CARE ESTABLISHMENT,LD - East Locality,LD - East Cambs - Special Needs,Residential Care
Cambridgeshire County Council,20-Apr-18,51300053958,-2977.44,DECOY FARM,CARE ESTABLISHMENT,LD - East Locality,LD - East Cambs - Special Needs,Residential Care
Cambridgeshire County Council,20-Apr-18,51300053826,-2977.44,DECOY FARM,CARE ESTABLISHMENT,LD - East Locality,LD - East Cambs - Special Needs,Residential Care
Cambridgeshire County Council,20-Apr-18,51300053906,-2977.44,DECOY FARM,CARE ESTABLISHMENT,LD - East Locality,LD - East Cambs - Special Needs,Residential Care
Cambridgeshire County Council,20-Apr-18,51300053822,-2977.44,DECOY FARM,CARE ESTABLISHMENT,LD - East Locality,LD - East Cambs - Special Needs,Residential Care
Cambridgeshire County Council,20-Apr-18,51300053846,-2977.44,DECOY FARM,CARE ESTABLISHMENT,LD - East Locality,LD - East Cambs - Special Needs,Residential Care
Cambridgeshire County Council,20-Apr-18,51300054028,-2977.44,DECOY FARM,CARE ESTABLISHMENT,LD - East Locality,LD - East Cambs - Special Needs,Residential Care
Cambridgeshire County Council,20-Apr-18,51300053947,-2977.44,DECOY FARM,CARE ESTABLISHMENT,LD - East Locality,LD - East Cambs - Special Needs,Residential Care
Cambridgeshire County Council,20-Apr-18,51300053968,-2977.44,DECOY FARM,CARE ESTABLISHMENT,LD - East Locality,LD - East Cambs - Special Needs,Residential Care
Cambridgeshire County Council,20-Apr-18,51300054053,-2977.44,DECOY FARM,CARE ESTABLISHMENT,LD - East Locality,LD - East Cambs - Special Needs,Residential Care
Cambridgeshire County Council,20-Apr-18,51300053953,-2977.44,DECOY FARM,CARE ESTABLISHMENT,LD - East Locality,LD - East Cambs - Special Needs,Residential Care
Cambridgeshire County Council,20-Apr-18,51300053951,-2977.44,DECOY FARM,CARE ESTABLISHMENT,LD - East Locality,LD - East Cambs - Special Needs,Residential Care
Cambridgeshire County Council,20-Apr-18,51300053810,-2977.44,DECOY FARM,CARE ESTABLISHMENT,LD - East Locality,LD - East Cambs - Special Needs,Residential Care
Cambridgeshire County Council,20-Apr-18,51300053802,-2977.44,DECOY FARM,CARE ESTABLISHMENT,LD - East Locality,LD - East Cambs - Special Needs,Residential Care
Cambridgeshire County Council,20-Apr-18,51300053825,-2977.44,DECOY FARM,CARE ESTABLISHMENT,LD - East Locality,LD - East Cambs - Special Needs,Residential Care
Cambridgeshire County Council,20-Apr-18,51300053854,-2977.44,DECOY FARM,CARE ESTABLISHMENT,LD - East Locality,LD - East Cambs - Special Needs,Residential Care
Cambridgeshire County Council,20-Apr-18,51300053964,-2977.44,DECOY FARM,CARE ESTABLISHMENT,LD - East Locality,LD - East Cambs - Special Needs,Residential Care
Cambridgeshire County Council,20-Apr-18,51300053944,-2977.44,DECOY FARM,CARE ESTABLISHMENT,LD - East Locality,LD - East Cambs - Special Needs,Residential Care
Cambridgeshire County Council,20-Apr-18,51300054014,-2977.44,DECOY FARM,CARE ESTABLISHMENT,LD - East Locality,LD - East Cambs - Special Needs,Residential Care
Cambridgeshire County Council,20-Apr-18,51300053817,-2977.44,DECOY FARM,CARE ESTABLISHMENT,LD - East Locality,LD - East Cambs - Special Needs,Residential Care
Cambridgeshire County Council,20-Apr-18,51300053973,-2977.44,DECOY FARM,CARE ESTABLISHMENT,LD - East Locality,LD - East Cambs - Special Needs,Residential Care
Cambridgeshire County Council,20-Apr-18,51300054003,-2977.44,DECOY FARM,CARE ESTABLISHMENT,LD - East Locality,LD - East Cambs - Special Needs,Residential Care
Cambridgeshire County Council,20-Apr-18,51300053927,-2977.44,DECOY FARM,CARE ESTABLISHMENT,LD - East Locality,LD - East Cambs - Special Needs,Residential Care
Cambridgeshire County Council,20-Apr-18,51300053859,-2977.44,DECOY FARM,CARE ESTABLISHMENT,LD - East Locality,LD - East Cambs - Special Needs,Residential Care
Cambridgeshire County Council,20-Apr-18,51300054025,-2977.44,DECOY FARM,CARE ESTABLISHMENT,LD - East Locality,LD - East Cambs - Special Needs,Residential Care
Cambridgeshire County Council,20-Apr-18,51300053814,-2977.44,DECOY FARM,CARE ESTABLISHMENT,LD - East Locality,LD - East Cambs - Special Needs,Residential Care
Cambridgeshire County Council,20-Apr-18,51300053977,-2977.44,DECOY FARM,CARE ESTABLISHMENT,LD - East Locality,LD - East Cambs - Special Needs,Residential Care
Cambridgeshire County Council,20-Apr-18,51300054019,-2977.44,DECOY FARM,CARE ESTABLISHMENT,LD - East Locality,LD - East Cambs - Special Needs,Residential Care
Cambridgeshire County Council,20-Apr-18,51300053820,-2977.44,DECOY FARM,CARE ESTABLISHMENT,LD - East Locality,LD - East Cambs - Special Needs,Residential Care
Cambridgeshire County Council,20-Apr-18,51300053965,-2977.44,DECOY FARM,CARE ESTABLISHMENT,LD - East Locality,LD - East Cambs - Special Needs,Residential Care
Cambridgeshire County Council,20-Apr-18,51300053897,-2977.44,DECOY FARM,CARE ESTABLISHMENT,LD - East Locality,LD - East Cambs - Special Needs,Residential Care
Cambridgeshire County Council,20-Apr-18,51300054010,-2977.44,DECOY FARM,CARE ESTABLISHMENT,LD - East Locality,LD - East Cambs - Special Needs,Residential Care
Cambridgeshire County Council,20-Apr-18,51300053799,-2977.44,DECOY FARM,CARE ESTABLISHMENT,LD - East Locality,LD - East Cambs - Special Needs,Residential Care
Cambridgeshire County Council,20-Apr-18,51300053962,-2977.44,DECOY FARM,CARE ESTABLISHMENT,LD - East Locality,LD - East Cambs - Special Needs,Residential Care
Cambridgeshire County Council,20-Apr-18,51300053847,-2977.44,DECOY FARM,CARE ESTABLISHMENT,LD - East Locality,LD - East Cambs - Special Needs,Residential Care
Cambridgeshire County Council,20-Apr-18,51300053982,-2977.44,DECOY FARM,CARE ESTABLISHMENT,LD - East Locality,LD - East Cambs - Special Needs,Residential Care
Cambridgeshire County Council,20-Apr-18,51300053898,-2977.44,DECOY FARM,CARE ESTABLISHMENT,LD - East Locality,LD - East Cambs - Special Needs,Residential Care
Cambridgeshire County Council,20-Apr-18,51300054034,-2977.44,DECOY FARM,CARE ESTABLISHMENT,LD - East Locality,LD - East Cambs - Special Needs,Residential Care
Cambridgeshire County Council,20-Apr-18,51300053917,-2977.44,DECOY FARM,CARE ESTABLISHMENT,LD - East Locality,LD - East Cambs - Special Needs,Residential Care
Cambridgeshire County Council,20-Apr-18,51300053900,-2977.44,DECOY FARM,CARE ESTABLISHMENT,LD - East Locality,LD - East Cambs - Special Needs,Residential Care
Cambridgeshire County Council,20-Apr-18,51300053823,-2977.44,DECOY FARM,CARE ESTABLISHMENT,LD - East Locality,LD - East Cambs - Special Needs,Residential Care
Cambridgeshire County Council,20-Apr-18,51300054016,-2977.44,DECOY FARM,CARE ESTABLISHMENT,LD - East Locality,LD - East Cambs - Special Needs,Residential Care
Cambridgeshire County Council,20-Apr-18,51300054007,-2977.44,DECOY FARM,CARE ESTABLISHMENT,LD - East Locality,LD - East Cambs - Special Needs,Residential Care
Cambridgeshire County Council,20-Apr-18,51300053827,-2977.44,DECOY FARM,CARE ESTABLISHMENT,LD - East Locality,LD - East Cambs - Special Needs,Residential Care
Cambridgeshire County Council,20-Apr-18,51300053957,-2977.44,DECOY FARM,CARE ESTABLISHMENT,LD - East Locality,LD - East Cambs - Special Needs,Residential Care
Cambridgeshire County Council,20-Apr-18,51300053889,-2977.44,DECOY FARM,CARE ESTABLISHMENT,LD - East Locality,LD - East Cambs - Special Needs,Residential Care
Cambridgeshire County Council,20-Apr-18,51300053980,-2977.44,DECOY FARM,CARE ESTABLISHMENT,LD - East Locality,LD - East Cambs - Special Needs,Residential Care
Cambridgeshire County Council,20-Apr-18,51300053939,-2977.44,DECOY FARM,CARE ESTABLISHMENT,LD - East Locality,LD - East Cambs - Special Needs,Residential Care
Cambridgeshire County Council,20-Apr-18,51300053954,-2977.44,DECOY FARM,CARE ESTABLISHMENT,LD - East Locality,LD - East Cambs - Special Needs,Residential Care
Cambridgeshire County Council,20-Apr-18,51300053853,-2977.44,DECOY FARM,CARE ESTABLISHMENT,LD - East Locality,LD - East Cambs - Special Needs,Residential Care
Cambridgeshire County Council,20-Apr-18,51300054054,-2977.44,DECOY FARM,CARE ESTABLISHMENT,LD - East Locality,LD - East Cambs - Special Needs,Residential Care
Cambridgeshire County Council,20-Apr-18,51300054001,-2977.44,DECOY FARM,CARE ESTABLISHMENT,LD - East Locality,LD - East Cambs - Special Needs,Residential Care
Cambridgeshire County Council,20-Apr-18,51300053835,-2977.44,DECOY FARM,CARE ESTABLISHMENT,LD - East Locality,LD - East Cambs - Special Needs,Residential Care
Cambridgeshire County Council,20-Apr-18,51300053987,-2977.44,DECOY FARM,CARE ESTABLISHMENT,LD - East Locality,LD - East Cambs - Special Needs,Residential Care
Cambridgeshire County Council,20-Apr-18,51300053935,-2977.44,DECOY FARM,CARE ESTABLISHMENT,LD - East Locality,LD - East Cambs - Special Needs,Residential Care
Cambridgeshire County Council,20-Apr-18,51300054004,-2977.44,DECOY FARM,CARE ESTABLISHMENT,LD - East Locality,LD - East Cambs - Special Needs,Residential Care
Cambridgeshire County Council,20-Apr-18,51300053852,-2977.44,DECOY FARM,CARE ESTABLISHMENT,LD - East Locality,LD - East Cambs - Special Needs,Residential Care
Cambridgeshire County Council,20-Apr-18,51300053808,-2977.44,DECOY FARM,CARE ESTABLISHMENT,LD - East Locality,LD - East Cambs - Special Needs,Residential Care
Cambridgeshire County Council,20-Apr-18,51300053804,-2977.44,DECOY FARM,CARE ESTABLISHMENT,LD - East Locality,LD - East Cambs - Special Needs,Residential Care
Cambridgeshire County Council,20-Apr-18,51300053938,-2977.44,DECOY FARM,CARE ESTABLISHMENT,LD - East Locality,LD - East Cambs - Special Needs,Residential Care
Cambridgeshire County Council,20-Apr-18,51300053893,-2977.44,DECOY FARM,CARE ESTABLISHMENT,LD - East Locality,LD - East Cambs - Special Needs,Residential Care
Cambridgeshire County Council,20-Apr-18,51300053914,-2977.44,DECOY FARM,CARE ESTABLISHMENT,LD - East Locality,LD - East Cambs - Special Needs,Residential Care
Cambridgeshire County Council,20-Apr-18,51300053994,-2977.44,DECOY FARM,CARE ESTABLISHMENT,LD - East Locality,LD - East Cambs - Special Needs,Residential Care
Cambridgeshire County Council,20-Apr-18,51300053864,-2977.44,DECOY FARM,CARE ESTABLISHMENT,LD - East Locality,LD - East Cambs - Special Needs,Residential Care
Cambridgeshire County Council,20-Apr-18,51300053878,-2977.44,DECOY FARM,CARE ESTABLISHMENT,LD - East Locality,LD - East Cambs - Special Needs,Residential Care
Cambridgeshire County Council,20-Apr-18,51300053979,-2977.44,DECOY FARM,CARE ESTABLISHMENT,LD - East Locality,LD - East Cambs - Special Needs,Residential Care
Cambridgeshire County Council,20-Apr-18,51300053934,-2977.44,DECOY FARM,CARE ESTABLISHMENT,LD - East Locality,LD - East Cambs - Special Needs,Residential Care
Cambridgeshire County Council,20-Apr-18,51300054018,-2977.44,DECOY FARM,CARE ESTABLISHMENT,LD - East Locality,LD - East Cambs - Special Needs,Residential Care
Cambridgeshire County Council,20-Apr-18,51300053849,-2977.44,DECOY FARM,CARE ESTABLISHMENT,LD - East Locality,LD - East Cambs - Special Needs,Residential Care
Cambridgeshire County Council,20-Apr-18,51300053807,-2977.44,DECOY FARM,CARE ESTABLISHMENT,LD - East Locality,LD - East Cambs - Special Needs,Residential Care
Cambridgeshire County Council,20-Apr-18,51300053818,-2977.44,DECOY FARM,CARE ESTABLISHMENT,LD - East Locality,LD - East Cambs - Special Needs,Residential Care
Cambridgeshire County Council,20-Apr-18,51300053812,-2977.44,DECOY FARM,CARE ESTABLISHMENT,LD - East Locality,LD - East Cambs - Special Needs,Residential Care
Cambridgeshire County Council,20-Apr-18,51300053805,-2977.44,DECOY FARM,CARE ESTABLISHMENT,LD - East Locality,LD - East Cambs - Special Needs,Residential Care
Cambridgeshire County Council,20-Apr-18,51300053850,-2977.44,DECOY FARM,CARE ESTABLISHMENT,LD - East Locality,LD - East Cambs - Special Needs,Residential Care
Cambridgeshire County Council,20-Apr-18,51300053989,-2977.44,DECOY FARM,CARE ESTABLISHMENT,LD - East Locality,LD - East Cambs - Special Needs,Residential Care
Cambridgeshire County Council,20-Apr-18,51300053995,-2977.44,DECOY FARM,CARE ESTABLISHMENT,LD - East Locality,LD - East Cambs - Special Needs,Residential Care
Cambridgeshire County Council,20-Apr-18,51300053998,-2977.44,DECOY FARM,CARE ESTABLISHMENT,LD - East Locality,LD - East Cambs - Special Needs,Residential Care
Cambridgeshire County Council,20-Apr-18,51300053880,-2977.44,DECOY FARM,CARE ESTABLISHMENT,LD - East Locality,LD - East Cambs - Special Needs,Residential Care
Cambridgeshire County Council,20-Apr-18,51300053907,-2977.44,DECOY FARM,CARE ESTABLISHMENT,LD - East Locality,LD - East Cambs - Special Needs,Residential Care
Cambridgeshire County Council,20-Apr-18,51300053885,-2977.44,DECOY FARM,CARE ESTABLISHMENT,LD - East Locality,LD - East Cambs - Special Needs,Residential Care
Cambridgeshire County Council,20-Apr-18,51300053969,-2977.44,DECOY FARM,CARE ESTABLISHMENT,LD - East Locality,LD - East Cambs - Special Needs,Residential Care
Cambridgeshire County Council,20-Apr-18,51300053937,-2977.44,DECOY FARM,CARE ESTABLISHMENT,LD - East Locality,LD - East Cambs - Special Needs,Residential Care
Cambridgeshire County Council,20-Apr-18,51300053894,-2977.44,DECOY FARM,CARE ESTABLISHMENT,LD - East Locality,LD - East Cambs - Special Needs,Residential Care
Cambridgeshire County Council,20-Apr-18,51300053956,-2977.44,DECOY FARM,CARE ESTABLISHMENT,LD - East Locality,LD - East Cambs - Special Needs,Residential Care
Cambridgeshire County Council,20-Apr-18,51300053913,-2977.44,DECOY FARM,CARE ESTABLISHMENT,LD - East Locality,LD - East Cambs - Special Needs,Residential Care
Cambridgeshire County Council,20-Apr-18,51300053936,-2977.44,DECOY FARM,CARE ESTABLISHMENT,LD - East Locality,LD - East Cambs - Special Needs,Residential Care
Cambridgeshire County Council,20-Apr-18,51300054015,-2977.44,DECOY FARM,CARE ESTABLISHMENT,LD - East Locality,LD - East Cambs - Special Needs,Residential Care
Cambridgeshire County Council,20-Apr-18,51300053909,-2977.44,DECOY FARM,CARE ESTABLISHMENT,LD - East Locality,LD - East Cambs - Special Needs,Residential Care
Cambridgeshire County Council,20-Apr-18,51300053945,-2977.44,DECOY FARM,CARE ESTABLISHMENT,LD - East Locality,LD - East Cambs - Special Needs,Residential Care
Cambridgeshire County Council,20-Apr-18,51300054045,-2977.44,DECOY FARM,CARE ESTABLISHMENT,LD - East Locality,LD - East Cambs - Special Needs,Residential Care
Cambridgeshire County Council,20-Apr-18,51300053978,-2977.44,DECOY FARM,CARE ESTABLISHMENT,LD - East Locality,LD - East Cambs - Special Needs,Residential Care
Cambridgeshire County Council,20-Apr-18,51300054040,-2977.44,DECOY FARM,CARE ESTABLISHMENT,LD - East Locality,LD - East Cambs - Special Needs,Residential Care
Cambridgeshire County Council,20-Apr-18,51300054011,-2977.44,DECOY FARM,CARE ESTABLISHMENT,LD - East Locality,LD - East Cambs - Special Needs,Residential Care
Cambridgeshire County Council,20-Apr-18,51300053908,-2977.44,DECOY FARM,CARE ESTABLISHMENT,LD - East Locality,LD - East Cambs - Special Needs,Residential Care
Cambridgeshire County Council,20-Apr-18,51300053966,-2977.44,DECOY FARM,CARE ESTABLISHMENT,LD - East Locality,LD - East Cambs - Special Needs,Residential Care
Cambridgeshire County Council,20-Apr-18,51300053991,-2977.44,DECOY FARM,CARE ESTABLISHMENT,LD - East Locality,LD - East Cambs - Special Needs,Residential Care
Cambridgeshire County Council,20-Apr-18,51300053891,-2977.44,DECOY FARM,CARE ESTABLISHMENT,LD - East Locality,LD - East Cambs - Special Needs,Residential Care
Cambridgeshire County Council,20-Apr-18,51300054017,-2977.44,DECOY FARM,CARE ESTABLISHMENT,LD - East Locality,LD - East Cambs - Special Needs,Residential Care
Cambridgeshire County Council,20-Apr-18,51300053905,-2977.44,DECOY FARM,CARE ESTABLISHMENT,LD - East Locality,LD - East Cambs - Special Needs,Residential Care
Cambridgeshire County Council,20-Apr-18,51300053798,-2977.44,DECOY FARM,CARE ESTABLISHMENT,LD - East Locality,LD - East Cambs - Special Needs,Residential Care
Cambridgeshire County Council,20-Apr-18,51300054009,-2977.44,DECOY FARM,CARE ESTABLISHMENT,LD - East Locality,LD - East Cambs - Special Needs,Residential Care
Cambridgeshire County Council,20-Apr-18,51300054013,-2977.44,DECOY FARM,CARE ESTABLISHMENT,LD - East Locality,LD - East Cambs - Special Needs,Residential Care
Cambridgeshire County Council,20-Apr-18,51300053845,-2977.44,DECOY FARM,CARE ESTABLISHMENT,LD - East Locality,LD - East Cambs - Special Needs,Residential Care
Cambridgeshire County Council,20-Apr-18,51300053881,-2977.44,DECOY FARM,CARE ESTABLISHMENT,LD - East Locality,LD - East Cambs - Special Needs,Residential Care
Cambridgeshire County Council,20-Apr-18,51300053972,-2977.44,DECOY FARM,CARE ESTABLISHMENT,LD - East Locality,LD - East Cambs - Special Needs,Residential Care
Cambridgeshire County Council,20-Apr-18,51300053946,-2977.44,DECOY FARM,CARE ESTABLISHMENT,LD - East Locality,LD - East Cambs - Special Needs,Residential Care
Cambridgeshire County Council,20-Apr-18,51300054008,-2977.44,DECOY FARM,CARE ESTABLISHMENT,LD - East Locality,LD - East Cambs - Special Needs,Residential Care
Cambridgeshire County Council,20-Apr-18,51300053896,-2977.44,DECOY FARM,CARE ESTABLISHMENT,LD - East Locality,LD - East Cambs - Special Needs,Residential Care
Cambridgeshire County Council,20-Apr-18,51300054052,-2977.44,DECOY FARM,CARE ESTABLISHMENT,LD - East Locality,LD - East Cambs - Special Needs,Residential Care
Cambridgeshire County Council,20-Apr-18,51300053819,-2977.44,DECOY FARM,CARE ESTABLISHMENT,LD - East Locality,LD - East Cambs - Special Needs,Residential Care
Cambridgeshire County Council,20-Apr-18,51300054005,-2977.44,DECOY FARM,CARE ESTABLISHMENT,LD - East Locality,LD - East Cambs - Special Needs,Residential Care
Cambridgeshire County Council,20-Apr-18,51300054050,-2977.44,DECOY FARM,CARE ESTABLISHMENT,LD - East Locality,LD - East Cambs - Special Needs,Residential Care
Cambridgeshire County Council,20-Apr-18,51300053948,-2977.44,DECOY FARM,CARE ESTABLISHMENT,LD - East Locality,LD - East Cambs - Special Needs,Residential Care
Cambridgeshire County Council,20-Apr-18,51300053925,-2977.44,DECOY FARM,CARE ESTABLISHMENT,LD - East Locality,LD - East Cambs - Special Needs,Residential Care
Cambridgeshire County Council,20-Apr-18,51300054046,-2977.44,DECOY FARM,CARE ESTABLISHMENT,LD - East Locality,LD - East Cambs - Special Needs,Residential Care
Cambridgeshire County Council,20-Apr-18,51300053961,-2977.44,DECOY FARM,CARE ESTABLISHMENT,LD - East Locality,LD - East Cambs - Special Needs,Residential Care
Cambridgeshire County Council,20-Apr-18,51300053875,-2977.44,DECOY FARM,CARE ESTABLISHMENT,LD - East Locality,LD - East Cambs - Special Needs,Residential Care
Cambridgeshire County Council,20-Apr-18,51300053975,-2977.44,DECOY FARM,CARE ESTABLISHMENT,LD - East Locality,LD - East Cambs - Special Needs,Residential Care
Cambridgeshire County Council,20-Apr-18,51300053899,-2977.44,DECOY FARM,CARE ESTABLISHMENT,LD - East Locality,LD - East Cambs - Special Needs,Residential Care
Cambridgeshire County Council,20-Apr-18,51300053871,-2977.44,DECOY FARM,CARE ESTABLISHMENT,LD - East Locality,LD - East Cambs - Special Needs,Residential Care
Cambridgeshire County Council,20-Apr-18,51300053976,-2977.44,DECOY FARM,CARE ESTABLISHMENT,LD - East Locality,LD - East Cambs - Special Needs,Residential Care
Cambridgeshire County Council,20-Apr-18,51300053840,-2977.44,DECOY FARM,CARE ESTABLISHMENT,LD - East Locality,LD - East Cambs - Special Needs,Residential Care
Cambridgeshire County Council,20-Apr-18,51300053860,-2977.44,DECOY FARM,CARE ESTABLISHMENT,LD - East Locality,LD - East Cambs - Special Needs,Residential Care
Cambridgeshire County Council,20-Apr-18,51300053816,-2977.44,DECOY FARM,CARE ESTABLISHMENT,LD - East Locality,LD - East Cambs - Special Needs,Residential Care
Cambridgeshire County Council,22-Apr-18,65300000041,-2977.44,DECOY FARM,CARE ESTABLISHMENT,LD - East Locality,LD - East Cambs - Special Needs,Residential Care
Cambridgeshire County Council,29-Apr-18,65300007865,-2977.44,DECOY FARM,CARE ESTABLISHMENT,LD - East Locality,LD - East Cambs - Special Needs,Residential Care
Cambridgeshire County Council,01-Apr-18,65300005365,-2919.43,AURORA ORCHARD MANOR#1,CARE ESTABLISHMENT,LD - Young Adults Team,LD - Young Adults - Special Needs,Residential Care
Cambridgeshire County Council,08-Apr-18,65300002352,-2919.43,AURORA ORCHARD MANOR#1,CARE ESTABLISHMENT,LD - Young Adults Team,LD - Young Adults - Special Needs,Residential Care
Cambridgeshire County Council,15-Apr-18,65300000283,-2919.43,AURORA ORCHARD MANOR#1,CARE ESTABLISHMENT,LD - Young Adults Team,LD - Young Adults - Special Needs,Residential Care
Cambridgeshire County Council,22-Apr-18,65300002795,-2919.43,AURORA ORCHARD MANOR#1,CARE ESTABLISHMENT,LD - Young Adults Team,LD - Young Adults - Special Needs,Residential Care
Cambridgeshire County Council,29-Apr-18,65300004872,-2919.43,AURORA ORCHARD MANOR#1,CARE ESTABLISHMENT,LD - Young Adults Team,LD - Young Adults - Special Needs,Residential Care
Cambridgeshire County Council,22-Apr-18,65300005224,-2887.36,AURORA ORCHARD MANOR#1,CARE ESTABLISHMENT,LD - Young Adults Team,LD - Young Adults - Care,Residential Care
Cambridgeshire County Council,29-Apr-18,65300003143,-2887.36,AURORA ORCHARD MANOR#1,CARE ESTABLISHMENT,LD - Young Adults Team,LD - Young Adults - Care,Residential Care
Cambridgeshire County Council,01-Apr-18,51300047486,-2860.09,HEATHERS (JEESAL RESIDENTIAL CARE),CARE ESTABLISHMENT,LD - Fenland Locality,LD - Fenland - Special Needs,Residential Care
Cambridgeshire County Council,08-Apr-18,51300047481,-2860.09,HEATHERS (JEESAL RESIDENTIAL CARE),CARE ESTABLISHMENT,LD - Fenland Locality,LD - Fenland - Special Needs,Residential Care
Cambridgeshire County Council,13-Apr-18,51300028224,-2860.09,HEATHERS (JEESAL RESIDENTIAL CARE),CARE ESTABLISHMENT,LD - Fenland Locality,LD - Fenland - Special Needs,Residential Care
Cambridgeshire County Council,13-Apr-18,51300028214,-2860.09,HEATHERS (JEESAL RESIDENTIAL CARE),CARE ESTABLISHMENT,LD - Fenland Locality,LD - Fenland - Special Needs,Residential Care
Cambridgeshire County Council,13-Apr-18,51300028234,-2860.09,HEATHERS (JEESAL RESIDENTIAL CARE),CARE ESTABLISHMENT,LD - Fenland Locality,LD - Fenland - Special Needs,Residential Care
Cambridgeshire County Council,13-Apr-18,51300028228,-2860.09,HEATHERS (JEESAL RESIDENTIAL CARE),CARE ESTABLISHMENT,LD - Fenland Locality,LD - Fenland - Special Needs,Residential Care
Cambridgeshire County Council,13-Apr-18,51300028208,-2860.09,HEATHERS (JEESAL RESIDENTIAL CARE),CARE ESTABLISHMENT,LD - Fenland Locality,LD - Fenland - Special Needs,Residential Care
Cambridgeshire County Council,13-Apr-18,51300028222,-2860.09,HEATHERS (JEESAL RESIDENTIAL CARE),CARE ESTABLISHMENT,LD - Fenland Locality,LD - Fenland - Special Needs,Residential Care
Cambridgeshire County Council,13-Apr-18,51300028213,-2860.09,HEATHERS (JEESAL RESIDENTIAL CARE),CARE ESTABLISHMENT,LD - Fenland Locality,LD - Fenland - Special Needs,Residential Care
Cambridgeshire County Council,13-Apr-18,51300028211,-2860.09,HEATHERS (JEESAL RESIDENTIAL CARE),CARE ESTABLISHMENT,LD - Fenland Locality,LD - Fenland - Special Needs,Residential Care
Cambridgeshire County Council,13-Apr-18,51300028233,-2860.09,HEATHERS (JEESAL RESIDENTIAL CARE),CARE ESTABLISHMENT,LD - Fenland Locality,LD - Fenland - Special Needs,Residential Care
Cambridgeshire County Council,13-Apr-18,51300028230,-2860.09,HEATHERS (JEESAL RESIDENTIAL CARE),CARE ESTABLISHMENT,LD - Fenland Locality,LD - Fenland - Special Needs,Residential Care
Cambridgeshire County Council,01-Apr-18,65300003840,-2843.57,CONQUEST CARE HOMES PETERBOROUGH#2,CARE ESTABLISHMENT,LD - Hunts Locality,LD - Huntigndonshire - Special Needs,Residential Care
Cambridgeshire County Council,08-Apr-18,65300007780,-2843.57,CONQUEST CARE HOMES PETERBOROUGH#2,CARE ESTABLISHMENT,LD - Hunts Locality,LD - Huntigndonshire - Special Needs,Residential Care
Cambridgeshire County Council,15-Apr-18,65300006902,-2843.57,CONQUEST CARE HOMES PETERBOROUGH#2,CARE ESTABLISHMENT,LD - Hunts Locality,LD - Huntigndonshire - Special Needs,Residential Care
Cambridgeshire County Council,22-Apr-18,65300007559,-2843.57,CONQUEST CARE HOMES PETERBOROUGH#2,CARE ESTABLISHMENT,LD - Hunts Locality,LD - Huntigndonshire - Special Needs,Residential Care
Cambridgeshire County Council,29-Apr-18,65300006578,-2843.57,CONQUEST CARE HOMES PETERBOROUGH#2,CARE ESTABLISHMENT,LD - Hunts Locality,LD - Huntigndonshire - Special Needs,Residential Care
Cambridgeshire County Council,01-Apr-18,65300008290,-2802.09,HEATHERS (JEESAL RESIDENTIAL CARE),CARE ESTABLISHMENT,LD - Fenland Locality,LD - Fenland - Special Needs,Residential Care
Cambridgeshire County Council,08-Apr-18,65300002028,-2802.09,HEATHERS (JEESAL RESIDENTIAL CARE),CARE ESTABLISHMENT,LD - Fenland Locality,LD - Fenland - Special Needs,Residential Care
Cambridgeshire County Council,15-Apr-18,65300003295,-2802.09,HEATHERS (JEESAL RESIDENTIAL CARE),CARE ESTABLISHMENT,LD - Fenland Locality,LD - Fenland - Special Needs,Residential Care
Cambridgeshire County Council,22-Apr-18,65300007529,-2802.09,HEATHERS (JEESAL RESIDENTIAL CARE),CARE ESTABLISHMENT,LD - Fenland Locality,LD - Fenland - Special Needs,Residential Care
Cambridgeshire County Council,29-Apr-18,65300008768,-2802.09,HEATHERS (JEESAL RESIDENTIAL CARE),CARE ESTABLISHMENT,LD - Fenland Locality,LD - Fenland - Special Needs,Residential Care
Cambridgeshire County Council,01-Apr-18,51300045109,-2776.93,CONQUEST CARE HOMES PETERBOROUGH#2,CARE ESTABLISHMENT,LD - Hunts Locality,LD - Huntigndonshire - Special Needs,Residential Care
Cambridgeshire County Council,08-Apr-18,51300045113,-2776.93,CONQUEST CARE HOMES PETERBOROUGH#2,CARE ESTABLISHMENT,LD - Hunts Locality,LD - Huntigndonshire - Special Needs,Residential Care
Cambridgeshire County Council,13-Apr-18,51300025855,-2776.93,CONQUEST CARE HOMES PETERBOROUGH#2,CARE ESTABLISHMENT,LD - Hunts Locality,LD - Huntigndonshire - Special Needs,Residential Care
Cambridgeshire County Council,13-Apr-18,51300025859,-2776.93,CONQUEST CARE HOMES PETERBOROUGH#2,CARE ESTABLISHMENT,LD - Hunts Locality,LD - Huntigndonshire - Special Needs,Residential Care
Cambridgeshire County Council,01-Apr-18,51300050853,-2734.86,VOYAGE#2,CARE ESTABLISHMENT,LD - Hunts Locality,LD - Huntigndonshire - Special Needs,Residential Care
Cambridgeshire County Council,17-Apr-18,51300031616,-2734.86,VOYAGE#2,CARE ESTABLISHMENT,LD - Hunts Locality,LD - Huntigndonshire - Special Needs,Residential Care
Cambridgeshire County Council,17-Apr-18,51300031583,-2734.86,VOYAGE#2,CARE ESTABLISHMENT,LD - Hunts Locality,LD - Huntigndonshire - Special Needs,Residential Care
Cambridgeshire County Council,17-Apr-18,51300031604,-2734.86,VOYAGE#2,CARE ESTABLISHMENT,LD - Hunts Locality,LD - Huntigndonshire - Special Needs,Residential Care
Cambridgeshire County Council,17-Apr-18,51300031584,-2734.86,VOYAGE#2,CARE ESTABLISHMENT,LD - Hunts Locality,LD - Huntigndonshire - Special Needs,Residential Care
Cambridgeshire County Council,17-Apr-18,51300031580,-2734.86,VOYAGE#2,CARE ESTABLISHMENT,LD - Hunts Locality,LD - Huntigndonshire - Special Needs,Residential Care
Cambridgeshire County Council,17-Apr-18,51300031598,-2734.86,VOYAGE#2,CARE ESTABLISHMENT,LD - Hunts Locality,LD - Huntigndonshire - Special Needs,Residential Care
Cambridgeshire County Council,17-Apr-18,51300031577,-2734.86,VOYAGE#2,CARE ESTABLISHMENT,LD - Hunts Locality,LD - Huntigndonshire - Special Needs,Residential Care
Cambridgeshire County Council,17-Apr-18,51300031617,-2734.86,VOYAGE#2,CARE ESTABLISHMENT,LD - Hunts Locality,LD - Huntigndonshire - Special Needs,Residential Care
Cambridgeshire County Council,17-Apr-18,51300031593,-2734.86,VOYAGE#2,CARE ESTABLISHMENT,LD - Hunts Locality,LD - Huntigndonshire - Special Needs,Residential Care
Cambridgeshire County Council,17-Apr-18,51300031607,-2734.86,VOYAGE#2,CARE ESTABLISHMENT,LD - Hunts Locality,LD - Huntigndonshire - Special Needs,Residential Care
Cambridgeshire County Council,17-Apr-18,51300031594,-2734.86,VOYAGE#2,CARE ESTABLISHMENT,LD - Hunts Locality,LD - Huntigndonshire - Special Needs,Residential Care
Cambridgeshire County Council,17-Apr-18,51300031621,-2734.86,VOYAGE#2,CARE ESTABLISHMENT,LD - Hunts Locality,LD - Huntigndonshire - Special Needs,Residential Care
Cambridgeshire County Council,17-Apr-18,51300031597,-2734.86,VOYAGE#2,CARE ESTABLISHMENT,LD - Hunts Locality,LD - Huntigndonshire - Special Needs,Residential Care
Cambridgeshire County Council,17-Apr-18,51300031612,-2734.86,VOYAGE#2,CARE ESTABLISHMENT,LD - Hunts Locality,LD - Huntigndonshire - Special Needs,Residential Care
Cambridgeshire County Council,17-Apr-18,51300031586,-2734.86,VOYAGE#2,CARE ESTABLISHMENT,LD - Hunts Locality,LD - Huntigndonshire - Special Needs,Residential Care
Cambridgeshire County Council,17-Apr-18,51300031609,-2734.86,VOYAGE#2,CARE ESTABLISHMENT,LD - Hunts Locality,LD - Huntigndonshire - Special Needs,Residential Care
Cambridgeshire County Council,17-Apr-18,51300031591,-2734.86,VOYAGE#2,CARE ESTABLISHMENT,LD - Hunts Locality,LD - Huntigndonshire - Special Needs,Residential Care
Cambridgeshire County Council,17-Apr-18,51300031611,-2734.86,VOYAGE#2,CARE ESTABLISHMENT,LD - Hunts Locality,LD - Huntigndonshire - Special Needs,Residential Care
Cambridgeshire County Council,17-Apr-18,51300031588,-2734.86,VOYAGE#2,CARE ESTABLISHMENT,LD - Hunts Locality,LD - Huntigndonshire - Special Needs,Residential Care
Cambridgeshire County Council,01-Apr-18,65300007522,-2713.08,VOYAGE#2,CARE ESTABLISHMENT,LD - Hunts Locality,LD - Huntigndonshire - Special Needs,Residential Care
Cambridgeshire County Council,08-Apr-18,65300008611,-2713.08,VOYAGE#2,CARE ESTABLISHMENT,LD - Hunts Locality,LD - Huntigndonshire - Special Needs,Residential Care
Cambridgeshire County Council,15-Apr-18,65300008846,-2713.08,VOYAGE#2,CARE ESTABLISHMENT,LD - Hunts Locality,LD - Huntigndonshire - Special Needs,Residential Care
Cambridgeshire County Council,22-Apr-18,65300000932,-2713.08,VOYAGE#2,CARE ESTABLISHMENT,LD - Hunts Locality,LD - Huntigndonshire - Special Needs,Residential Care
Cambridgeshire County Council,29-Apr-18,65300003844,-2713.08,VOYAGE#2,CARE ESTABLISHMENT,LD - Hunts Locality,LD - Huntigndonshire - Special Needs,Residential Care
Cambridgeshire County Council,13-Apr-18,51300012037,-2552.09,DECOY FARM,CARE ESTABLISHMENT,Control Accounts,Control Accounts - Payables,Migration Only - Marked as Do Not Use
Cambridgeshire County Council,13-Apr-18,51300011829,-2552.09,DECOY FARM,CARE ESTABLISHMENT,Control Accounts,Control Accounts - Payables,Migration Only - Marked as Do Not Use
Cambridgeshire County Council,13-Apr-18,51300023932,-2552.09,DECOY FARM,CARE ESTABLISHMENT,LD - East Locality,LD - East Cambs - Special Needs,Residential Care
Cambridgeshire County Council,13-Apr-18,51300024005,-2552.09,DECOY FARM,CARE ESTABLISHMENT,LD - East Locality,LD - East Cambs - Special Needs,Residential Care
Cambridgeshire County Council,20-Apr-18,51300053949,-2552.09,DECOY FARM,CARE ESTABLISHMENT,LD - East Locality,LD - East Cambs - Special Needs,Residential Care
Cambridgeshire County Council,20-Apr-18,51300053890,-2552.09,DECOY FARM,CARE ESTABLISHMENT,LD - East Locality,LD - East Cambs - Special Needs,Residential Care
Cambridgeshire County Council,13-Apr-18,51300030410,-2498.93,RENTON COURT (VOYAGE),CARE ESTABLISHMENT,LD - Hunts Locality,LD - Huntigndonshire - Special Needs,Suppported Living
Cambridgeshire County Council,13-Apr-18,51300030425,-2498.93,RENTON COURT (VOYAGE),CARE ESTABLISHMENT,LD - Hunts Locality,LD - Huntigndonshire - Special Needs,Suppported Living
Cambridgeshire County Council,13-Apr-18,51300030439,-2498.93,RENTON COURT (VOYAGE),CARE ESTABLISHMENT,LD - Hunts Locality,LD - Huntigndonshire - Special Needs,Suppported Living
Cambridgeshire County Council,13-Apr-18,51300030389,-2498.93,RENTON COURT (VOYAGE),CARE ESTABLISHMENT,LD - Hunts Locality,LD - Huntigndonshire - Special Needs,Suppported Living
Cambridgeshire County Council,13-Apr-18,51300030349,-2498.93,RENTON COURT (VOYAGE),CARE ESTABLISHMENT,LD - Hunts Locality,LD - Huntigndonshire - Special Needs,Suppported Living
Cambridgeshire County Council,13-Apr-18,51300030419,-2498.93,RENTON COURT (VOYAGE),CARE ESTABLISHMENT,LD - Hunts Locality,LD - Huntigndonshire - Special Needs,Suppported Living
Cambridgeshire County Council,13-Apr-18,51300030401,-2498.93,RENTON COURT (VOYAGE),CARE ESTABLISHMENT,LD - Hunts Locality,LD - Huntigndonshire - Special Needs,Suppported Living
Cambridgeshire County Council,13-Apr-18,51300030391,-2498.93,RENTON COURT (VOYAGE),CARE ESTABLISHMENT,LD - Hunts Locality,LD - Huntigndonshire - Special Needs,Suppported Living
Cambridgeshire County Council,13-Apr-18,51300030406,-2498.93,RENTON COURT (VOYAGE),CARE ESTABLISHMENT,LD - Hunts Locality,LD - Huntigndonshire - Special Needs,Suppported Living
Cambridgeshire County Council,13-Apr-18,51300030451,-2498.93,RENTON COURT (VOYAGE),CARE ESTABLISHMENT,LD - Hunts Locality,LD - Huntigndonshire - Special Needs,Suppported Living
Cambridgeshire County Council,13-Apr-18,51300030382,-2498.93,RENTON COURT (VOYAGE),CARE ESTABLISHMENT,LD - Hunts Locality,LD - Huntigndonshire - Special Needs,Suppported Living
Cambridgeshire County Council,13-Apr-18,51300030367,-2498.93,RENTON COURT (VOYAGE),CARE ESTABLISHMENT,LD - Hunts Locality,LD - Huntigndonshire - Special Needs,Suppported Living
Cambridgeshire County Council,13-Apr-18,51300030444,-2498.93,RENTON COURT (VOYAGE),CARE ESTABLISHMENT,LD - Hunts Locality,LD - Huntigndonshire - Special Needs,Suppported Living
Cambridgeshire County Council,13-Apr-18,51300030358,-2498.93,RENTON COURT (VOYAGE),CARE ESTABLISHMENT,LD - Hunts Locality,LD - Huntigndonshire - Special Needs,Suppported Living
Cambridgeshire County Council,13-Apr-18,51300030353,-2498.93,RENTON COURT (VOYAGE),CARE ESTABLISHMENT,LD - Hunts Locality,LD - Huntigndonshire - Special Needs,Suppported Living
Cambridgeshire County Council,13-Apr-18,51300030447,-2498.93,RENTON COURT (VOYAGE),CARE ESTABLISHMENT,LD - Hunts Locality,LD - Huntigndonshire - Special Needs,Suppported Living
Cambridgeshire County Council,13-Apr-18,51300030362,-2498.93,RENTON COURT (VOYAGE),CARE ESTABLISHMENT,LD - Hunts Locality,LD - Huntigndonshire - Special Needs,Suppported Living
Cambridgeshire County Council,13-Apr-18,51300030442,-2498.93,RENTON COURT (VOYAGE),CARE ESTABLISHMENT,LD - Hunts Locality,LD - Huntigndonshire - Special Needs,Suppported Living
Cambridgeshire County Council,13-Apr-18,51300030356,-2498.93,RENTON COURT (VOYAGE),CARE ESTABLISHMENT,LD - Hunts Locality,LD - Huntigndonshire - Special Needs,Suppported Living
Cambridgeshire County Council,13-Apr-18,51300030407,-2498.93,RENTON COURT (VOYAGE),CARE ESTABLISHMENT,LD - Hunts Locality,LD - Huntigndonshire - Special Needs,Suppported Living
Cambridgeshire County Council,13-Apr-18,51300030422,-2498.93,RENTON COURT (VOYAGE),CARE ESTABLISHMENT,LD - Hunts Locality,LD - Huntigndonshire - Special Needs,Suppported Living
Cambridgeshire County Council,13-Apr-18,51300030420,-2498.93,RENTON COURT (VOYAGE),CARE ESTABLISHMENT,LD - Hunts Locality,LD - Huntigndonshire - Special Needs,Suppported Living
Cambridgeshire County Council,13-Apr-18,51300030437,-2498.93,RENTON COURT (VOYAGE),CARE ESTABLISHMENT,LD - Hunts Locality,LD - Huntigndonshire - Special Needs,Suppported Living
Cambridgeshire County Council,13-Apr-18,51300030399,-2498.93,RENTON COURT (VOYAGE),CARE ESTABLISHMENT,LD - Hunts Locality,LD - Huntigndonshire - Special Needs,Suppported Living
Cambridgeshire County Council,13-Apr-18,51300030379,-2498.93,RENTON COURT (VOYAGE),CARE ESTABLISHMENT,LD - Hunts Locality,LD - Huntigndonshire - Special Needs,Suppported Living
Cambridgeshire County Council,13-Apr-18,51300030450,-2498.93,RENTON COURT (VOYAGE),CARE ESTABLISHMENT,LD - Hunts Locality,LD - Huntigndonshire - Special Needs,Suppported Living
Cambridgeshire County Council,13-Apr-18,51300030381,-2498.93,RENTON COURT (VOYAGE),CARE ESTABLISHMENT,LD - Hunts Locality,LD - Huntigndonshire - Special Needs,Suppported Living
Cambridgeshire County Council,13-Apr-18,51300030375,-2498.93,RENTON COURT (VOYAGE),CARE ESTABLISHMENT,LD - Hunts Locality,LD - Huntigndonshire - Special Needs,Suppported Living
Cambridgeshire County Council,13-Apr-18,51300030380,-2498.93,RENTON COURT (VOYAGE),CARE ESTABLISHMENT,LD - Hunts Locality,LD - Huntigndonshire - Special Needs,Suppported Living
Cambridgeshire County Council,13-Apr-18,51300030357,-2498.93,RENTON COURT (VOYAGE),CARE ESTABLISHMENT,LD - Hunts Locality,LD - Huntigndonshire - Special Needs,Suppported Living
Cambridgeshire County Council,13-Apr-18,51300030443,-2498.93,RENTON COURT (VOYAGE),CARE ESTABLISHMENT,LD - Hunts Locality,LD - Huntigndonshire - Special Needs,Suppported Living
Cambridgeshire County Council,13-Apr-18,51300030372,-2498.93,RENTON COURT (VOYAGE),CARE ESTABLISHMENT,LD - Hunts Locality,LD - Huntigndonshire - Special Needs,Suppported Living
Cambridgeshire County Council,13-Apr-18,51300030403,-2498.93,RENTON COURT (VOYAGE),CARE ESTABLISHMENT,LD - Hunts Locality,LD - Huntigndonshire - Special Needs,Suppported Living
Cambridgeshire County Council,13-Apr-18,51300030426,-2498.93,RENTON COURT (VOYAGE),CARE ESTABLISHMENT,LD - Hunts Locality,LD - Huntigndonshire - Special Needs,Suppported Living
Cambridgeshire County Council,13-Apr-18,51300030440,-2498.93,RENTON COURT (VOYAGE),CARE ESTABLISHMENT,LD - Hunts Locality,LD - Huntigndonshire - Special Needs,Suppported Living
Cambridgeshire County Council,13-Apr-18,51300030351,-2498.93,RENTON COURT (VOYAGE),CARE ESTABLISHMENT,LD - Hunts Locality,LD - Huntigndonshire - Special Needs,Suppported Living
Cambridgeshire County Council,13-Apr-18,51300030360,-2498.93,RENTON COURT (VOYAGE),CARE ESTABLISHMENT,LD - Hunts Locality,LD - Huntigndonshire - Special Needs,Suppported Living
Cambridgeshire County Council,13-Apr-18,51300030385,-2498.93,RENTON COURT (VOYAGE),CARE ESTABLISHMENT,LD - Hunts Locality,LD - Huntigndonshire - Special Needs,Suppported Living
Cambridgeshire County Council,13-Apr-18,51300030378,-2498.93,RENTON COURT (VOYAGE),CARE ESTABLISHMENT,LD - Hunts Locality,LD - Huntigndonshire - Special Needs,Suppported Living
Cambridgeshire County Council,13-Apr-18,51300030370,-2498.93,RENTON COURT (VOYAGE),CARE ESTABLISHMENT,LD - Hunts Locality,LD - Huntigndonshire - Special Needs,Suppported Living
Cambridgeshire County Council,13-Apr-18,51300030402,-2498.93,RENTON COURT (VOYAGE),CARE ESTABLISHMENT,LD - Hunts Locality,LD - Huntigndonshire - Special Needs,Suppported Living
Cambridgeshire County Council,13-Apr-18,51300030363,-2498.93,RENTON COURT (VOYAGE),CARE ESTABLISHMENT,LD - Hunts Locality,LD - Huntigndonshire - Special Needs,Suppported Living
Cambridgeshire County Council,13-Apr-18,51300030352,-2498.93,RENTON COURT (VOYAGE),CARE ESTABLISHMENT,LD - Hunts Locality,LD - Huntigndonshire - Special Needs,Suppported Living
Cambridgeshire County Council,13-Apr-18,51300030430,-2498.93,RENTON COURT (VOYAGE),CARE ESTABLISHMENT,LD - Hunts Locality,LD - Huntigndonshire - Special Needs,Suppported Living
Cambridgeshire County Council,13-Apr-18,51300030409,-2498.93,RENTON COURT (VOYAGE),CARE ESTABLISHMENT,LD - Hunts Locality,LD - Huntigndonshire - Special Needs,Suppported Living
Cambridgeshire County Council,13-Apr-18,51300030418,-2498.93,RENTON COURT (VOYAGE),CARE ESTABLISHMENT,LD - Hunts Locality,LD - Huntigndonshire - Special Needs,Suppported Living
Cambridgeshire County Council,13-Apr-18,51300030394,-2498.93,RENTON COURT (VOYAGE),CARE ESTABLISHMENT,LD - Hunts Locality,LD - Huntigndonshire - Special Needs,Suppported Living
Cambridgeshire County Council,13-Apr-18,51300030359,-2498.93,RENTON COURT (VOYAGE),CARE ESTABLISHMENT,LD - Hunts Locality,LD - Huntigndonshire - Special Needs,Suppported Living
Cambridgeshire County Council,13-Apr-18,51300030433,-2498.93,RENTON COURT (VOYAGE),CARE ESTABLISHMENT,LD - Hunts Locality,LD - Huntigndonshire - Special Needs,Suppported Living
Cambridgeshire County Council,13-Apr-18,51300030374,-2498.93,RENTON COURT (VOYAGE),CARE ESTABLISHMENT,LD - Hunts Locality,LD - Huntigndonshire - Special Needs,Suppported Living
Cambridgeshire County Council,13-Apr-18,51300030414,-2498.93,RENTON COURT (VOYAGE),CARE ESTABLISHMENT,LD - Hunts Locality,LD - Huntigndonshire - Special Needs,Suppported Living
Cambridgeshire County Council,13-Apr-18,51300030429,-2498.93,RENTON COURT (VOYAGE),CARE ESTABLISHMENT,LD - Hunts Locality,LD - Huntigndonshire - Special Needs,Suppported Living
Cambridgeshire County Council,22-Apr-18,65300000359,-2371.61,RAPKYNS CARE CENTRE,CARE ESTABLISHMENT,LD - Hunts Locality,LD - Huntigndonshire - Special Needs,Nursing Care
Cambridgeshire County Council,29-Apr-18,65300002905,-2371.61,RAPKYNS CARE CENTRE,CARE ESTABLISHMENT,LD - Hunts Locality,LD - Huntigndonshire - Special Needs,Nursing Care
Cambridgeshire County Council,01-Apr-18,65300001431,-2345.39,CONQUEST CARE HOMES PETERBOROUGH#2,CARE ESTABLISHMENT,LD - Hunts Locality,LD - Huntigndonshire - Special Needs,Residential Care
Cambridgeshire County Council,08-Apr-18,65300003819,-2345.39,CONQUEST CARE HOMES PETERBOROUGH#2,CARE ESTABLISHMENT,LD - Hunts Locality,LD - Huntigndonshire - Special Needs,Residential Care
Cambridgeshire County Council,15-Apr-18,65300007029,-2345.39,CONQUEST CARE HOMES PETERBOROUGH#2,CARE ESTABLISHMENT,LD - Hunts Locality,LD - Huntigndonshire - Special Needs,Residential Care
Cambridgeshire County Council,22-Apr-18,65300004402,-2345.39,CONQUEST CARE HOMES PETERBOROUGH#2,CARE ESTABLISHMENT,LD - Hunts Locality,LD - Huntigndonshire - Special Needs,Residential Care
Cambridgeshire County Council,29-Apr-18,65300004860,-2345.39,CONQUEST CARE HOMES PETERBOROUGH#2,CARE ESTABLISHMENT,LD - Hunts Locality,LD - Huntigndonshire - Special Needs,Residential Care
Cambridgeshire County Council,13-Apr-18,51300003129,-2337.29,DIMENSIONS (UK) LTD#1,CARE ESTABLISHMENT,Control Accounts,Control Accounts - Payables,Migration Only - Marked as Do Not Use
Cambridgeshire County Council,13-Apr-18,51300003119,-2337.29,DIMENSIONS (UK) LTD#1,CARE ESTABLISHMENT,Control Accounts,Control Accounts - Payables,Migration Only - Marked as Do Not Use
Cambridgeshire County Council,13-Apr-18,51300003121,-2337.29,DIMENSIONS (UK) LTD#1,CARE ESTABLISHMENT,Control Accounts,Control Accounts - Payables,Migration Only - Marked as Do Not Use
Cambridgeshire County Council,13-Apr-18,51300003117,-2337.29,DIMENSIONS (UK) LTD#1,CARE ESTABLISHMENT,Control Accounts,Control Accounts - Payables,Migration Only - Marked as Do Not Use
Cambridgeshire County Council,13-Apr-18,51300003115,-2337.29,DIMENSIONS (UK) LTD#1,CARE ESTABLISHMENT,Control Accounts,Control Accounts - Payables,Migration Only - Marked as Do Not Use
Cambridgeshire County Council,13-Apr-18,51300003127,-2337.29,DIMENSIONS (UK) LTD#1,CARE ESTABLISHMENT,Control Accounts,Control Accounts - Payables,Migration Only - Marked as Do Not Use
Cambridgeshire County Council,13-Apr-18,51300003125,-2337.29,DIMENSIONS (UK) LTD#1,CARE ESTABLISHMENT,Control Accounts,Control Accounts - Payables,Migration Only - Marked as Do Not Use
Cambridgeshire County Council,13-Apr-18,51300003123,-2337.29,DIMENSIONS (UK) LTD#1,CARE ESTABLISHMENT,Control Accounts,Control Accounts - Payables,Migration Only - Marked as Do Not Use
Cambridgeshire County Council,17-Apr-18,51300035580,-2337.29,DIMENSIONS (UK) LTD#1,CARE ESTABLISHMENT,LD - South Locality,LD - South Cambs - Special Needs,Suppported Living
Cambridgeshire County Council,17-Apr-18,51300035577,-2337.29,DIMENSIONS (UK) LTD#1,CARE ESTABLISHMENT,LD - South Locality,LD - South Cambs - Special Needs,Suppported Living
Cambridgeshire County Council,17-Apr-18,51300035565,-2337.29,DIMENSIONS (UK) LTD#1,CARE ESTABLISHMENT,LD - South Locality,LD - South Cambs - Special Needs,Suppported Living
Cambridgeshire County Council,17-Apr-18,51300035581,-2337.29,DIMENSIONS (UK) LTD#1,CARE ESTABLISHMENT,LD - South Locality,LD - South Cambs - Special Needs,Suppported Living
Cambridgeshire County Council,17-Apr-18,51300035570,-2337.29,DIMENSIONS (UK) LTD#1,CARE ESTABLISHMENT,LD - City Locality,LD - City - Special Needs,Suppported Living
Cambridgeshire County Council,17-Apr-18,51300035575,-2337.29,DIMENSIONS (UK) LTD#1,CARE ESTABLISHMENT,LD - City Locality,LD - City - Special Needs,Suppported Living
Cambridgeshire County Council,17-Apr-18,51300035564,-2337.29,DIMENSIONS (UK) LTD#1,CARE ESTABLISHMENT,LD - City Locality,LD - City - Special Needs,Suppported Living
Cambridgeshire County Council,17-Apr-18,51300035586,-2337.29,DIMENSIONS (UK) LTD#1,CARE ESTABLISHMENT,LD - City Locality,LD - City - Special Needs,Suppported Living
Cambridgeshire County Council,26-Apr-18,51300058414,-2337.29,DIMENSIONS (UK) LTD#1,CARE ESTABLISHMENT,LD - South Locality,LD - South Cambs - Special Needs,Suppported Living
Cambridgeshire County Council,26-Apr-18,51300070384,-2337.29,DIMENSIONS (UK) LTD#1,CARE ESTABLISHMENT,LD - South Locality,LD - South Cambs - Special Needs,Suppported Living
Cambridgeshire County Council,26-Apr-18,51300058427,-2337.29,DIMENSIONS (UK) LTD#1,CARE ESTABLISHMENT,LD - South Locality,LD - South Cambs - Special Needs,Suppported Living
Cambridgeshire County Council,26-Apr-18,51300070407,-2337.29,DIMENSIONS (UK) LTD#1,CARE ESTABLISHMENT,LD - South Locality,LD - South Cambs - Special Needs,Suppported Living
Cambridgeshire County Council,26-Apr-18,51300070387,-2337.29,DIMENSIONS (UK) LTD#1,CARE ESTABLISHMENT,LD - South Locality,LD - South Cambs - Special Needs,Suppported Living
Cambridgeshire County Council,26-Apr-18,51300058418,-2337.29,DIMENSIONS (UK) LTD#1,CARE ESTABLISHMENT,LD - South Locality,LD - South Cambs - Special Needs,Suppported Living
Cambridgeshire County Council,26-Apr-18,51300058420,-2337.29,DIMENSIONS (UK) LTD#1,CARE ESTABLISHMENT,LD - South Locality,LD - South Cambs - Special Needs,Suppported Living
Cambridgeshire County Council,26-Apr-18,51300070409,-2337.29,DIMENSIONS (UK) LTD#1,CARE ESTABLISHMENT,LD - City Locality,LD - City - Special Needs,Suppported Living
Cambridgeshire County Council,26-Apr-18,51300070410,-2337.29,DIMENSIONS (UK) LTD#1,CARE ESTABLISHMENT,LD - City Locality,LD - City - Special Needs,Suppported Living
Cambridgeshire County Council,26-Apr-18,51300058421,-2337.29,DIMENSIONS (UK) LTD#1,CARE ESTABLISHMENT,LD - City Locality,LD - City - Special Needs,Suppported Living
Cambridgeshire County Council,26-Apr-18,51300070392,-2337.29,DIMENSIONS (UK) LTD#1,CARE ESTABLISHMENT,LD - City Locality,LD - City - Special Needs,Suppported Living
Cambridgeshire County Council,26-Apr-18,51300058425,-2337.29,DIMENSIONS (UK) LTD#1,CARE ESTABLISHMENT,LD - City Locality,LD - City - Special Needs,Suppported Living
Cambridgeshire County Council,26-Apr-18,51300070411,-2337.29,DIMENSIONS (UK) LTD#1,CARE ESTABLISHMENT,LD - City Locality,LD - City - Special Needs,Suppported Living
Cambridgeshire County Council,26-Apr-18,51300070404,-2337.29,DIMENSIONS (UK) LTD#1,CARE ESTABLISHMENT,LD - City Locality,LD - City - Special Needs,Suppported Living
Cambridgeshire County Council,26-Apr-18,51300058416,-2337.29,DIMENSIONS (UK) LTD#1,CARE ESTABLISHMENT,LD - City Locality,LD - City - Special Needs,Suppported Living
Cambridgeshire County Council,26-Apr-18,51300058413,-2337.29,DIMENSIONS (UK) LTD#1,CARE ESTABLISHMENT,LD - City Locality,LD - City - Special Needs,Suppported Living
Cambridgeshire County Council,08-Apr-18,65300000521,-2321.81,AURORA ORCHARD MANOR#1,CARE ESTABLISHMENT,LD - South Locality,LD - South Cambs - Care,Residential Care
Cambridgeshire County Council,15-Apr-18,65300000631,-2321.81,AURORA ORCHARD MANOR#1,CARE ESTABLISHMENT,LD - South Locality,LD - South Cambs - Care,Residential Care
Cambridgeshire County Council,22-Apr-18,65300000717,-2321.81,AURORA ORCHARD MANOR#1,CARE ESTABLISHMENT,LD - South Locality,LD - South Cambs - Care,Residential Care
Cambridgeshire County Council,29-Apr-18,65300000873,-2321.81,AURORA ORCHARD MANOR#1,CARE ESTABLISHMENT,LD - South Locality,LD - South Cambs - Care,Residential Care
Cambridgeshire County Council,22-Apr-18,65300001986,-2290.7,SENSE EAST,CARE ESTABLISHMENT,LD - South Locality,LD - South Cambs - Special Needs,Residential Care
Cambridgeshire County Council,29-Apr-18,65300001720,-2290.7,SENSE EAST,CARE ESTABLISHMENT,LD - South Locality,LD - South Cambs - Special Needs,Residential Care
Cambridgeshire County Council,01-Apr-18,51300050308,-2290.42,CONQUEST CARE HOMES PETERBOROUGH#2,CARE ESTABLISHMENT,LD - Hunts Locality,LD - Huntigndonshire - Special Needs,Residential Care
Cambridgeshire County Council,08-Apr-18,51300050312,-2290.42,CONQUEST CARE HOMES PETERBOROUGH#2,CARE ESTABLISHMENT,LD - Hunts Locality,LD - Huntigndonshire - Special Needs,Residential Care
Cambridgeshire County Council,13-Apr-18,51300031036,-2290.42,CONQUEST CARE HOMES PETERBOROUGH#2,CARE ESTABLISHMENT,LD - Hunts Locality,LD - Huntigndonshire - Special Needs,Residential Care
Cambridgeshire County Council,13-Apr-18,51300031039,-2290.42,CONQUEST CARE HOMES PETERBOROUGH#2,CARE ESTABLISHMENT,LD - Hunts Locality,LD - Huntigndonshire - Special Needs,Residential Care
Cambridgeshire County Council,13-Apr-18,51300031035,-2290.42,CONQUEST CARE HOMES PETERBOROUGH#2,CARE ESTABLISHMENT,LD - Hunts Locality,LD - Huntigndonshire - Special Needs,Residential Care
Cambridgeshire County Council,15-Apr-18,51300050309,-2290.42,CONQUEST CARE HOMES PETERBOROUGH#2,CARE ESTABLISHMENT,LD - Hunts Locality,LD - Huntigndonshire - Special Needs,Residential Care
Cambridgeshire County Council,08-Apr-18,51300043056,-2286.28,Redacted Personal Data,SERVICE USER,LD - East Locality,LD - East Cambs - Special Needs,Direct Payments
Cambridgeshire County Council,15-Apr-18,51300043060,-2286.28,Redacted Personal Data,SERVICE USER,LD - East Locality,LD - East Cambs - Special Needs,Direct Payments
Cambridgeshire County Council,22-Apr-18,51300043061,-2286.28,Redacted Personal Data,SERVICE USER,LD - East Locality,LD - East Cambs - Special Needs,Direct Payments
Cambridgeshire County Council,29-Apr-18,51300043083,-2286.28,Redacted Personal Data,SERVICE USER,LD - East Locality,LD - East Cambs - Special Needs,Direct Payments
Cambridgeshire County Council,22-Apr-18,65300000353,-2268.47,OAKLANDS,CARE ESTABLISHMENT,LD - Hunts Locality,LD - Huntigndonshire - Special Needs,Residential Care
Cambridgeshire County Council,29-Apr-18,65300006708,-2268.47,OAKLANDS,CARE ESTABLISHMENT,LD - Hunts Locality,LD - Huntigndonshire - Special Needs,Residential Care
Cambridgeshire County Council,01-Apr-18,65300000648,-2267.52,VOYAGE (LICHFIELD),CARE ESTABLISHMENT,LD - Fenland Locality,LD - Fenland - Special Needs,Residential Care
Cambridgeshire County Council,08-Apr-18,65300005469,-2267.52,VOYAGE (LICHFIELD),CARE ESTABLISHMENT,LD - Fenland Locality,LD - Fenland - Special Needs,Residential Care
Cambridgeshire County Council,15-Apr-18,65300007766,-2267.52,VOYAGE (LICHFIELD),CARE ESTABLISHMENT,LD - Fenland Locality,LD - Fenland - Special Needs,Residential Care
Cambridgeshire County Council,22-Apr-18,65300003437,-2267.52,VOYAGE (LICHFIELD),CARE ESTABLISHMENT,LD - Fenland Locality,LD - Fenland - Special Needs,Residential Care
Cambridgeshire County Council,29-Apr-18,65300004996,-2267.52,VOYAGE (LICHFIELD),CARE ESTABLISHMENT,LD - Fenland Locality,LD - Fenland - Special Needs,Residential Care
Cambridgeshire County Council,01-Apr-18,65300008573,-2264.5,GRETTON HOMES,CARE ESTABLISHMENT,LD - South Locality,LD - South Cambs - Special Needs,Residential Care
Cambridgeshire County Council,08-Apr-18,65300005243,-2264.5,GRETTON HOMES,CARE ESTABLISHMENT,LD - South Locality,LD - South Cambs - Special Needs,Residential Care
Cambridgeshire County Council,15-Apr-18,65300004377,-2264.5,GRETTON HOMES,CARE ESTABLISHMENT,LD - South Locality,LD - South Cambs - Special Needs,Residential Care
Cambridgeshire County Council,22-Apr-18,65300003746,-2264.5,GRETTON HOMES,CARE ESTABLISHMENT,LD - South Locality,LD - South Cambs - Special Needs,Residential Care
Cambridgeshire County Council,29-Apr-18,65300005897,-2264.5,GRETTON HOMES,CARE ESTABLISHMENT,LD - South Locality,LD - South Cambs - Special Needs,Residential Care
Cambridgeshire County Council,22-Apr-18,65300007071,-2231.48,NEWTON CHINNECK LTD T/A ST GEORGES GLATTON HALL,CARE ESTABLISHMENT,OP - Hunts Blocks,Hunts - Long term blocks,Residential Care
Cambridgeshire County Council,29-Apr-18,65300003037,-2231.48,NEWTON CHINNECK LTD T/A ST GEORGES GLATTON HALL,CARE ESTABLISHMENT,OP - Hunts Blocks,Hunts - Long term blocks,Residential Care
Cambridgeshire County Council,13-Apr-18,51300001914,-2210.6,AFFINITY TRUST#1,CARE ESTABLISHMENT,Control Accounts,Control Accounts - Payables,Migration Only - Marked as Do Not Use
Cambridgeshire County Council,13-Apr-18,51300001911,-2210.6,AFFINITY TRUST#1,CARE ESTABLISHMENT,Control Accounts,Control Accounts - Payables,Migration Only - Marked as Do Not Use
Cambridgeshire County Council,13-Apr-18,51300001908,-2210.6,AFFINITY TRUST#1,CARE ESTABLISHMENT,Control Accounts,Control Accounts - Payables,Migration Only - Marked as Do Not Use
Cambridgeshire County Council,13-Apr-18,51300001917,-2210.6,AFFINITY TRUST#1,CARE ESTABLISHMENT,Control Accounts,Control Accounts - Payables,Migration Only - Marked as Do Not Use
Cambridgeshire County Council,13-Apr-18,51300001926,-2210.6,AFFINITY TRUST#1,CARE ESTABLISHMENT,Control Accounts,Control Accounts - Payables,Migration Only - Marked as Do Not Use
Cambridgeshire County Council,13-Apr-18,51300001904,-2210.6,AFFINITY TRUST#1,CARE ESTABLISHMENT,Control Accounts,Control Accounts - Payables,Migration Only - Marked as Do Not Use
Cambridgeshire County Council,13-Apr-18,51300001920,-2210.6,AFFINITY TRUST#1,CARE ESTABLISHMENT,Control Accounts,Control Accounts - Payables,Migration Only - Marked as Do Not Use
Cambridgeshire County Council,13-Apr-18,51300001923,-2210.6,AFFINITY TRUST#1,CARE ESTABLISHMENT,Control Accounts,Control Accounts - Payables,Migration Only - Marked as Do Not Use
Cambridgeshire County Council,13-Apr-18,51300001901,-2210.6,AFFINITY TRUST#1,CARE ESTABLISHMENT,Control Accounts,Control Accounts - Payables,Migration Only - Marked as Do Not Use
Cambridgeshire County Council,01-Apr-18,51300046822,-2202.1,GRETTON HOMES,CARE ESTABLISHMENT,LD - South Locality,LD - South Cambs - Special Needs,Residential Care
Cambridgeshire County Council,08-Apr-18,51300046818,-2202.1,GRETTON HOMES,CARE ESTABLISHMENT,LD - South Locality,LD - South Cambs - Special Needs,Residential Care
Cambridgeshire County Council,13-Apr-18,51300027550,-2202.1,GRETTON HOMES,CARE ESTABLISHMENT,LD - South Locality,LD - South Cambs - Special Needs,Residential Care
Cambridgeshire County Council,13-Apr-18,51300027554,-2202.1,GRETTON HOMES,CARE ESTABLISHMENT,LD - South Locality,LD - South Cambs - Special Needs,Residential Care
Cambridgeshire County Council,17-Apr-18,51300015268,-2198.28,EYNESBURY HOUSE,CARE ESTABLISHMENT,Control Accounts,Control Accounts - Payables,Migration Only - Marked as Do Not Use
Cambridgeshire County Council,17-Apr-18,51300015251,-2198.28,EYNESBURY HOUSE,CARE ESTABLISHMENT,Control Accounts,Control Accounts - Payables,Migration Only - Marked as Do Not Use
Cambridgeshire County Council,17-Apr-18,51300015253,-2198.28,EYNESBURY HOUSE,CARE ESTABLISHMENT,Control Accounts,Control Accounts - Payables,Migration Only - Marked as Do Not Use
Cambridgeshire County Council,17-Apr-18,51300015244,-2198.28,EYNESBURY HOUSE,CARE ESTABLISHMENT,Control Accounts,Control Accounts - Payables,Migration Only - Marked as Do Not Use
Cambridgeshire County Council,17-Apr-18,51300015224,-2198.28,EYNESBURY HOUSE,CARE ESTABLISHMENT,Control Accounts,Control Accounts - Payables,Migration Only - Marked as Do Not Use
Cambridgeshire County Council,17-Apr-18,51300015243,-2198.28,EYNESBURY HOUSE,CARE ESTABLISHMENT,Control Accounts,Control Accounts - Payables,Migration Only - Marked as Do Not Use
Cambridgeshire County Council,17-Apr-18,51300015232,-2198.28,EYNESBURY HOUSE,CARE ESTABLISHMENT,Control Accounts,Control Accounts - Payables,Migration Only - Marked as Do Not Use
Cambridgeshire County Council,17-Apr-18,51300015246,-2198.28,EYNESBURY HOUSE,CARE ESTABLISHMENT,Control Accounts,Control Accounts - Payables,Migration Only - Marked as Do Not Use
Cambridgeshire County Council,17-Apr-18,51300015228,-2198.28,EYNESBURY HOUSE,CARE ESTABLISHMENT,Control Accounts,Control Accounts - Payables,Migration Only - Marked as Do Not Use
Cambridgeshire County Council,17-Apr-18,51300015252,-2198.28,EYNESBURY HOUSE,CARE ESTABLISHMENT,Control Accounts,Control Accounts - Payables,Migration Only - Marked as Do Not Use
Cambridgeshire County Council,17-Apr-18,51300015237,-2198.28,EYNESBURY HOUSE,CARE ESTABLISHMENT,Control Accounts,Control Accounts - Payables,Migration Only - Marked as Do Not Use
Cambridgeshire County Council,17-Apr-18,51300015249,-2198.28,EYNESBURY HOUSE,CARE ESTABLISHMENT,Control Accounts,Control Accounts - Payables,Migration Only - Marked as Do Not Use
Cambridgeshire County Council,17-Apr-18,51300015255,-2198.28,EYNESBURY HOUSE,CARE ESTABLISHMENT,Control Accounts,Control Accounts - Payables,Migration Only - Marked as Do Not Use
Cambridgeshire County Council,17-Apr-18,51300015267,-2198.28,EYNESBURY HOUSE,CARE ESTABLISHMENT,Control Accounts,Control Accounts - Payables,Migration Only - Marked as Do Not Use
Cambridgeshire County Council,17-Apr-18,51300015235,-2198.28,EYNESBURY HOUSE,CARE ESTABLISHMENT,Control Accounts,Control Accounts - Payables,Migration Only - Marked as Do Not Use
Cambridgeshire County Council,17-Apr-18,51300015250,-2198.28,EYNESBURY HOUSE,CARE ESTABLISHMENT,Control Accounts,Control Accounts - Payables,Migration Only - Marked as Do Not Use
Cambridgeshire County Council,17-Apr-18,51300015230,-2198.28,EYNESBURY HOUSE,CARE ESTABLISHMENT,Control Accounts,Control Accounts - Payables,Migration Only - Marked as Do Not Use
Cambridgeshire County Council,17-Apr-18,51300015263,-2198.28,EYNESBURY HOUSE,CARE ESTABLISHMENT,Control Accounts,Control Accounts - Payables,Migration Only - Marked as Do Not Use
Cambridgeshire County Council,17-Apr-18,51300015231,-2198.28,EYNESBURY HOUSE,CARE ESTABLISHMENT,Control Accounts,Control Accounts - Payables,Migration Only - Marked as Do Not Use
Cambridgeshire County Council,17-Apr-18,51300015254,-2198.28,EYNESBURY HOUSE,CARE ESTABLISHMENT,Control Accounts,Control Accounts - Payables,Migration Only - Marked as Do Not Use
Cambridgeshire County Council,17-Apr-18,51300015264,-2198.28,EYNESBURY HOUSE,CARE ESTABLISHMENT,Control Accounts,Control Accounts - Payables,Migration Only - Marked as Do Not Use
Cambridgeshire County Council,17-Apr-18,51300015258,-2198.28,EYNESBURY HOUSE,CARE ESTABLISHMENT,Control Accounts,Control Accounts - Payables,Migration Only - Marked as Do Not Use
Cambridgeshire County Council,17-Apr-18,51300015260,-2198.28,EYNESBURY HOUSE,CARE ESTABLISHMENT,Control Accounts,Control Accounts - Payables,Migration Only - Marked as Do Not Use
Cambridgeshire County Council,17-Apr-18,51300015245,-2198.28,EYNESBURY HOUSE,CARE ESTABLISHMENT,Control Accounts,Control Accounts - Payables,Migration Only - Marked as Do Not Use
Cambridgeshire County Council,17-Apr-18,51300015225,-2198.28,EYNESBURY HOUSE,CARE ESTABLISHMENT,Control Accounts,Control Accounts - Payables,Migration Only - Marked as Do Not Use
Cambridgeshire County Council,17-Apr-18,51300015234,-2198.28,EYNESBURY HOUSE,CARE ESTABLISHMENT,Control Accounts,Control Accounts - Payables,Migration Only - Marked as Do Not Use
Cambridgeshire County Council,17-Apr-18,51300015226,-2198.28,EYNESBURY HOUSE,CARE ESTABLISHMENT,Control Accounts,Control Accounts - Payables,Migration Only - Marked as Do Not Use
Cambridgeshire County Council,17-Apr-18,51300015240,-2198.28,EYNESBURY HOUSE,CARE ESTABLISHMENT,Control Accounts,Control Accounts - Payables,Migration Only - Marked as Do Not Use
Cambridgeshire County Council,17-Apr-18,51300015239,-2198.28,EYNESBURY HOUSE,CARE ESTABLISHMENT,Control Accounts,Control Accounts - Payables,Migration Only - Marked as Do Not Use
Cambridgeshire County Council,17-Apr-18,51300015238,-2198.28,EYNESBURY HOUSE,CARE ESTABLISHMENT,Control Accounts,Control Accounts - Payables,Migration Only - Marked as Do Not Use
Cambridgeshire County Council,17-Apr-18,51300015259,-2198.28,EYNESBURY HOUSE,CARE ESTABLISHMENT,Control Accounts,Control Accounts - Payables,Migration Only - Marked as Do Not Use
Cambridgeshire County Council,17-Apr-18,51300015223,-2198.28,EYNESBURY HOUSE,CARE ESTABLISHMENT,Control Accounts,Control Accounts - Payables,Migration Only - Marked as Do Not Use
Cambridgeshire County Council,17-Apr-18,51300015261,-2198.28,EYNESBURY HOUSE,CARE ESTABLISHMENT,Control Accounts,Control Accounts - Payables,Migration Only - Marked as Do Not Use
Cambridgeshire County Council,17-Apr-18,51300015229,-2198.28,EYNESBURY HOUSE,CARE ESTABLISHMENT,Control Accounts,Control Accounts - Payables,Migration Only - Marked as Do Not Use
Cambridgeshire County Council,17-Apr-18,51300015256,-2198.28,EYNESBURY HOUSE,CARE ESTABLISHMENT,Control Accounts,Control Accounts - Payables,Migration Only - Marked as Do Not Use
Cambridgeshire County Council,17-Apr-18,51300015266,-2198.28,EYNESBURY HOUSE,CARE ESTABLISHMENT,Control Accounts,Control Accounts - Payables,Migration Only - Marked as Do Not Use
Cambridgeshire County Council,17-Apr-18,51300015241,-2198.28,EYNESBURY HOUSE,CARE ESTABLISHMENT,Control Accounts,Control Accounts - Payables,Migration Only - Marked as Do Not Use
Cambridgeshire County Council,17-Apr-18,51300015233,-2198.28,EYNESBURY HOUSE,CARE ESTABLISHMENT,Control Accounts,Control Accounts - Payables,Migration Only - Marked as Do Not Use
Cambridgeshire County Council,17-Apr-18,51300015265,-2198.28,EYNESBURY HOUSE,CARE ESTABLISHMENT,Control Accounts,Control Accounts - Payables,Migration Only - Marked as Do Not Use
Cambridgeshire County Council,17-Apr-18,51300015242,-2198.28,EYNESBURY HOUSE,CARE ESTABLISHMENT,Control Accounts,Control Accounts - Payables,Migration Only - Marked as Do Not Use
Cambridgeshire County Council,17-Apr-18,51300015247,-2198.28,EYNESBURY HOUSE,CARE ESTABLISHMENT,Control Accounts,Control Accounts - Payables,Migration Only - Marked as Do Not Use
Cambridgeshire County Council,17-Apr-18,51300015248,-2198.28,EYNESBURY HOUSE,CARE ESTABLISHMENT,Control Accounts,Control Accounts - Payables,Migration Only - Marked as Do Not Use
Cambridgeshire County Council,17-Apr-18,51300015227,-2198.28,EYNESBURY HOUSE,CARE ESTABLISHMENT,Control Accounts,Control Accounts - Payables,Migration Only - Marked as Do Not Use
Cambridgeshire County Council,17-Apr-18,51300015262,-2198.28,EYNESBURY HOUSE,CARE ESTABLISHMENT,Control Accounts,Control Accounts - Payables,Migration Only - Marked as Do Not Use
Cambridgeshire County Council,17-Apr-18,51300015257,-2198.28,EYNESBURY HOUSE,CARE ESTABLISHMENT,Control Accounts,Control Accounts - Payables,Migration Only - Marked as Do Not Use
Cambridgeshire County Council,17-Apr-18,51300015236,-2198.28,EYNESBURY HOUSE,CARE ESTABLISHMENT,Control Accounts,Control Accounts - Payables,Migration Only - Marked as Do Not Use
Cambridgeshire County Council,01-Apr-18,65300000498,-2146.52,ALDERTON HOUSE,CARE ESTABLISHMENT,LD - Young Adults Team,LD - Young Adults - Special Needs,Residential Care
Cambridgeshire County Council,08-Apr-18,65300001559,-2146.52,ALDERTON HOUSE,CARE ESTABLISHMENT,LD - Young Adults Team,LD - Young Adults - Special Needs,Residential Care
Cambridgeshire County Council,15-Apr-18,65300000885,-2146.52,ALDERTON HOUSE,CARE ESTABLISHMENT,LD - Young Adults Team,LD - Young Adults - Special Needs,Residential Care
Cambridgeshire County Council,22-Apr-18,65300000210,-2146.52,ALDERTON HOUSE,CARE ESTABLISHMENT,LD - Young Adults Team,LD - Young Adults - Special Needs,Residential Care
Cambridgeshire County Council,29-Apr-18,65300001705,-2146.52,ALDERTON HOUSE,CARE ESTABLISHMENT,LD - Young Adults Team,LD - Young Adults - Special Needs,Residential Care
Cambridgeshire County Council,01-Apr-18,51300046266,-2140.12,VOYAGE (LICHFIELD),CARE ESTABLISHMENT,LD - Fenland Locality,LD - Fenland - Special Needs,Residential Care
Cambridgeshire County Council,08-Apr-18,51300046270,-2140.12,VOYAGE (LICHFIELD),CARE ESTABLISHMENT,LD - Fenland Locality,LD - Fenland - Special Needs,Residential Care
Cambridgeshire County Council,13-Apr-18,51300026958,-2140.12,VOYAGE (LICHFIELD),CARE ESTABLISHMENT,LD - Fenland Locality,LD - Fenland - Special Needs,Residential Care
Cambridgeshire County Council,13-Apr-18,51300027009,-2140.12,VOYAGE (LICHFIELD),CARE ESTABLISHMENT,LD - Fenland Locality,LD - Fenland - Special Needs,Residential Care
Cambridgeshire County Council,13-Apr-18,51300026940,-2140.12,VOYAGE (LICHFIELD),CARE ESTABLISHMENT,LD - Fenland Locality,LD - Fenland - Special Needs,Residential Care
Cambridgeshire County Council,13-Apr-18,51300027020,-2140.12,VOYAGE (LICHFIELD),CARE ESTABLISHMENT,LD - Fenland Locality,LD - Fenland - Special Needs,Residential Care
Cambridgeshire County Council,13-Apr-18,51300027029,-2140.12,VOYAGE (LICHFIELD),CARE ESTABLISHMENT,LD - Fenland Locality,LD - Fenland - Special Needs,Residential Care
Cambridgeshire County Council,13-Apr-18,51300027005,-2140.12,VOYAGE (LICHFIELD),CARE ESTABLISHMENT,LD - Fenland Locality,LD - Fenland - Special Needs,Residential Care
Cambridgeshire County Council,13-Apr-18,51300026945,-2140.12,VOYAGE (LICHFIELD),CARE ESTABLISHMENT,LD - Fenland Locality,LD - Fenland - Special Needs,Residential Care
Cambridgeshire County Council,13-Apr-18,51300027045,-2140.12,VOYAGE (LICHFIELD),CARE ESTABLISHMENT,LD - Fenland Locality,LD - Fenland - Special Needs,Residential Care
Cambridgeshire County Council,13-Apr-18,51300027016,-2140.12,VOYAGE (LICHFIELD),CARE ESTABLISHMENT,LD - Fenland Locality,LD - Fenland - Special Needs,Residential Care
Cambridgeshire County Council,13-Apr-18,51300027007,-2140.12,VOYAGE (LICHFIELD),CARE ESTABLISHMENT,LD - Fenland Locality,LD - Fenland - Special Needs,Residential Care
Cambridgeshire County Council,13-Apr-18,51300026969,-2140.12,VOYAGE (LICHFIELD),CARE ESTABLISHMENT,LD - Fenland Locality,LD - Fenland - Special Needs,Residential Care
Cambridgeshire County Council,13-Apr-18,51300027058,-2140.12,VOYAGE (LICHFIELD),CARE ESTABLISHMENT,LD - Fenland Locality,LD - Fenland - Special Needs,Residential Care
Cambridgeshire County Council,13-Apr-18,51300026956,-2140.12,VOYAGE (LICHFIELD),CARE ESTABLISHMENT,LD - Fenland Locality,LD - Fenland - Special Needs,Residential Care
Cambridgeshire County Council,13-Apr-18,51300026978,-2140.12,VOYAGE (LICHFIELD),CARE ESTABLISHMENT,LD - Fenland Locality,LD - Fenland - Special Needs,Residential Care
Cambridgeshire County Council,13-Apr-18,51300027040,-2140.12,VOYAGE (LICHFIELD),CARE ESTABLISHMENT,LD - Fenland Locality,LD - Fenland - Special Needs,Residential Care
Cambridgeshire County Council,13-Apr-18,51300027025,-2140.12,VOYAGE (LICHFIELD),CARE ESTABLISHMENT,LD - Fenland Locality,LD - Fenland - Special Needs,Residential Care
Cambridgeshire County Council,13-Apr-18,51300027011,-2140.12,VOYAGE (LICHFIELD),CARE ESTABLISHMENT,LD - Fenland Locality,LD - Fenland - Special Needs,Residential Care
Cambridgeshire County Council,13-Apr-18,51300027004,-2140.12,VOYAGE (LICHFIELD),CARE ESTABLISHMENT,LD - Fenland Locality,LD - Fenland - Special Needs,Residential Care
Cambridgeshire County Council,13-Apr-18,51300027031,-2140.12,VOYAGE (LICHFIELD),CARE ESTABLISHMENT,LD - Fenland Locality,LD - Fenland - Special Needs,Residential Care
Cambridgeshire County Council,13-Apr-18,51300027013,-2140.12,VOYAGE (LICHFIELD),CARE ESTABLISHMENT,LD - Fenland Locality,LD - Fenland - Special Needs,Residential Care
Cambridgeshire County Council,13-Apr-18,51300027027,-2140.12,VOYAGE (LICHFIELD),CARE ESTABLISHMENT,LD - Fenland Locality,LD - Fenland - Special Needs,Residential Care
Cambridgeshire County Council,13-Apr-18,51300027017,-2140.12,VOYAGE (LICHFIELD),CARE ESTABLISHMENT,LD - Fenland Locality,LD - Fenland - Special Needs,Residential Care
Cambridgeshire County Council,13-Apr-18,51300026938,-2140.12,VOYAGE (LICHFIELD),CARE ESTABLISHMENT,LD - Fenland Locality,LD - Fenland - Special Needs,Residential Care
Cambridgeshire County Council,13-Apr-18,51300026981,-2140.12,VOYAGE (LICHFIELD),CARE ESTABLISHMENT,LD - Fenland Locality,LD - Fenland - Special Needs,Residential Care
Cambridgeshire County Council,13-Apr-18,51300026953,-2140.12,VOYAGE (LICHFIELD),CARE ESTABLISHMENT,LD - Fenland Locality,LD - Fenland - Special Needs,Residential Care
Cambridgeshire County Council,13-Apr-18,51300027018,-2140.12,VOYAGE (LICHFIELD),CARE ESTABLISHMENT,LD - Fenland Locality,LD - Fenland - Special Needs,Residential Care
Cambridgeshire County Council,13-Apr-18,51300027038,-2140.12,VOYAGE (LICHFIELD),CARE ESTABLISHMENT,LD - Fenland Locality,LD - Fenland - Special Needs,Residential Care
Cambridgeshire County Council,13-Apr-18,51300027047,-2140.12,VOYAGE (LICHFIELD),CARE ESTABLISHMENT,LD - Fenland Locality,LD - Fenland - Special Needs,Residential Care
Cambridgeshire County Council,13-Apr-18,51300026964,-2140.12,VOYAGE (LICHFIELD),CARE ESTABLISHMENT,LD - Fenland Locality,LD - Fenland - Special Needs,Residential Care
Cambridgeshire County Council,13-Apr-18,51300027033,-2140.12,VOYAGE (LICHFIELD),CARE ESTABLISHMENT,LD - Fenland Locality,LD - Fenland - Special Needs,Residential Care
Cambridgeshire County Council,13-Apr-18,51300026977,-2140.12,VOYAGE (LICHFIELD),CARE ESTABLISHMENT,LD - Fenland Locality,LD - Fenland - Special Needs,Residential Care
Cambridgeshire County Council,13-Apr-18,51300026995,-2140.12,VOYAGE (LICHFIELD),CARE ESTABLISHMENT,LD - Fenland Locality,LD - Fenland - Special Needs,Residential Care
Cambridgeshire County Council,13-Apr-18,51300027057,-2140.12,VOYAGE (LICHFIELD),CARE ESTABLISHMENT,LD - Fenland Locality,LD - Fenland - Special Needs,Residential Care
Cambridgeshire County Council,13-Apr-18,51300027034,-2140.12,VOYAGE (LICHFIELD),CARE ESTABLISHMENT,LD - Fenland Locality,LD - Fenland - Special Needs,Residential Care
Cambridgeshire County Council,13-Apr-18,51300027019,-2140.12,VOYAGE (LICHFIELD),CARE ESTABLISHMENT,LD - Fenland Locality,LD - Fenland - Special Needs,Residential Care
Cambridgeshire County Council,13-Apr-18,51300027008,-2140.12,VOYAGE (LICHFIELD),CARE ESTABLISHMENT,LD - Fenland Locality,LD - Fenland - Special Needs,Residential Care
Cambridgeshire County Council,13-Apr-18,51300026942,-2140.12,VOYAGE (LICHFIELD),CARE ESTABLISHMENT,LD - Fenland Locality,LD - Fenland - Special Needs,Residential Care
Cambridgeshire County Council,13-Apr-18,51300026986,-2140.12,VOYAGE (LICHFIELD),CARE ESTABLISHMENT,LD - Fenland Locality,LD - Fenland - Special Needs,Residential Care
Cambridgeshire County Council,13-Apr-18,51300027001,-2140.12,VOYAGE (LICHFIELD),CARE ESTABLISHMENT,LD - Fenland Locality,LD - Fenland - Special Needs,Residential Care
Cambridgeshire County Council,13-Apr-18,51300027036,-2140.12,VOYAGE (LICHFIELD),CARE ESTABLISHMENT,LD - Fenland Locality,LD - Fenland - Special Needs,Residential Care
Cambridgeshire County Council,13-Apr-18,51300026959,-2140.12,VOYAGE (LICHFIELD),CARE ESTABLISHMENT,LD - Fenland Locality,LD - Fenland - Special Needs,Residential Care
Cambridgeshire County Council,13-Apr-18,51300027039,-2140.12,VOYAGE (LICHFIELD),CARE ESTABLISHMENT,LD - Fenland Locality,LD - Fenland - Special Needs,Residential Care
Cambridgeshire County Council,13-Apr-18,51300027053,-2140.12,VOYAGE (LICHFIELD),CARE ESTABLISHMENT,LD - Fenland Locality,LD - Fenland - Special Needs,Residential Care
Cambridgeshire County Council,13-Apr-18,51300026962,-2140.12,VOYAGE (LICHFIELD),CARE ESTABLISHMENT,LD - Fenland Locality,LD - Fenland - Special Needs,Residential Care
Cambridgeshire County Council,13-Apr-18,51300027002,-2140.12,VOYAGE (LICHFIELD),CARE ESTABLISHMENT,LD - Fenland Locality,LD - Fenland - Special Needs,Residential Care
Cambridgeshire County Council,13-Apr-18,51300026952,-2140.12,VOYAGE (LICHFIELD),CARE ESTABLISHMENT,LD - Fenland Locality,LD - Fenland - Special Needs,Residential Care
Cambridgeshire County Council,13-Apr-18,51300027037,-2140.12,VOYAGE (LICHFIELD),CARE ESTABLISHMENT,LD - Fenland Locality,LD - Fenland - Special Needs,Residential Care
Cambridgeshire County Council,13-Apr-18,51300026996,-2140.12,VOYAGE (LICHFIELD),CARE ESTABLISHMENT,LD - Fenland Locality,LD - Fenland - Special Needs,Residential Care
Cambridgeshire County Council,13-Apr-18,51300026970,-2140.12,VOYAGE (LICHFIELD),CARE ESTABLISHMENT,LD - Fenland Locality,LD - Fenland - Special Needs,Residential Care
Cambridgeshire County Council,13-Apr-18,51300027052,-2140.12,VOYAGE (LICHFIELD),CARE ESTABLISHMENT,LD - Fenland Locality,LD - Fenland - Special Needs,Residential Care
Cambridgeshire County Council,13-Apr-18,51300026961,-2140.12,VOYAGE (LICHFIELD),CARE ESTABLISHMENT,LD - Fenland Locality,LD - Fenland - Special Needs,Residential Care
Cambridgeshire County Council,13-Apr-18,51300026994,-2140.12,VOYAGE (LICHFIELD),CARE ESTABLISHMENT,LD - Fenland Locality,LD - Fenland - Special Needs,Residential Care
Cambridgeshire County Council,13-Apr-18,51300027035,-2140.12,VOYAGE (LICHFIELD),CARE ESTABLISHMENT,LD - Fenland Locality,LD - Fenland - Special Needs,Residential Care
Cambridgeshire County Council,13-Apr-18,51300027022,-2140.12,VOYAGE (LICHFIELD),CARE ESTABLISHMENT,LD - Fenland Locality,LD - Fenland - Special Needs,Residential Care
Cambridgeshire County Council,13-Apr-18,51300026979,-2140.12,VOYAGE (LICHFIELD),CARE ESTABLISHMENT,LD - Fenland Locality,LD - Fenland - Special Needs,Residential Care
Cambridgeshire County Council,15-Apr-18,51300046287,-2140.12,VOYAGE (LICHFIELD),CARE ESTABLISHMENT,LD - Fenland Locality,LD - Fenland - Special Needs,Residential Care
Cambridgeshire County Council,13-Apr-18,51300024040,-2126.74,DECOY FARM,CARE ESTABLISHMENT,LD - East Locality,LD - East Cambs - Special Needs,Residential Care
Cambridgeshire County Council,13-Apr-18,51300011931,-2126.74,DECOY FARM,CARE ESTABLISHMENT,Control Accounts,Control Accounts - Payables,Migration Only - Marked as Do Not Use
Cambridgeshire County Council,20-Apr-18,51300053974,-2126.74,DECOY FARM,CARE ESTABLISHMENT,LD - East Locality,LD - East Cambs - Special Needs,Residential Care
Cambridgeshire County Council,01-Apr-18,65300001888,-2115.44,THF CARE ESTATES LTD,CARE ESTABLISHMENT,LD - City Locality,LD - City - Care,Residential Care
Cambridgeshire County Council,01-Apr-18,65300003722,-2098.44,VOYAGE#2,CARE ESTABLISHMENT,LD - South Locality,LD - South Cambs - Care,Residential Care
Cambridgeshire County Council,08-Apr-18,65300000489,-2098.44,VOYAGE#2,CARE ESTABLISHMENT,LD - South Locality,LD - South Cambs - Care,Residential Care
Cambridgeshire County Council,15-Apr-18,65300007459,-2098.44,VOYAGE#2,CARE ESTABLISHMENT,LD - South Locality,LD - South Cambs - Care,Residential Care
Cambridgeshire County Council,22-Apr-18,65300008033,-2098.44,VOYAGE#2,CARE ESTABLISHMENT,LD - South Locality,LD - South Cambs - Care,Residential Care
Cambridgeshire County Council,29-Apr-18,65300005140,-2098.44,VOYAGE#2,CARE ESTABLISHMENT,LD - South Locality,LD - South Cambs - Care,Residential Care
Cambridgeshire County Council,15-Apr-18,65300007148,-2088.67,AN DARACH HOUSE ( KISIMUL GROUP LTD),CARE ESTABLISHMENT,LD - City Locality,LD - City - Special Needs,Residential Care
Cambridgeshire County Council,22-Apr-18,65300003513,-2088.67,AN DARACH HOUSE ( KISIMUL GROUP LTD),CARE ESTABLISHMENT,LD - City Locality,LD - City - Special Needs,Residential Care
Cambridgeshire County Council,29-Apr-18,65300000137,-2088.67,AN DARACH HOUSE ( KISIMUL GROUP LTD),CARE ESTABLISHMENT,LD - City Locality,LD - City - Special Needs,Residential Care
Cambridgeshire County Council,30-Apr-18,65300009662,-2064,BIDWELLS LLP#3,TRADE SUPPLIER,Estates,Estates,Professional Fees and Hired Services
Cambridgeshire County Council,08-Apr-18,65300005627,-2004.26,VOYAGE#2,CARE ESTABLISHMENT,LD - South Locality,LD - South Cambs - Care,Residential Care
Cambridgeshire County Council,15-Apr-18,65300003311,-2004.26,VOYAGE#2,CARE ESTABLISHMENT,LD - South Locality,LD - South Cambs - Care,Residential Care
Cambridgeshire County Council,22-Apr-18,65300008840,-2004.26,VOYAGE#2,CARE ESTABLISHMENT,LD - South Locality,LD - South Cambs - Care,Residential Care
Cambridgeshire County Council,29-Apr-18,65300008627,-2004.26,VOYAGE#2,CARE ESTABLISHMENT,LD - South Locality,LD - South Cambs - Care,Residential Care
Cambridgeshire County Council,01-Apr-18,65300006716,-1996.94,CONQUEST CARE HOMES PETERBOROUGH#2,CARE ESTABLISHMENT,LD - Hunts Locality,LD - Huntigndonshire - Special Needs,Residential Care
Cambridgeshire County Council,08-Apr-18,65300003991,-1996.94,CONQUEST CARE HOMES PETERBOROUGH#2,CARE ESTABLISHMENT,LD - Hunts Locality,LD - Huntigndonshire - Special Needs,Residential Care
Cambridgeshire County Council,15-Apr-18,65300005358,-1996.94,CONQUEST CARE HOMES PETERBOROUGH#2,CARE ESTABLISHMENT,LD - Hunts Locality,LD - Huntigndonshire - Special Needs,Residential Care
Cambridgeshire County Council,22-Apr-18,65300001458,-1996.94,CONQUEST CARE HOMES PETERBOROUGH#2,CARE ESTABLISHMENT,LD - Hunts Locality,LD - Huntigndonshire - Special Needs,Residential Care
Cambridgeshire County Council,29-Apr-18,65300002903,-1996.94,CONQUEST CARE HOMES PETERBOROUGH#2,CARE ESTABLISHMENT,LD - Hunts Locality,LD - Huntigndonshire - Special Needs,Residential Care
Cambridgeshire County Council,01-Apr-18,51300042217,-1991,VOYAGE#2,CARE ESTABLISHMENT,LD - South Locality,LD - South Cambs - Care,Residential Care
Cambridgeshire County Council,17-Apr-18,51300022980,-1991,VOYAGE#2,CARE ESTABLISHMENT,LD - South Locality,LD - South Cambs - Care,Residential Care
Cambridgeshire County Council,17-Apr-18,51300022921,-1991,VOYAGE#2,CARE ESTABLISHMENT,LD - South Locality,LD - South Cambs - Care,Residential Care
Cambridgeshire County Council,17-Apr-18,51300022896,-1991,VOYAGE#2,CARE ESTABLISHMENT,LD - South Locality,LD - South Cambs - Care,Residential Care
Cambridgeshire County Council,17-Apr-18,51300022957,-1991,VOYAGE#2,CARE ESTABLISHMENT,LD - South Locality,LD - South Cambs - Care,Residential Care
Cambridgeshire County Council,17-Apr-18,51300022836,-1991,VOYAGE#2,CARE ESTABLISHMENT,LD - South Locality,LD - South Cambs - Care,Residential Care
Cambridgeshire County Council,17-Apr-18,51300022881,-1991,VOYAGE#2,CARE ESTABLISHMENT,LD - South Locality,LD - South Cambs - Care,Residential Care
Cambridgeshire County Council,17-Apr-18,51300022937,-1991,VOYAGE#2,CARE ESTABLISHMENT,LD - South Locality,LD - South Cambs - Care,Residential Care
Cambridgeshire County Council,17-Apr-18,51300022922,-1991,VOYAGE#2,CARE ESTABLISHMENT,LD - South Locality,LD - South Cambs - Care,Residential Care
Cambridgeshire County Council,17-Apr-18,51300022898,-1991,VOYAGE#2,CARE ESTABLISHMENT,LD - South Locality,LD - South Cambs - Care,Residential Care
Cambridgeshire County Council,17-Apr-18,51300022900,-1991,VOYAGE#2,CARE ESTABLISHMENT,LD - South Locality,LD - South Cambs - Care,Residential Care
Cambridgeshire County Council,17-Apr-18,51300022889,-1991,VOYAGE#2,CARE ESTABLISHMENT,LD - South Locality,LD - South Cambs - Care,Residential Care
Cambridgeshire County Council,17-Apr-18,51300022879,-1991,VOYAGE#2,CARE ESTABLISHMENT,LD - South Locality,LD - South Cambs - Care,Residential Care
Cambridgeshire County Council,17-Apr-18,51300022874,-1991,VOYAGE#2,CARE ESTABLISHMENT,LD - South Locality,LD - South Cambs - Care,Residential Care
Cambridgeshire County Council,17-Apr-18,51300022913,-1991,VOYAGE#2,CARE ESTABLISHMENT,LD - South Locality,LD - South Cambs - Care,Residential Care
Cambridgeshire County Council,17-Apr-18,51300022963,-1991,VOYAGE#2,CARE ESTABLISHMENT,LD - South Locality,LD - South Cambs - Care,Residential Care
Cambridgeshire County Council,17-Apr-18,51300022983,-1991,VOYAGE#2,CARE ESTABLISHMENT,LD - South Locality,LD - South Cambs - Care,Residential Care
Cambridgeshire County Council,17-Apr-18,51300022956,-1991,VOYAGE#2,CARE ESTABLISHMENT,LD - South Locality,LD - South Cambs - Care,Residential Care
Cambridgeshire County Council,17-Apr-18,51300022941,-1991,VOYAGE#2,CARE ESTABLISHMENT,LD - South Locality,LD - South Cambs - Care,Residential Care
Cambridgeshire County Council,17-Apr-18,51300022823,-1991,VOYAGE#2,CARE ESTABLISHMENT,LD - South Locality,LD - South Cambs - Care,Residential Care
Cambridgeshire County Council,17-Apr-18,51300022833,-1991,VOYAGE#2,CARE ESTABLISHMENT,LD - South Locality,LD - South Cambs - Care,Residential Care
Cambridgeshire County Council,17-Apr-18,51300022933,-1991,VOYAGE#2,CARE ESTABLISHMENT,LD - South Locality,LD - South Cambs - Care,Residential Care
Cambridgeshire County Council,17-Apr-18,51300022928,-1991,VOYAGE#2,CARE ESTABLISHMENT,LD - South Locality,LD - South Cambs - Care,Residential Care
Cambridgeshire County Council,17-Apr-18,51300022842,-1991,VOYAGE#2,CARE ESTABLISHMENT,LD - South Locality,LD - South Cambs - Care,Residential Care
Cambridgeshire County Council,17-Apr-18,51300022948,-1991,VOYAGE#2,CARE ESTABLISHMENT,LD - South Locality,LD - South Cambs - Care,Residential Care
Cambridgeshire County Council,17-Apr-18,51300022871,-1991,VOYAGE#2,CARE ESTABLISHMENT,LD - South Locality,LD - South Cambs - Care,Residential Care
Cambridgeshire County Council,17-Apr-18,51300022924,-1991,VOYAGE#2,CARE ESTABLISHMENT,LD - South Locality,LD - South Cambs - Care,Residential Care
Cambridgeshire County Council,17-Apr-18,51300022878,-1991,VOYAGE#2,CARE ESTABLISHMENT,LD - South Locality,LD - South Cambs - Care,Residential Care
Cambridgeshire County Council,17-Apr-18,51300022841,-1991,VOYAGE#2,CARE ESTABLISHMENT,LD - South Locality,LD - South Cambs - Care,Residential Care
Cambridgeshire County Council,17-Apr-18,51300022850,-1991,VOYAGE#2,CARE ESTABLISHMENT,LD - South Locality,LD - South Cambs - Care,Residential Care
Cambridgeshire County Council,17-Apr-18,51300022861,-1991,VOYAGE#2,CARE ESTABLISHMENT,LD - South Locality,LD - South Cambs - Care,Residential Care
Cambridgeshire County Council,17-Apr-18,51300022834,-1991,VOYAGE#2,CARE ESTABLISHMENT,LD - South Locality,LD - South Cambs - Care,Residential Care
Cambridgeshire County Council,17-Apr-18,51300022971,-1991,VOYAGE#2,CARE ESTABLISHMENT,LD - South Locality,LD - South Cambs - Care,Residential Care
Cambridgeshire County Council,17-Apr-18,51300022888,-1991,VOYAGE#2,CARE ESTABLISHMENT,LD - South Locality,LD - South Cambs - Care,Residential Care
Cambridgeshire County Council,17-Apr-18,51300022975,-1991,VOYAGE#2,CARE ESTABLISHMENT,LD - South Locality,LD - South Cambs - Care,Residential Care
Cambridgeshire County Council,17-Apr-18,51300022891,-1991,VOYAGE#2,CARE ESTABLISHMENT,LD - South Locality,LD - South Cambs - Care,Residential Care
Cambridgeshire County Council,17-Apr-18,51300022923,-1991,VOYAGE#2,CARE ESTABLISHMENT,LD - South Locality,LD - South Cambs - Care,Residential Care
Cambridgeshire County Council,17-Apr-18,51300022873,-1991,VOYAGE#2,CARE ESTABLISHMENT,LD - South Locality,LD - South Cambs - Care,Residential Care
Cambridgeshire County Council,17-Apr-18,51300022976,-1991,VOYAGE#2,CARE ESTABLISHMENT,LD - South Locality,LD - South Cambs - Care,Residential Care
Cambridgeshire County Council,17-Apr-18,51300022929,-1991,VOYAGE#2,CARE ESTABLISHMENT,LD - South Locality,LD - South Cambs - Care,Residential Care
Cambridgeshire County Council,17-Apr-18,51300022830,-1991,VOYAGE#2,CARE ESTABLISHMENT,LD - South Locality,LD - South Cambs - Care,Residential Care
Cambridgeshire County Council,17-Apr-18,51300022860,-1991,VOYAGE#2,CARE ESTABLISHMENT,LD - South Locality,LD - South Cambs - Care,Residential Care
Cambridgeshire County Council,17-Apr-18,51300022849,-1991,VOYAGE#2,CARE ESTABLISHMENT,LD - South Locality,LD - South Cambs - Care,Residential Care
Cambridgeshire County Council,17-Apr-18,51300022962,-1991,VOYAGE#2,CARE ESTABLISHMENT,LD - South Locality,LD - South Cambs - Care,Residential Care
Cambridgeshire County Council,17-Apr-18,51300022979,-1991,VOYAGE#2,CARE ESTABLISHMENT,LD - South Locality,LD - South Cambs - Care,Residential Care
Cambridgeshire County Council,17-Apr-18,51300022884,-1991,VOYAGE#2,CARE ESTABLISHMENT,LD - South Locality,LD - South Cambs - Care,Residential Care
Cambridgeshire County Council,17-Apr-18,51300022905,-1991,VOYAGE#2,CARE ESTABLISHMENT,LD - South Locality,LD - South Cambs - Care,Residential Care
Cambridgeshire County Council,17-Apr-18,51300022882,-1991,VOYAGE#2,CARE ESTABLISHMENT,LD - South Locality,LD - South Cambs - Care,Residential Care
Cambridgeshire County Council,17-Apr-18,51300022828,-1991,VOYAGE#2,CARE ESTABLISHMENT,LD - South Locality,LD - South Cambs - Care,Residential Care
Cambridgeshire County Council,17-Apr-18,51300022890,-1991,VOYAGE#2,CARE ESTABLISHMENT,LD - South Locality,LD - South Cambs - Care,Residential Care
Cambridgeshire County Council,17-Apr-18,51300022935,-1991,VOYAGE#2,CARE ESTABLISHMENT,LD - South Locality,LD - South Cambs - Care,Residential Care
Cambridgeshire County Council,17-Apr-18,51300022865,-1991,VOYAGE#2,CARE ESTABLISHMENT,LD - South Locality,LD - South Cambs - Care,Residential Care
Cambridgeshire County Council,17-Apr-18,51300036205,-1991,VOYAGE#2,CARE ESTABLISHMENT,LD - City Locality,LD - City - Special Needs,Residential Care
Cambridgeshire County Council,17-Apr-18,51300036190,-1991,VOYAGE#2,CARE ESTABLISHMENT,LD - City Locality,LD - City - Special Needs,Residential Care
Cambridgeshire County Council,17-Apr-18,51300036222,-1991,VOYAGE#2,CARE ESTABLISHMENT,LD - City Locality,LD - City - Special Needs,Residential Care
Cambridgeshire County Council,17-Apr-18,51300036105,-1991,VOYAGE#2,CARE ESTABLISHMENT,LD - City Locality,LD - City - Special Needs,Residential Care
Cambridgeshire County Council,17-Apr-18,51300036069,-1991,VOYAGE#2,CARE ESTABLISHMENT,LD - City Locality,LD - City - Special Needs,Residential Care
Cambridgeshire County Council,17-Apr-18,51300036172,-1991,VOYAGE#2,CARE ESTABLISHMENT,LD - City Locality,LD - City - Special Needs,Residential Care
Cambridgeshire County Council,17-Apr-18,51300036181,-1991,VOYAGE#2,CARE ESTABLISHMENT,LD - City Locality,LD - City - Special Needs,Residential Care
Cambridgeshire County Council,17-Apr-18,51300036072,-1991,VOYAGE#2,CARE ESTABLISHMENT,LD - City Locality,LD - City - Special Needs,Residential Care
Cambridgeshire County Council,17-Apr-18,51300036091,-1991,VOYAGE#2,CARE ESTABLISHMENT,LD - City Locality,LD - City - Special Needs,Residential Care
Cambridgeshire County Council,17-Apr-18,51300036153,-1991,VOYAGE#2,CARE ESTABLISHMENT,LD - City Locality,LD - City - Special Needs,Residential Care
Cambridgeshire County Council,17-Apr-18,51300036108,-1991,VOYAGE#2,CARE ESTABLISHMENT,LD - City Locality,LD - City - Special Needs,Residential Care
Cambridgeshire County Council,17-Apr-18,51300036119,-1991,VOYAGE#2,CARE ESTABLISHMENT,LD - City Locality,LD - City - Special Needs,Residential Care
Cambridgeshire County Council,17-Apr-18,51300036090,-1991,VOYAGE#2,CARE ESTABLISHMENT,LD - City Locality,LD - City - Special Needs,Residential Care
Cambridgeshire County Council,17-Apr-18,51300036114,-1991,VOYAGE#2,CARE ESTABLISHMENT,LD - City Locality,LD - City - Special Needs,Residential Care
Cambridgeshire County Council,17-Apr-18,51300036199,-1991,VOYAGE#2,CARE ESTABLISHMENT,LD - City Locality,LD - City - Special Needs,Residential Care
Cambridgeshire County Council,17-Apr-18,51300036099,-1991,VOYAGE#2,CARE ESTABLISHMENT,LD - City Locality,LD - City - Special Needs,Residential Care
Cambridgeshire County Council,17-Apr-18,51300036192,-1991,VOYAGE#2,CARE ESTABLISHMENT,LD - City Locality,LD - City - Special Needs,Residential Care
Cambridgeshire County Council,17-Apr-18,51300036242,-1991,VOYAGE#2,CARE ESTABLISHMENT,LD - City Locality,LD - City - Special Needs,Residential Care
Cambridgeshire County Council,17-Apr-18,51300036196,-1991,VOYAGE#2,CARE ESTABLISHMENT,LD - City Locality,LD - City - Special Needs,Residential Care
Cambridgeshire County Council,17-Apr-18,51300036087,-1991,VOYAGE#2,CARE ESTABLISHMENT,LD - City Locality,LD - City - Special Needs,Residential Care
Cambridgeshire County Council,17-Apr-18,51300036132,-1991,VOYAGE#2,CARE ESTABLISHMENT,LD - City Locality,LD - City - Special Needs,Residential Care
Cambridgeshire County Council,17-Apr-18,51300036218,-1991,VOYAGE#2,CARE ESTABLISHMENT,LD - City Locality,LD - City - Special Needs,Residential Care
Cambridgeshire County Council,17-Apr-18,51300036167,-1991,VOYAGE#2,CARE ESTABLISHMENT,LD - City Locality,LD - City - Special Needs,Residential Care
Cambridgeshire County Council,17-Apr-18,51300036067,-1991,VOYAGE#2,CARE ESTABLISHMENT,LD - City Locality,LD - City - Special Needs,Residential Care
Cambridgeshire County Council,17-Apr-18,51300036102,-1991,VOYAGE#2,CARE ESTABLISHMENT,LD - City Locality,LD - City - Special Needs,Residential Care
Cambridgeshire County Council,17-Apr-18,51300036093,-1991,VOYAGE#2,CARE ESTABLISHMENT,LD - City Locality,LD - City - Special Needs,Residential Care
Cambridgeshire County Council,17-Apr-18,51300036220,-1991,VOYAGE#2,CARE ESTABLISHMENT,LD - City Locality,LD - City - Special Needs,Residential Care
Cambridgeshire County Council,17-Apr-18,51300036247,-1991,VOYAGE#2,CARE ESTABLISHMENT,LD - City Locality,LD - City - Special Needs,Residential Care
Cambridgeshire County Council,17-Apr-18,51300036140,-1991,VOYAGE#2,CARE ESTABLISHMENT,LD - City Locality,LD - City - Special Needs,Residential Care
Cambridgeshire County Council,17-Apr-18,51300036089,-1991,VOYAGE#2,CARE ESTABLISHMENT,LD - City Locality,LD - City - Special Needs,Residential Care
Cambridgeshire County Council,17-Apr-18,51300036240,-1991,VOYAGE#2,CARE ESTABLISHMENT,LD - City Locality,LD - City - Special Needs,Residential Care
Cambridgeshire County Council,17-Apr-18,51300036178,-1991,VOYAGE#2,CARE ESTABLISHMENT,LD - City Locality,LD - City - Special Needs,Residential Care
Cambridgeshire County Council,17-Apr-18,51300036107,-1991,VOYAGE#2,CARE ESTABLISHMENT,LD - City Locality,LD - City - Special Needs,Residential Care
Cambridgeshire County Council,17-Apr-18,51300036198,-1991,VOYAGE#2,CARE ESTABLISHMENT,LD - City Locality,LD - City - Special Needs,Residential Care
Cambridgeshire County Council,17-Apr-18,51300036231,-1991,VOYAGE#2,CARE ESTABLISHMENT,LD - City Locality,LD - City - Special Needs,Residential Care
Cambridgeshire County Council,17-Apr-18,51300036166,-1991,VOYAGE#2,CARE ESTABLISHMENT,LD - City Locality,LD - City - Special Needs,Residential Care
Cambridgeshire County Council,17-Apr-18,51300036071,-1991,VOYAGE#2,CARE ESTABLISHMENT,LD - City Locality,LD - City - Special Needs,Residential Care
Cambridgeshire County Council,17-Apr-18,51300036133,-1991,VOYAGE#2,CARE ESTABLISHMENT,LD - City Locality,LD - City - Special Needs,Residential Care
Cambridgeshire County Council,17-Apr-18,51300036141,-1991,VOYAGE#2,CARE ESTABLISHMENT,LD - City Locality,LD - City - Special Needs,Residential Care
Cambridgeshire County Council,17-Apr-18,51300036248,-1991,VOYAGE#2,CARE ESTABLISHMENT,LD - City Locality,LD - City - Special Needs,Residential Care
Cambridgeshire County Council,17-Apr-18,51300036225,-1991,VOYAGE#2,CARE ESTABLISHMENT,LD - City Locality,LD - City - Special Needs,Residential Care
Cambridgeshire County Council,17-Apr-18,51300036204,-1991,VOYAGE#2,CARE ESTABLISHMENT,LD - City Locality,LD - City - Special Needs,Residential Care
Cambridgeshire County Council,17-Apr-18,51300036171,-1991,VOYAGE#2,CARE ESTABLISHMENT,LD - City Locality,LD - City - Special Needs,Residential Care
Cambridgeshire County Council,17-Apr-18,51300036219,-1991,VOYAGE#2,CARE ESTABLISHMENT,LD - City Locality,LD - City - Special Needs,Residential Care
Cambridgeshire County Council,17-Apr-18,51300036126,-1991,VOYAGE#2,CARE ESTABLISHMENT,LD - City Locality,LD - City - Special Needs,Residential Care
Cambridgeshire County Council,17-Apr-18,51300036131,-1991,VOYAGE#2,CARE ESTABLISHMENT,LD - City Locality,LD - City - Special Needs,Residential Care
Cambridgeshire County Council,17-Apr-18,51300036211,-1991,VOYAGE#2,CARE ESTABLISHMENT,LD - City Locality,LD - City - Special Needs,Residential Care
Cambridgeshire County Council,17-Apr-18,51300036187,-1991,VOYAGE#2,CARE ESTABLISHMENT,LD - City Locality,LD - City - Special Needs,Residential Care
Cambridgeshire County Council,17-Apr-18,51300036142,-1991,VOYAGE#2,CARE ESTABLISHMENT,LD - City Locality,LD - City - Special Needs,Residential Care
Cambridgeshire County Council,17-Apr-18,51300036103,-1991,VOYAGE#2,CARE ESTABLISHMENT,LD - City Locality,LD - City - Special Needs,Residential Care
Cambridgeshire County Council,17-Apr-18,51300036118,-1991,VOYAGE#2,CARE ESTABLISHMENT,LD - City Locality,LD - City - Special Needs,Residential Care
Cambridgeshire County Council,17-Apr-18,51300036070,-1991,VOYAGE#2,CARE ESTABLISHMENT,LD - City Locality,LD - City - Special Needs,Residential Care
Cambridgeshire County Council,17-Apr-18,51300036076,-1991,VOYAGE#2,CARE ESTABLISHMENT,LD - City Locality,LD - City - Special Needs,Residential Care
Cambridgeshire County Council,17-Apr-18,51300022936,-1991,VOYAGE#2,CARE ESTABLISHMENT,LD - South Locality,LD - South Cambs - Care,Residential Care
Cambridgeshire County Council,17-Apr-18,51300022961,-1991,VOYAGE#2,CARE ESTABLISHMENT,LD - South Locality,LD - South Cambs - Care,Residential Care
Cambridgeshire County Council,01-Apr-18,51300044938,-1983.5,VOYAGE#2,CARE ESTABLISHMENT,LD - South Locality,LD - South Cambs - Care,Residential Care
Cambridgeshire County Council,17-Apr-18,51300038155,-1983.5,VOYAGE#2,CARE ESTABLISHMENT,LD - South Locality,LD - South Cambs - Care,Residential Care
Cambridgeshire County Council,17-Apr-18,51300025664,-1983.5,VOYAGE#2,CARE ESTABLISHMENT,LD - South Locality,LD - South Cambs - Care,Residential Care
Cambridgeshire County Council,17-Apr-18,51300038074,-1983.5,VOYAGE#2,CARE ESTABLISHMENT,LD - South Locality,LD - South Cambs - Care,Residential Care
Cambridgeshire County Council,17-Apr-18,51300025770,-1983.5,VOYAGE#2,CARE ESTABLISHMENT,LD - South Locality,LD - South Cambs - Care,Residential Care
Cambridgeshire County Council,17-Apr-18,51300038170,-1983.5,VOYAGE#2,CARE ESTABLISHMENT,LD - South Locality,LD - South Cambs - Care,Residential Care
Cambridgeshire County Council,17-Apr-18,51300025734,-1983.5,VOYAGE#2,CARE ESTABLISHMENT,LD - South Locality,LD - South Cambs - Care,Residential Care
Cambridgeshire County Council,17-Apr-18,51300025714,-1983.5,VOYAGE#2,CARE ESTABLISHMENT,LD - South Locality,LD - South Cambs - Care,Residential Care
Cambridgeshire County Council,17-Apr-18,51300038134,-1983.5,VOYAGE#2,CARE ESTABLISHMENT,LD - South Locality,LD - South Cambs - Care,Residential Care
Cambridgeshire County Council,17-Apr-18,51300025663,-1983.5,VOYAGE#2,CARE ESTABLISHMENT,LD - South Locality,LD - South Cambs - Care,Residential Care
Cambridgeshire County Council,17-Apr-18,51300038075,-1983.5,VOYAGE#2,CARE ESTABLISHMENT,LD - South Locality,LD - South Cambs - Care,Residential Care
Cambridgeshire County Council,17-Apr-18,51300025615,-1983.5,VOYAGE#2,CARE ESTABLISHMENT,LD - South Locality,LD - South Cambs - Care,Residential Care
Cambridgeshire County Council,17-Apr-18,51300025699,-1983.5,VOYAGE#2,CARE ESTABLISHMENT,LD - South Locality,LD - South Cambs - Care,Residential Care
Cambridgeshire County Council,17-Apr-18,51300025651,-1983.5,VOYAGE#2,CARE ESTABLISHMENT,LD - South Locality,LD - South Cambs - Care,Residential Care
Cambridgeshire County Council,17-Apr-18,51300025749,-1983.5,VOYAGE#2,CARE ESTABLISHMENT,LD - South Locality,LD - South Cambs - Care,Residential Care
Cambridgeshire County Council,17-Apr-18,51300038016,-1983.5,VOYAGE#2,CARE ESTABLISHMENT,LD - South Locality,LD - South Cambs - Care,Residential Care
Cambridgeshire County Council,17-Apr-18,51300025630,-1983.5,VOYAGE#2,CARE ESTABLISHMENT,LD - South Locality,LD - South Cambs - Care,Residential Care
Cambridgeshire County Council,17-Apr-18,51300038105,-1983.5,VOYAGE#2,CARE ESTABLISHMENT,LD - South Locality,LD - South Cambs - Care,Residential Care
Cambridgeshire County Council,17-Apr-18,51300038099,-1983.5,VOYAGE#2,CARE ESTABLISHMENT,LD - South Locality,LD - South Cambs - Care,Residential Care
Cambridgeshire County Council,17-Apr-18,51300038161,-1983.5,VOYAGE#2,CARE ESTABLISHMENT,LD - South Locality,LD - South Cambs - Care,Residential Care
Cambridgeshire County Council,17-Apr-18,51300038039,-1983.5,VOYAGE#2,CARE ESTABLISHMENT,LD - South Locality,LD - South Cambs - Care,Residential Care
Cambridgeshire County Council,17-Apr-18,51300025684,-1983.5,VOYAGE#2,CARE ESTABLISHMENT,LD - South Locality,LD - South Cambs - Care,Residential Care
Cambridgeshire County Council,17-Apr-18,51300038044,-1983.5,VOYAGE#2,CARE ESTABLISHMENT,LD - South Locality,LD - South Cambs - Care,Residential Care
Cambridgeshire County Council,17-Apr-18,51300025769,-1983.5,VOYAGE#2,CARE ESTABLISHMENT,LD - South Locality,LD - South Cambs - Care,Residential Care
Cambridgeshire County Council,17-Apr-18,51300025681,-1983.5,VOYAGE#2,CARE ESTABLISHMENT,LD - South Locality,LD - South Cambs - Care,Residential Care
Cambridgeshire County Council,17-Apr-18,51300025751,-1983.5,VOYAGE#2,CARE ESTABLISHMENT,LD - South Locality,LD - South Cambs - Care,Residential Care
Cambridgeshire County Council,17-Apr-18,51300038040,-1983.5,VOYAGE#2,CARE ESTABLISHMENT,LD - South Locality,LD - South Cambs - Care,Residential Care
Cambridgeshire County Council,17-Apr-18,51300025636,-1983.5,VOYAGE#2,CARE ESTABLISHMENT,LD - South Locality,LD - South Cambs - Care,Residential Care
Cambridgeshire County Council,17-Apr-18,51300025662,-1983.5,VOYAGE#2,CARE ESTABLISHMENT,LD - South Locality,LD - South Cambs - Care,Residential Care
Cambridgeshire County Council,17-Apr-18,51300038154,-1983.5,VOYAGE#2,CARE ESTABLISHMENT,LD - South Locality,LD - South Cambs - Care,Residential Care
Cambridgeshire County Council,17-Apr-18,51300038163,-1983.5,VOYAGE#2,CARE ESTABLISHMENT,LD - South Locality,LD - South Cambs - Care,Residential Care
Cambridgeshire County Council,17-Apr-18,51300038027,-1983.5,VOYAGE#2,CARE ESTABLISHMENT,LD - South Locality,LD - South Cambs - Care,Residential Care
Cambridgeshire County Council,17-Apr-18,51300025624,-1983.5,VOYAGE#2,CARE ESTABLISHMENT,LD - South Locality,LD - South Cambs - Care,Residential Care
Cambridgeshire County Council,17-Apr-18,51300038128,-1983.5,VOYAGE#2,CARE ESTABLISHMENT,LD - South Locality,LD - South Cambs - Care,Residential Care
Cambridgeshire County Council,17-Apr-18,51300038127,-1983.5,VOYAGE#2,CARE ESTABLISHMENT,LD - South Locality,LD - South Cambs - Care,Residential Care
Cambridgeshire County Council,17-Apr-18,51300025707,-1983.5,VOYAGE#2,CARE ESTABLISHMENT,LD - South Locality,LD - South Cambs - Care,Residential Care
Cambridgeshire County Council,17-Apr-18,51300025733,-1983.5,VOYAGE#2,CARE ESTABLISHMENT,LD - South Locality,LD - South Cambs - Care,Residential Care
Cambridgeshire County Council,17-Apr-18,51300038051,-1983.5,VOYAGE#2,CARE ESTABLISHMENT,LD - South Locality,LD - South Cambs - Care,Residential Care
Cambridgeshire County Council,17-Apr-18,51300025709,-1983.5,VOYAGE#2,CARE ESTABLISHMENT,LD - South Locality,LD - South Cambs - Care,Residential Care
Cambridgeshire County Council,17-Apr-18,51300025722,-1983.5,VOYAGE#2,CARE ESTABLISHMENT,LD - South Locality,LD - South Cambs - Care,Residential Care
Cambridgeshire County Council,17-Apr-18,51300038122,-1983.5,VOYAGE#2,CARE ESTABLISHMENT,LD - South Locality,LD - South Cambs - Care,Residential Care
Cambridgeshire County Council,17-Apr-18,51300025742,-1983.5,VOYAGE#2,CARE ESTABLISHMENT,LD - South Locality,LD - South Cambs - Care,Residential Care
Cambridgeshire County Council,17-Apr-18,51300038042,-1983.5,VOYAGE#2,CARE ESTABLISHMENT,LD - South Locality,LD - South Cambs - Care,Residential Care
Cambridgeshire County Council,17-Apr-18,51300039441,-1983.5,VOYAGE#2,CARE ESTABLISHMENT,LD - South Locality,LD - South Cambs - Special Needs,Residential Care
Cambridgeshire County Council,17-Apr-18,51300039372,-1983.5,VOYAGE#2,CARE ESTABLISHMENT,LD - South Locality,LD - South Cambs - Special Needs,Residential Care
Cambridgeshire County Council,17-Apr-18,51300039491,-1983.5,VOYAGE#2,CARE ESTABLISHMENT,LD - South Locality,LD - South Cambs - Special Needs,Residential Care
Cambridgeshire County Council,17-Apr-18,51300039464,-1983.5,VOYAGE#2,CARE ESTABLISHMENT,LD - South Locality,LD - South Cambs - Special Needs,Residential Care
Cambridgeshire County Council,17-Apr-18,51300039411,-1983.5,VOYAGE#2,CARE ESTABLISHMENT,LD - South Locality,LD - South Cambs - Special Needs,Residential Care
Cambridgeshire County Council,17-Apr-18,51300038181,-1983.5,VOYAGE#2,CARE ESTABLISHMENT,LD - South Locality,LD - South Cambs - Care,Residential Care
Cambridgeshire County Council,17-Apr-18,51300039488,-1983.5,VOYAGE#2,CARE ESTABLISHMENT,LD - South Locality,LD - South Cambs - Special Needs,Residential Care
Cambridgeshire County Council,17-Apr-18,51300039407,-1983.5,VOYAGE#2,CARE ESTABLISHMENT,LD - South Locality,LD - South Cambs - Special Needs,Residential Care
Cambridgeshire County Council,17-Apr-18,51300025755,-1983.5,VOYAGE#2,CARE ESTABLISHMENT,LD - South Locality,LD - South Cambs - Care,Residential Care
Cambridgeshire County Council,17-Apr-18,51300039508,-1983.5,VOYAGE#2,CARE ESTABLISHMENT,LD - South Locality,LD - South Cambs - Special Needs,Residential Care
Cambridgeshire County Council,17-Apr-18,51300039357,-1983.5,VOYAGE#2,CARE ESTABLISHMENT,LD - South Locality,LD - South Cambs - Special Needs,Residential Care
Cambridgeshire County Council,17-Apr-18,51300039511,-1983.5,VOYAGE#2,CARE ESTABLISHMENT,LD - South Locality,LD - South Cambs - Special Needs,Residential Care
Cambridgeshire County Council,17-Apr-18,51300025719,-1983.5,VOYAGE#2,CARE ESTABLISHMENT,LD - South Locality,LD - South Cambs - Care,Residential Care
Cambridgeshire County Council,17-Apr-18,51300039509,-1983.5,VOYAGE#2,CARE ESTABLISHMENT,LD - South Locality,LD - South Cambs - Special Needs,Residential Care
Cambridgeshire County Council,17-Apr-18,51300039487,-1983.5,VOYAGE#2,CARE ESTABLISHMENT,LD - South Locality,LD - South Cambs - Special Needs,Residential Care
Cambridgeshire County Council,17-Apr-18,51300038142,-1983.5,VOYAGE#2,CARE ESTABLISHMENT,LD - South Locality,LD - South Cambs - Care,Residential Care
Cambridgeshire County Council,17-Apr-18,51300038077,-1983.5,VOYAGE#2,CARE ESTABLISHMENT,LD - South Locality,LD - South Cambs - Care,Residential Care
Cambridgeshire County Council,17-Apr-18,51300039455,-1983.5,VOYAGE#2,CARE ESTABLISHMENT,LD - South Locality,LD - South Cambs - Special Needs,Residential Care
Cambridgeshire County Council,17-Apr-18,51300039385,-1983.5,VOYAGE#2,CARE ESTABLISHMENT,LD - South Locality,LD - South Cambs - Special Needs,Residential Care
Cambridgeshire County Council,17-Apr-18,51300039364,-1983.5,VOYAGE#2,CARE ESTABLISHMENT,LD - South Locality,LD - South Cambs - Special Needs,Residential Care
Cambridgeshire County Council,17-Apr-18,51300039479,-1983.5,VOYAGE#2,CARE ESTABLISHMENT,LD - South Locality,LD - South Cambs - Special Needs,Residential Care
Cambridgeshire County Council,17-Apr-18,51300039474,-1983.5,VOYAGE#2,CARE ESTABLISHMENT,LD - South Locality,LD - South Cambs - Special Needs,Residential Care
Cambridgeshire County Council,17-Apr-18,51300039400,-1983.5,VOYAGE#2,CARE ESTABLISHMENT,LD - South Locality,LD - South Cambs - Special Needs,Residential Care
Cambridgeshire County Council,17-Apr-18,51300039358,-1983.5,VOYAGE#2,CARE ESTABLISHMENT,LD - South Locality,LD - South Cambs - Special Needs,Residential Care
Cambridgeshire County Council,17-Apr-18,51300039459,-1983.5,VOYAGE#2,CARE ESTABLISHMENT,LD - South Locality,LD - South Cambs - Special Needs,Residential Care
Cambridgeshire County Council,17-Apr-18,51300039507,-1983.5,VOYAGE#2,CARE ESTABLISHMENT,LD - South Locality,LD - South Cambs - Special Needs,Residential Care
Cambridgeshire County Council,17-Apr-18,51300039409,-1983.5,VOYAGE#2,CARE ESTABLISHMENT,LD - South Locality,LD - South Cambs - Special Needs,Residential Care
Cambridgeshire County Council,17-Apr-18,51300039424,-1983.5,VOYAGE#2,CARE ESTABLISHMENT,LD - South Locality,LD - South Cambs - Special Needs,Residential Care
Cambridgeshire County Council,17-Apr-18,51300039429,-1983.5,VOYAGE#2,CARE ESTABLISHMENT,LD - South Locality,LD - South Cambs - Special Needs,Residential Care
Cambridgeshire County Council,17-Apr-18,51300039470,-1983.5,VOYAGE#2,CARE ESTABLISHMENT,LD - South Locality,LD - South Cambs - Special Needs,Residential Care
Cambridgeshire County Council,17-Apr-18,51300025702,-1983.5,VOYAGE#2,CARE ESTABLISHMENT,LD - South Locality,LD - South Cambs - Care,Residential Care
Cambridgeshire County Council,17-Apr-18,51300038017,-1983.5,VOYAGE#2,CARE ESTABLISHMENT,LD - South Locality,LD - South Cambs - Care,Residential Care
Cambridgeshire County Council,17-Apr-18,51300038058,-1983.5,VOYAGE#2,CARE ESTABLISHMENT,LD - South Locality,LD - South Cambs - Care,Residential Care
Cambridgeshire County Council,17-Apr-18,51300025767,-1983.5,VOYAGE#2,CARE ESTABLISHMENT,LD - South Locality,LD - South Cambs - Care,Residential Care
Cambridgeshire County Council,17-Apr-18,51300025683,-1983.5,VOYAGE#2,CARE ESTABLISHMENT,LD - South Locality,LD - South Cambs - Care,Residential Care
Cambridgeshire County Council,17-Apr-18,51300025736,-1983.5,VOYAGE#2,CARE ESTABLISHMENT,LD - South Locality,LD - South Cambs - Care,Residential Care
Cambridgeshire County Council,17-Apr-18,51300025691,-1983.5,VOYAGE#2,CARE ESTABLISHMENT,LD - South Locality,LD - South Cambs - Care,Residential Care
Cambridgeshire County Council,17-Apr-18,51300038046,-1983.5,VOYAGE#2,CARE ESTABLISHMENT,LD - South Locality,LD - South Cambs - Care,Residential Care
Cambridgeshire County Council,17-Apr-18,51300025646,-1983.5,VOYAGE#2,CARE ESTABLISHMENT,LD - South Locality,LD - South Cambs - Care,Residential Care
Cambridgeshire County Council,17-Apr-18,51300038078,-1983.5,VOYAGE#2,CARE ESTABLISHMENT,LD - South Locality,LD - South Cambs - Care,Residential Care
Cambridgeshire County Council,17-Apr-18,51300025726,-1983.5,VOYAGE#2,CARE ESTABLISHMENT,LD - South Locality,LD - South Cambs - Care,Residential Care
Cambridgeshire County Council,17-Apr-18,51300025678,-1983.5,VOYAGE#2,CARE ESTABLISHMENT,LD - South Locality,LD - South Cambs - Care,Residential Care
Cambridgeshire County Council,17-Apr-18,51300025762,-1983.5,VOYAGE#2,CARE ESTABLISHMENT,LD - South Locality,LD - South Cambs - Care,Residential Care
Cambridgeshire County Council,17-Apr-18,51300025703,-1983.5,VOYAGE#2,CARE ESTABLISHMENT,LD - South Locality,LD - South Cambs - Care,Residential Care
Cambridgeshire County Council,17-Apr-18,51300025614,-1983.5,VOYAGE#2,CARE ESTABLISHMENT,LD - South Locality,LD - South Cambs - Care,Residential Care
Cambridgeshire County Council,17-Apr-18,51300025739,-1983.5,VOYAGE#2,CARE ESTABLISHMENT,LD - South Locality,LD - South Cambs - Care,Residential Care
Cambridgeshire County Council,17-Apr-18,51300038123,-1983.5,VOYAGE#2,CARE ESTABLISHMENT,LD - South Locality,LD - South Cambs - Care,Residential Care
Cambridgeshire County Council,17-Apr-18,51300038022,-1983.5,VOYAGE#2,CARE ESTABLISHMENT,LD - South Locality,LD - South Cambs - Care,Residential Care
Cambridgeshire County Council,17-Apr-18,51300025706,-1983.5,VOYAGE#2,CARE ESTABLISHMENT,LD - South Locality,LD - South Cambs - Care,Residential Care
Cambridgeshire County Council,17-Apr-18,51300038106,-1983.5,VOYAGE#2,CARE ESTABLISHMENT,LD - South Locality,LD - South Cambs - Care,Residential Care
Cambridgeshire County Council,17-Apr-18,51300038020,-1983.5,VOYAGE#2,CARE ESTABLISHMENT,LD - South Locality,LD - South Cambs - Care,Residential Care
Cambridgeshire County Council,17-Apr-18,51300025685,-1983.5,VOYAGE#2,CARE ESTABLISHMENT,LD - South Locality,LD - South Cambs - Care,Residential Care
Cambridgeshire County Council,17-Apr-18,51300038164,-1983.5,VOYAGE#2,CARE ESTABLISHMENT,LD - South Locality,LD - South Cambs - Care,Residential Care
Cambridgeshire County Council,17-Apr-18,51300025661,-1983.5,VOYAGE#2,CARE ESTABLISHMENT,LD - South Locality,LD - South Cambs - Care,Residential Care
Cambridgeshire County Council,17-Apr-18,51300025735,-1983.5,VOYAGE#2,CARE ESTABLISHMENT,LD - South Locality,LD - South Cambs - Care,Residential Care
Cambridgeshire County Council,17-Apr-18,51300038145,-1983.5,VOYAGE#2,CARE ESTABLISHMENT,LD - South Locality,LD - South Cambs - Care,Residential Care
Cambridgeshire County Council,17-Apr-18,51300038136,-1983.5,VOYAGE#2,CARE ESTABLISHMENT,LD - South Locality,LD - South Cambs - Care,Residential Care
Cambridgeshire County Council,17-Apr-18,51300038028,-1983.5,VOYAGE#2,CARE ESTABLISHMENT,LD - South Locality,LD - South Cambs - Care,Residential Care
Cambridgeshire County Council,17-Apr-18,51300025730,-1983.5,VOYAGE#2,CARE ESTABLISHMENT,LD - South Locality,LD - South Cambs - Care,Residential Care
Cambridgeshire County Council,17-Apr-18,51300038150,-1983.5,VOYAGE#2,CARE ESTABLISHMENT,LD - South Locality,LD - South Cambs - Care,Residential Care
Cambridgeshire County Council,17-Apr-18,51300039498,-1983.5,VOYAGE#2,CARE ESTABLISHMENT,LD - South Locality,LD - South Cambs - Special Needs,Residential Care
Cambridgeshire County Council,17-Apr-18,51300039398,-1983.5,VOYAGE#2,CARE ESTABLISHMENT,LD - South Locality,LD - South Cambs - Special Needs,Residential Care
Cambridgeshire County Council,17-Apr-18,51300039386,-1983.5,VOYAGE#2,CARE ESTABLISHMENT,LD - South Locality,LD - South Cambs - Special Needs,Residential Care
Cambridgeshire County Council,17-Apr-18,51300038121,-1983.5,VOYAGE#2,CARE ESTABLISHMENT,LD - South Locality,LD - South Cambs - Care,Residential Care
Cambridgeshire County Council,17-Apr-18,51300038144,-1983.5,VOYAGE#2,CARE ESTABLISHMENT,LD - South Locality,LD - South Cambs - Care,Residential Care
Cambridgeshire County Council,17-Apr-18,51300038052,-1983.5,VOYAGE#2,CARE ESTABLISHMENT,LD - South Locality,LD - South Cambs - Care,Residential Care
Cambridgeshire County Council,17-Apr-18,51300038023,-1983.5,VOYAGE#2,CARE ESTABLISHMENT,LD - South Locality,LD - South Cambs - Care,Residential Care
Cambridgeshire County Council,17-Apr-18,51300038171,-1983.5,VOYAGE#2,CARE ESTABLISHMENT,LD - South Locality,LD - South Cambs - Care,Residential Care
Cambridgeshire County Council,17-Apr-18,51300038038,-1983.5,VOYAGE#2,CARE ESTABLISHMENT,LD - South Locality,LD - South Cambs - Care,Residential Care
Cambridgeshire County Council,17-Apr-18,51300025700,-1983.5,VOYAGE#2,CARE ESTABLISHMENT,LD - South Locality,LD - South Cambs - Care,Residential Care
Cambridgeshire County Council,17-Apr-18,51300025771,-1983.5,VOYAGE#2,CARE ESTABLISHMENT,LD - South Locality,LD - South Cambs - Care,Residential Care
Cambridgeshire County Council,17-Apr-18,51300039496,-1983.5,VOYAGE#2,CARE ESTABLISHMENT,LD - South Locality,LD - South Cambs - Special Needs,Residential Care
Cambridgeshire County Council,17-Apr-18,51300039393,-1983.5,VOYAGE#2,CARE ESTABLISHMENT,LD - South Locality,LD - South Cambs - Special Needs,Residential Care
Cambridgeshire County Council,17-Apr-18,51300025631,-1983.5,VOYAGE#2,CARE ESTABLISHMENT,LD - South Locality,LD - South Cambs - Care,Residential Care
Cambridgeshire County Council,17-Apr-18,51300039457,-1983.5,VOYAGE#2,CARE ESTABLISHMENT,LD - South Locality,LD - South Cambs - Special Needs,Residential Care
Cambridgeshire County Council,17-Apr-18,51300039475,-1983.5,VOYAGE#2,CARE ESTABLISHMENT,LD - South Locality,LD - South Cambs - Special Needs,Residential Care
Cambridgeshire County Council,17-Apr-18,51300039473,-1983.5,VOYAGE#2,CARE ESTABLISHMENT,LD - South Locality,LD - South Cambs - Special Needs,Residential Care
Cambridgeshire County Council,17-Apr-18,51300039413,-1983.5,VOYAGE#2,CARE ESTABLISHMENT,LD - South Locality,LD - South Cambs - Special Needs,Residential Care
Cambridgeshire County Council,17-Apr-18,51300038011,-1983.5,VOYAGE#2,CARE ESTABLISHMENT,LD - South Locality,LD - South Cambs - Care,Residential Care
Cambridgeshire County Council,17-Apr-18,51300038108,-1983.5,VOYAGE#2,CARE ESTABLISHMENT,LD - South Locality,LD - South Cambs - Care,Residential Care
Cambridgeshire County Council,17-Apr-18,51300025741,-1983.5,VOYAGE#2,CARE ESTABLISHMENT,LD - South Locality,LD - South Cambs - Care,Residential Care
Cambridgeshire County Council,17-Apr-18,51300038093,-1983.5,VOYAGE#2,CARE ESTABLISHMENT,LD - South Locality,LD - South Cambs - Care,Residential Care
Cambridgeshire County Council,17-Apr-18,51300025641,-1983.5,VOYAGE#2,CARE ESTABLISHMENT,LD - South Locality,LD - South Cambs - Care,Residential Care
Cambridgeshire County Council,17-Apr-18,51300039442,-1983.5,VOYAGE#2,CARE ESTABLISHMENT,LD - South Locality,LD - South Cambs - Special Needs,Residential Care
Cambridgeshire County Council,17-Apr-18,51300038063,-1983.5,VOYAGE#2,CARE ESTABLISHMENT,LD - South Locality,LD - South Cambs - Care,Residential Care
Cambridgeshire County Council,17-Apr-18,51300038031,-1983.5,VOYAGE#2,CARE ESTABLISHMENT,LD - South Locality,LD - South Cambs - Care,Residential Care
Cambridgeshire County Council,17-Apr-18,51300039462,-1983.5,VOYAGE#2,CARE ESTABLISHMENT,LD - South Locality,LD - South Cambs - Special Needs,Residential Care
Cambridgeshire County Council,17-Apr-18,51300039356,-1983.5,VOYAGE#2,CARE ESTABLISHMENT,LD - South Locality,LD - South Cambs - Special Needs,Residential Care
Cambridgeshire County Council,17-Apr-18,51300039404,-1983.5,VOYAGE#2,CARE ESTABLISHMENT,LD - South Locality,LD - South Cambs - Special Needs,Residential Care
Cambridgeshire County Council,17-Apr-18,51300039365,-1983.5,VOYAGE#2,CARE ESTABLISHMENT,LD - South Locality,LD - South Cambs - Special Needs,Residential Care
Cambridgeshire County Council,17-Apr-18,51300039471,-1983.5,VOYAGE#2,CARE ESTABLISHMENT,LD - South Locality,LD - South Cambs - Special Needs,Residential Care
Cambridgeshire County Council,17-Apr-18,51300038115,-1983.5,VOYAGE#2,CARE ESTABLISHMENT,LD - South Locality,LD - South Cambs - Care,Residential Care
Cambridgeshire County Council,17-Apr-18,51300025763,-1983.5,VOYAGE#2,CARE ESTABLISHMENT,LD - South Locality,LD - South Cambs - Care,Residential Care
Cambridgeshire County Council,17-Apr-18,51300038084,-1983.5,VOYAGE#2,CARE ESTABLISHMENT,LD - South Locality,LD - South Cambs - Care,Residential Care
Cambridgeshire County Council,17-Apr-18,51300038032,-1983.5,VOYAGE#2,CARE ESTABLISHMENT,LD - South Locality,LD - South Cambs - Care,Residential Care
Cambridgeshire County Council,17-Apr-18,51300025718,-1983.5,VOYAGE#2,CARE ESTABLISHMENT,LD - South Locality,LD - South Cambs - Care,Residential Care
Cambridgeshire County Council,17-Apr-18,51300038085,-1983.5,VOYAGE#2,CARE ESTABLISHMENT,LD - South Locality,LD - South Cambs - Care,Residential Care
Cambridgeshire County Council,17-Apr-18,51300025680,-1983.5,VOYAGE#2,CARE ESTABLISHMENT,LD - South Locality,LD - South Cambs - Care,Residential Care
Cambridgeshire County Council,17-Apr-18,51300025694,-1983.5,VOYAGE#2,CARE ESTABLISHMENT,LD - South Locality,LD - South Cambs - Care,Residential Care
Cambridgeshire County Council,17-Apr-18,51300039363,-1983.5,VOYAGE#2,CARE ESTABLISHMENT,LD - South Locality,LD - South Cambs - Special Needs,Residential Care
Cambridgeshire County Council,17-Apr-18,51300039397,-1983.5,VOYAGE#2,CARE ESTABLISHMENT,LD - South Locality,LD - South Cambs - Special Needs,Residential Care
Cambridgeshire County Council,17-Apr-18,51300039430,-1983.5,VOYAGE#2,CARE ESTABLISHMENT,LD - South Locality,LD - South Cambs - Special Needs,Residential Care
Cambridgeshire County Council,17-Apr-18,51300039360,-1983.5,VOYAGE#2,CARE ESTABLISHMENT,LD - South Locality,LD - South Cambs - Special Needs,Residential Care
Cambridgeshire County Council,17-Apr-18,51300039389,-1983.5,VOYAGE#2,CARE ESTABLISHMENT,LD - South Locality,LD - South Cambs - Special Needs,Residential Care
Cambridgeshire County Council,17-Apr-18,51300039469,-1983.5,VOYAGE#2,CARE ESTABLISHMENT,LD - South Locality,LD - South Cambs - Special Needs,Residential Care
Cambridgeshire County Council,17-Apr-18,51300039354,-1983.5,VOYAGE#2,CARE ESTABLISHMENT,LD - South Locality,LD - South Cambs - Special Needs,Residential Care
Cambridgeshire County Council,17-Apr-18,51300039505,-1983.5,VOYAGE#2,CARE ESTABLISHMENT,LD - South Locality,LD - South Cambs - Special Needs,Residential Care
Cambridgeshire County Council,17-Apr-18,51300039369,-1983.5,VOYAGE#2,CARE ESTABLISHMENT,LD - South Locality,LD - South Cambs - Special Needs,Residential Care
Cambridgeshire County Council,17-Apr-18,51300039412,-1983.5,VOYAGE#2,CARE ESTABLISHMENT,LD - South Locality,LD - South Cambs - Special Needs,Residential Care
Cambridgeshire County Council,17-Apr-18,51300039377,-1983.5,VOYAGE#2,CARE ESTABLISHMENT,LD - South Locality,LD - South Cambs - Special Needs,Residential Care
Cambridgeshire County Council,17-Apr-18,51300038076,-1983.5,VOYAGE#2,CARE ESTABLISHMENT,LD - South Locality,LD - South Cambs - Care,Residential Care
Cambridgeshire County Council,17-Apr-18,51300039497,-1983.5,VOYAGE#2,CARE ESTABLISHMENT,LD - South Locality,LD - South Cambs - Special Needs,Residential Care
Cambridgeshire County Council,17-Apr-18,51300039361,-1983.5,VOYAGE#2,CARE ESTABLISHMENT,LD - South Locality,LD - South Cambs - Special Needs,Residential Care
Cambridgeshire County Council,17-Apr-18,51300039506,-1983.5,VOYAGE#2,CARE ESTABLISHMENT,LD - South Locality,LD - South Cambs - Special Needs,Residential Care
Cambridgeshire County Council,17-Apr-18,51300039452,-1983.5,VOYAGE#2,CARE ESTABLISHMENT,LD - South Locality,LD - South Cambs - Special Needs,Residential Care
Cambridgeshire County Council,17-Apr-18,51300025713,-1983.5,VOYAGE#2,CARE ESTABLISHMENT,LD - South Locality,LD - South Cambs - Care,Residential Care
Cambridgeshire County Council,17-Apr-18,51300025754,-1983.5,VOYAGE#2,CARE ESTABLISHMENT,LD - South Locality,LD - South Cambs - Care,Residential Care
Cambridgeshire County Council,17-Apr-18,51300025643,-1983.5,VOYAGE#2,CARE ESTABLISHMENT,LD - South Locality,LD - South Cambs - Care,Residential Care
Cambridgeshire County Council,17-Apr-18,51300038053,-1983.5,VOYAGE#2,CARE ESTABLISHMENT,LD - South Locality,LD - South Cambs - Care,Residential Care
Cambridgeshire County Council,01-Apr-18,51300050638,-1950.14,CONQUEST CARE HOMES PETERBOROUGH#2,CARE ESTABLISHMENT,LD - Hunts Locality,LD - Huntigndonshire - Special Needs,Residential Care
Cambridgeshire County Council,08-Apr-18,51300050655,-1950.14,CONQUEST CARE HOMES PETERBOROUGH#2,CARE ESTABLISHMENT,LD - Hunts Locality,LD - Huntigndonshire - Special Needs,Residential Care
Cambridgeshire County Council,13-Apr-18,51300031382,-1950.14,CONQUEST CARE HOMES PETERBOROUGH#2,CARE ESTABLISHMENT,LD - Hunts Locality,LD - Huntigndonshire - Special Needs,Residential Care
Cambridgeshire County Council,13-Apr-18,51300031374,-1950.14,CONQUEST CARE HOMES PETERBOROUGH#2,CARE ESTABLISHMENT,LD - Hunts Locality,LD - Huntigndonshire - Special Needs,Residential Care
Cambridgeshire County Council,13-Apr-18,51300031365,-1950.14,CONQUEST CARE HOMES PETERBOROUGH#2,CARE ESTABLISHMENT,LD - Hunts Locality,LD - Huntigndonshire - Special Needs,Residential Care
Cambridgeshire County Council,15-Apr-18,51300050647,-1950.14,CONQUEST CARE HOMES PETERBOROUGH#2,CARE ESTABLISHMENT,LD - Hunts Locality,LD - Huntigndonshire - Special Needs,Residential Care
Cambridgeshire County Council,15-Apr-18,65300004273,-1902.33,GRIFFIN LODGE,CARE ESTABLISHMENT,LD - South Locality,LD - South Cambs - Special Needs,Residential Care
Cambridgeshire County Council,22-Apr-18,65300001473,-1902.33,GRIFFIN LODGE,CARE ESTABLISHMENT,LD - South Locality,LD - South Cambs - Special Needs,Residential Care
Cambridgeshire County Council,29-Apr-18,65300008304,-1902.33,GRIFFIN LODGE,CARE ESTABLISHMENT,LD - South Locality,LD - South Cambs - Special Needs,Residential Care
Cambridgeshire County Council,08-Apr-18,65300004480,-1868.51,CARETECH COMMUNITY SERVICES LTD (161 WOOTTON RD)#1,CARE ESTABLISHMENT,LD - Hunts Locality,LD - Huntigndonshire - Special Needs,Residential Care
Cambridgeshire County Council,15-Apr-18,65300000551,-1868.51,CARETECH COMMUNITY SERVICES LTD (161 WOOTTON RD)#1,CARE ESTABLISHMENT,LD - Hunts Locality,LD - Huntigndonshire - Special Needs,Residential Care
Cambridgeshire County Council,22-Apr-18,65300008155,-1868.51,CARETECH COMMUNITY SERVICES LTD (161 WOOTTON RD)#1,CARE ESTABLISHMENT,LD - Hunts Locality,LD - Huntigndonshire - Special Needs,Residential Care
Cambridgeshire County Council,29-Apr-18,65300005743,-1868.51,CARETECH COMMUNITY SERVICES LTD (161 WOOTTON RD)#1,CARE ESTABLISHMENT,LD - Hunts Locality,LD - Huntigndonshire - Special Needs,Residential Care
Cambridgeshire County Council,26-Apr-18,51300067425,-1864.89,EAGLE WOOD NEUROLOGICAL CARE,CARE ESTABLISHMENT,OPMH - City & South,Older People Mental Health City & South,Nursing Care
Cambridgeshire County Council,26-Apr-18,51300067448,-1864.89,EAGLE WOOD NEUROLOGICAL CARE,CARE ESTABLISHMENT,OPMH - City & South,Older People Mental Health City & South,Nursing Care
Cambridgeshire County Council,26-Apr-18,51300067480,-1864.89,EAGLE WOOD NEUROLOGICAL CARE,CARE ESTABLISHMENT,OPMH - City & South,Older People Mental Health City & South,Nursing Care
Cambridgeshire County Council,26-Apr-18,51300067429,-1864.89,EAGLE WOOD NEUROLOGICAL CARE,CARE ESTABLISHMENT,OPMH - City & South,Older People Mental Health City & South,Nursing Care
Cambridgeshire County Council,26-Apr-18,51300067424,-1864.89,EAGLE WOOD NEUROLOGICAL CARE,CARE ESTABLISHMENT,OPMH - City & South,Older People Mental Health City & South,Nursing Care
Cambridgeshire County Council,26-Apr-18,51300067490,-1864.89,EAGLE WOOD NEUROLOGICAL CARE,CARE ESTABLISHMENT,OPMH - City & South,Older People Mental Health City & South,Nursing Care
Cambridgeshire County Council,26-Apr-18,51300067427,-1864.89,EAGLE WOOD NEUROLOGICAL CARE,CARE ESTABLISHMENT,OPMH - City & South,Older People Mental Health City & South,Nursing Care
Cambridgeshire County Council,26-Apr-18,51300067453,-1864.89,EAGLE WOOD NEUROLOGICAL CARE,CARE ESTABLISHMENT,OPMH - City & South,Older People Mental Health City & South,Nursing Care
Cambridgeshire County Council,26-Apr-18,51300067462,-1864.89,EAGLE WOOD NEUROLOGICAL CARE,CARE ESTABLISHMENT,OPMH - City & South,Older People Mental Health City & South,Nursing Care
Cambridgeshire County Council,26-Apr-18,51300067460,-1864.89,EAGLE WOOD NEUROLOGICAL CARE,CARE ESTABLISHMENT,OPMH - City & South,Older People Mental Health City & South,Nursing Care
Cambridgeshire County Council,26-Apr-18,51300067497,-1864.89,EAGLE WOOD NEUROLOGICAL CARE,CARE ESTABLISHMENT,OPMH - City & South,Older People Mental Health City & South,Nursing Care
Cambridgeshire County Council,26-Apr-18,51300067422,-1864.89,EAGLE WOOD NEUROLOGICAL CARE,CARE ESTABLISHMENT,OPMH - City & South,Older People Mental Health City & South,Nursing Care
Cambridgeshire County Council,26-Apr-18,51300067491,-1864.89,EAGLE WOOD NEUROLOGICAL CARE,CARE ESTABLISHMENT,OPMH - City & South,Older People Mental Health City & South,Nursing Care
Cambridgeshire County Council,26-Apr-18,51300067470,-1864.89,EAGLE WOOD NEUROLOGICAL CARE,CARE ESTABLISHMENT,OPMH - City & South,Older People Mental Health City & South,Nursing Care
Cambridgeshire County Council,26-Apr-18,51300067478,-1864.89,EAGLE WOOD NEUROLOGICAL CARE,CARE ESTABLISHMENT,OPMH - City & South,Older People Mental Health City & South,Nursing Care
Cambridgeshire County Council,26-Apr-18,51300067439,-1864.89,EAGLE WOOD NEUROLOGICAL CARE,CARE ESTABLISHMENT,OPMH - City & South,Older People Mental Health City & South,Nursing Care
Cambridgeshire County Council,26-Apr-18,51300067428,-1864.89,EAGLE WOOD NEUROLOGICAL CARE,CARE ESTABLISHMENT,OPMH - City & South,Older People Mental Health City & South,Nursing Care
Cambridgeshire County Council,26-Apr-18,51300067467,-1864.89,EAGLE WOOD NEUROLOGICAL CARE,CARE ESTABLISHMENT,OPMH - City & South,Older People Mental Health City & South,Nursing Care
Cambridgeshire County Council,22-Apr-18,65300005338,-1864.15,LANSDOWNE CARE SERVICES,CARE ESTABLISHMENT,LD - Hunts Locality,LD - Huntigndonshire - Special Needs,Residential Care
Cambridgeshire County Council,29-Apr-18,65300001806,-1864.15,LANSDOWNE CARE SERVICES,CARE ESTABLISHMENT,LD - Hunts Locality,LD - Huntigndonshire - Special Needs,Residential Care
Cambridgeshire County Council,01-Apr-18,65300003547,-1826.68,VOYAGE#2,CARE ESTABLISHMENT,LD - South Locality,LD - South Cambs - Special Needs,Residential Care
Cambridgeshire County Council,08-Apr-18,65300002042,-1826.68,VOYAGE#2,CARE ESTABLISHMENT,LD - South Locality,LD - South Cambs - Special Needs,Residential Care
Cambridgeshire County Council,15-Apr-18,65300001556,-1826.68,VOYAGE#2,CARE ESTABLISHMENT,LD - South Locality,LD - South Cambs - Special Needs,Residential Care
Cambridgeshire County Council,22-Apr-18,65300005015,-1826.68,VOYAGE#2,CARE ESTABLISHMENT,LD - South Locality,LD - South Cambs - Special Needs,Residential Care
Cambridgeshire County Council,29-Apr-18,65300007545,-1826.68,VOYAGE#2,CARE ESTABLISHMENT,LD - South Locality,LD - South Cambs - Special Needs,Residential Care
Cambridgeshire County Council,01-Apr-18,51300050602,-1806,VOYAGE#2,CARE ESTABLISHMENT,LD - South Locality,LD - South Cambs - Special Needs,Residential Care
Cambridgeshire County Council,08-Apr-18,51300050580,-1806,VOYAGE#2,CARE ESTABLISHMENT,LD - South Locality,LD - South Cambs - Special Needs,Residential Care
Cambridgeshire County Council,15-Apr-18,51300050534,-1806,VOYAGE#2,CARE ESTABLISHMENT,LD - South Locality,LD - South Cambs - Special Needs,Residential Care
Cambridgeshire County Council,17-Apr-18,51300031237,-1806,VOYAGE#2,CARE ESTABLISHMENT,LD - South Locality,LD - South Cambs - Special Needs,Residential Care
Cambridgeshire County Council,17-Apr-18,51300031278,-1806,VOYAGE#2,CARE ESTABLISHMENT,LD - South Locality,LD - South Cambs - Special Needs,Residential Care
Cambridgeshire County Council,17-Apr-18,51300031213,-1806,VOYAGE#2,CARE ESTABLISHMENT,LD - South Locality,LD - South Cambs - Special Needs,Residential Care
Cambridgeshire County Council,17-Apr-18,51300031323,-1806,VOYAGE#2,CARE ESTABLISHMENT,LD - South Locality,LD - South Cambs - Special Needs,Residential Care
Cambridgeshire County Council,17-Apr-18,51300031264,-1806,VOYAGE#2,CARE ESTABLISHMENT,LD - South Locality,LD - South Cambs - Special Needs,Residential Care
Cambridgeshire County Council,17-Apr-18,51300031320,-1806,VOYAGE#2,CARE ESTABLISHMENT,LD - South Locality,LD - South Cambs - Special Needs,Residential Care
Cambridgeshire County Council,17-Apr-18,51300031284,-1806,VOYAGE#2,CARE ESTABLISHMENT,LD - South Locality,LD - South Cambs - Special Needs,Residential Care
Cambridgeshire County Council,17-Apr-18,51300031245,-1806,VOYAGE#2,CARE ESTABLISHMENT,LD - South Locality,LD - South Cambs - Special Needs,Residential Care
Cambridgeshire County Council,17-Apr-18,51300031256,-1806,VOYAGE#2,CARE ESTABLISHMENT,LD - South Locality,LD - South Cambs - Special Needs,Residential Care
Cambridgeshire County Council,17-Apr-18,51300031241,-1806,VOYAGE#2,CARE ESTABLISHMENT,LD - South Locality,LD - South Cambs - Special Needs,Residential Care
Cambridgeshire County Council,17-Apr-18,51300031276,-1806,VOYAGE#2,CARE ESTABLISHMENT,LD - South Locality,LD - South Cambs - Special Needs,Residential Care
Cambridgeshire County Council,17-Apr-18,51300031329,-1806,VOYAGE#2,CARE ESTABLISHMENT,LD - South Locality,LD - South Cambs - Special Needs,Residential Care
Cambridgeshire County Council,17-Apr-18,51300031288,-1806,VOYAGE#2,CARE ESTABLISHMENT,LD - South Locality,LD - South Cambs - Special Needs,Residential Care
Cambridgeshire County Council,17-Apr-18,51300031228,-1806,VOYAGE#2,CARE ESTABLISHMENT,LD - South Locality,LD - South Cambs - Special Needs,Residential Care
Cambridgeshire County Council,17-Apr-18,51300031291,-1806,VOYAGE#2,CARE ESTABLISHMENT,LD - South Locality,LD - South Cambs - Special Needs,Residential Care
Cambridgeshire County Council,17-Apr-18,51300031252,-1806,VOYAGE#2,CARE ESTABLISHMENT,LD - South Locality,LD - South Cambs - Special Needs,Residential Care
Cambridgeshire County Council,17-Apr-18,51300031293,-1806,VOYAGE#2,CARE ESTABLISHMENT,LD - South Locality,LD - South Cambs - Special Needs,Residential Care
Cambridgeshire County Council,17-Apr-18,51300031232,-1806,VOYAGE#2,CARE ESTABLISHMENT,LD - South Locality,LD - South Cambs - Special Needs,Residential Care
Cambridgeshire County Council,17-Apr-18,51300031315,-1806,VOYAGE#2,CARE ESTABLISHMENT,LD - South Locality,LD - South Cambs - Special Needs,Residential Care
Cambridgeshire County Council,17-Apr-18,51300031308,-1806,VOYAGE#2,CARE ESTABLISHMENT,LD - South Locality,LD - South Cambs - Special Needs,Residential Care
Cambridgeshire County Council,17-Apr-18,51300031311,-1806,VOYAGE#2,CARE ESTABLISHMENT,LD - South Locality,LD - South Cambs - Special Needs,Residential Care
Cambridgeshire County Council,17-Apr-18,51300031261,-1806,VOYAGE#2,CARE ESTABLISHMENT,LD - South Locality,LD - South Cambs - Special Needs,Residential Care
Cambridgeshire County Council,17-Apr-18,51300031246,-1806,VOYAGE#2,CARE ESTABLISHMENT,LD - South Locality,LD - South Cambs - Special Needs,Residential Care
Cambridgeshire County Council,17-Apr-18,51300031270,-1806,VOYAGE#2,CARE ESTABLISHMENT,LD - South Locality,LD - South Cambs - Special Needs,Residential Care
Cambridgeshire County Council,17-Apr-18,51300031210,-1806,VOYAGE#2,CARE ESTABLISHMENT,LD - South Locality,LD - South Cambs - Special Needs,Residential Care
Cambridgeshire County Council,17-Apr-18,51300031259,-1806,VOYAGE#2,CARE ESTABLISHMENT,LD - South Locality,LD - South Cambs - Special Needs,Residential Care
Cambridgeshire County Council,17-Apr-18,51300031227,-1806,VOYAGE#2,CARE ESTABLISHMENT,LD - South Locality,LD - South Cambs - Special Needs,Residential Care
Cambridgeshire County Council,17-Apr-18,51300031322,-1806,VOYAGE#2,CARE ESTABLISHMENT,LD - South Locality,LD - South Cambs - Special Needs,Residential Care
Cambridgeshire County Council,17-Apr-18,51300031236,-1806,VOYAGE#2,CARE ESTABLISHMENT,LD - South Locality,LD - South Cambs - Special Needs,Residential Care
Cambridgeshire County Council,17-Apr-18,51300031283,-1806,VOYAGE#2,CARE ESTABLISHMENT,LD - South Locality,LD - South Cambs - Special Needs,Residential Care
Cambridgeshire County Council,17-Apr-18,51300031324,-1806,VOYAGE#2,CARE ESTABLISHMENT,LD - South Locality,LD - South Cambs - Special Needs,Residential Care
Cambridgeshire County Council,17-Apr-18,51300031224,-1806,VOYAGE#2,CARE ESTABLISHMENT,LD - South Locality,LD - South Cambs - Special Needs,Residential Care
Cambridgeshire County Council,17-Apr-18,51300031292,-1806,VOYAGE#2,CARE ESTABLISHMENT,LD - South Locality,LD - South Cambs - Special Needs,Residential Care
Cambridgeshire County Council,17-Apr-18,51300031298,-1806,VOYAGE#2,CARE ESTABLISHMENT,LD - South Locality,LD - South Cambs - Special Needs,Residential Care
Cambridgeshire County Council,17-Apr-18,51300031289,-1806,VOYAGE#2,CARE ESTABLISHMENT,LD - South Locality,LD - South Cambs - Special Needs,Residential Care
Cambridgeshire County Council,17-Apr-18,51300031327,-1806,VOYAGE#2,CARE ESTABLISHMENT,LD - South Locality,LD - South Cambs - Special Needs,Residential Care
Cambridgeshire County Council,17-Apr-18,51300031215,-1806,VOYAGE#2,CARE ESTABLISHMENT,LD - South Locality,LD - South Cambs - Special Needs,Residential Care
Cambridgeshire County Council,17-Apr-18,51300031229,-1806,VOYAGE#2,CARE ESTABLISHMENT,LD - South Locality,LD - South Cambs - Special Needs,Residential Care
Cambridgeshire County Council,17-Apr-18,51300031216,-1806,VOYAGE#2,CARE ESTABLISHMENT,LD - South Locality,LD - South Cambs - Special Needs,Residential Care
Cambridgeshire County Council,17-Apr-18,51300031218,-1806,VOYAGE#2,CARE ESTABLISHMENT,LD - South Locality,LD - South Cambs - Special Needs,Residential Care
Cambridgeshire County Council,17-Apr-18,51300031281,-1806,VOYAGE#2,CARE ESTABLISHMENT,LD - South Locality,LD - South Cambs - Special Needs,Residential Care
Cambridgeshire County Council,17-Apr-18,51300031299,-1806,VOYAGE#2,CARE ESTABLISHMENT,LD - South Locality,LD - South Cambs - Special Needs,Residential Care
Cambridgeshire County Council,17-Apr-18,51300031247,-1806,VOYAGE#2,CARE ESTABLISHMENT,LD - South Locality,LD - South Cambs - Special Needs,Residential Care
Cambridgeshire County Council,17-Apr-18,51300031223,-1806,VOYAGE#2,CARE ESTABLISHMENT,LD - South Locality,LD - South Cambs - Special Needs,Residential Care
Cambridgeshire County Council,17-Apr-18,51300031313,-1806,VOYAGE#2,CARE ESTABLISHMENT,LD - South Locality,LD - South Cambs - Special Needs,Residential Care
Cambridgeshire County Council,17-Apr-18,51300031316,-1806,VOYAGE#2,CARE ESTABLISHMENT,LD - South Locality,LD - South Cambs - Special Needs,Residential Care
Cambridgeshire County Council,17-Apr-18,51300031274,-1806,VOYAGE#2,CARE ESTABLISHMENT,LD - South Locality,LD - South Cambs - Special Needs,Residential Care
Cambridgeshire County Council,17-Apr-18,51300031212,-1806,VOYAGE#2,CARE ESTABLISHMENT,LD - South Locality,LD - South Cambs - Special Needs,Residential Care
Cambridgeshire County Council,17-Apr-18,51300031319,-1806,VOYAGE#2,CARE ESTABLISHMENT,LD - South Locality,LD - South Cambs - Special Needs,Residential Care
Cambridgeshire County Council,17-Apr-18,51300031248,-1806,VOYAGE#2,CARE ESTABLISHMENT,LD - South Locality,LD - South Cambs - Special Needs,Residential Care
Cambridgeshire County Council,17-Apr-18,51300031275,-1806,VOYAGE#2,CARE ESTABLISHMENT,LD - South Locality,LD - South Cambs - Special Needs,Residential Care
Cambridgeshire County Council,17-Apr-18,51300031307,-1806,VOYAGE#2,CARE ESTABLISHMENT,LD - South Locality,LD - South Cambs - Special Needs,Residential Care
Cambridgeshire County Council,17-Apr-18,51300031258,-1806,VOYAGE#2,CARE ESTABLISHMENT,LD - South Locality,LD - South Cambs - Special Needs,Residential Care
Cambridgeshire County Council,17-Apr-18,51300031290,-1806,VOYAGE#2,CARE ESTABLISHMENT,LD - South Locality,LD - South Cambs - Special Needs,Residential Care
Cambridgeshire County Council,17-Apr-18,51300031287,-1806,VOYAGE#2,CARE ESTABLISHMENT,LD - South Locality,LD - South Cambs - Special Needs,Residential Care
Cambridgeshire County Council,17-Apr-18,51300031305,-1806,VOYAGE#2,CARE ESTABLISHMENT,LD - South Locality,LD - South Cambs - Special Needs,Residential Care
Cambridgeshire County Council,22-Apr-18,51300050557,-1806,VOYAGE#2,CARE ESTABLISHMENT,LD - South Locality,LD - South Cambs - Special Needs,Residential Care
Cambridgeshire County Council,26-Apr-18,51300058793,-1800,GRANTA HOUSING- 71 /73 FEN ROAD,CARE ESTABLISHMENT,LD - South Locality,LD - South Cambs - Special Needs,Nursing Care
Cambridgeshire County Council,26-Apr-18,51300058799,-1800,GRANTA HOUSING- 71 /73 FEN ROAD,CARE ESTABLISHMENT,LD - South Locality,LD - South Cambs - Special Needs,Nursing Care
Cambridgeshire County Council,26-Apr-18,51300071512,-1800,GRANTA HOUSING- 71 /73 FEN ROAD,CARE ESTABLISHMENT,LD - South Locality,LD - South Cambs - Special Needs,Nursing Care
Cambridgeshire County Council,26-Apr-18,51300071503,-1800,GRANTA HOUSING- 71 /73 FEN ROAD,CARE ESTABLISHMENT,LD - South Locality,LD - South Cambs - Special Needs,Nursing Care
Cambridgeshire County Council,26-Apr-18,51300058800,-1800,GRANTA HOUSING- 71 /73 FEN ROAD,CARE ESTABLISHMENT,LD - South Locality,LD - South Cambs - Special Needs,Nursing Care
Cambridgeshire County Council,26-Apr-18,51300036158,-1800,GRANTA HOUSING- 71 /73 FEN ROAD,CARE ESTABLISHMENT,LD - South Locality,LD - South Cambs - Special Needs,Nursing Care
Cambridgeshire County Council,26-Apr-18,51300036239,-1800,GRANTA HOUSING- 71 /73 FEN ROAD,CARE ESTABLISHMENT,LD - South Locality,LD - South Cambs - Special Needs,Nursing Care
Cambridgeshire County Council,26-Apr-18,51300058819,-1800,GRANTA HOUSING- 71 /73 FEN ROAD,CARE ESTABLISHMENT,LD - South Locality,LD - South Cambs - Special Needs,Nursing Care
Cambridgeshire County Council,26-Apr-18,51300058797,-1800,GRANTA HOUSING- 71 /73 FEN ROAD,CARE ESTABLISHMENT,LD - South Locality,LD - South Cambs - Special Needs,Nursing Care
Cambridgeshire County Council,26-Apr-18,51300036221,-1800,GRANTA HOUSING- 71 /73 FEN ROAD,CARE ESTABLISHMENT,LD - South Locality,LD - South Cambs - Special Needs,Nursing Care
Cambridgeshire County Council,26-Apr-18,51300058801,-1800,GRANTA HOUSING- 71 /73 FEN ROAD,CARE ESTABLISHMENT,LD - South Locality,LD - South Cambs - Special Needs,Nursing Care
Cambridgeshire County Council,26-Apr-18,51300036208,-1800,GRANTA HOUSING- 71 /73 FEN ROAD,CARE ESTABLISHMENT,LD - South Locality,LD - South Cambs - Special Needs,Nursing Care
Cambridgeshire County Council,26-Apr-18,51300058809,-1800,GRANTA HOUSING- 71 /73 FEN ROAD,CARE ESTABLISHMENT,LD - South Locality,LD - South Cambs - Special Needs,Nursing Care
Cambridgeshire County Council,26-Apr-18,51300036174,-1800,GRANTA HOUSING- 71 /73 FEN ROAD,CARE ESTABLISHMENT,LD - South Locality,LD - South Cambs - Special Needs,Nursing Care
Cambridgeshire County Council,26-Apr-18,51300071511,-1800,GRANTA HOUSING- 71 /73 FEN ROAD,CARE ESTABLISHMENT,LD - South Locality,LD - South Cambs - Special Needs,Nursing Care
Cambridgeshire County Council,26-Apr-18,51300071508,-1800,GRANTA HOUSING- 71 /73 FEN ROAD,CARE ESTABLISHMENT,LD - South Locality,LD - South Cambs - Special Needs,Nursing Care
Cambridgeshire County Council,26-Apr-18,51300036252,-1800,GRANTA HOUSING- 71 /73 FEN ROAD,CARE ESTABLISHMENT,LD - South Locality,LD - South Cambs - Special Needs,Nursing Care
Cambridgeshire County Council,26-Apr-18,51300036084,-1800,GRANTA HOUSING- 71 /73 FEN ROAD,CARE ESTABLISHMENT,LD - South Locality,LD - South Cambs - Special Needs,Nursing Care
Cambridgeshire County Council,26-Apr-18,51300058811,-1800,GRANTA HOUSING- 71 /73 FEN ROAD,CARE ESTABLISHMENT,LD - South Locality,LD - South Cambs - Special Needs,Nursing Care
Cambridgeshire County Council,26-Apr-18,51300036137,-1800,GRANTA HOUSING- 71 /73 FEN ROAD,CARE ESTABLISHMENT,LD - South Locality,LD - South Cambs - Special Needs,Nursing Care
Cambridgeshire County Council,26-Apr-18,51300071500,-1800,GRANTA HOUSING- 71 /73 FEN ROAD,CARE ESTABLISHMENT,LD - City Locality,LD - City - Special Needs,Nursing Care
Cambridgeshire County Council,26-Apr-18,51300058818,-1800,GRANTA HOUSING- 71 /73 FEN ROAD,CARE ESTABLISHMENT,LD - City Locality,LD - City - Special Needs,Nursing Care
Cambridgeshire County Council,26-Apr-18,51300071486,-1800,GRANTA HOUSING- 71 /73 FEN ROAD,CARE ESTABLISHMENT,LD - City Locality,LD - City - Special Needs,Nursing Care
Cambridgeshire County Council,26-Apr-18,51300058794,-1800,GRANTA HOUSING- 71 /73 FEN ROAD,CARE ESTABLISHMENT,LD - City Locality,LD - City - Special Needs,Nursing Care
Cambridgeshire County Council,26-Apr-18,51300071495,-1800,GRANTA HOUSING- 71 /73 FEN ROAD,CARE ESTABLISHMENT,LD - City Locality,LD - City - Special Needs,Nursing Care
Cambridgeshire County Council,26-Apr-18,51300036075,-1800,GRANTA HOUSING- 71 /73 FEN ROAD,CARE ESTABLISHMENT,LD - City Locality,LD - City - Special Needs,Nursing Care
Cambridgeshire County Council,26-Apr-18,51300036214,-1800,GRANTA HOUSING- 71 /73 FEN ROAD,CARE ESTABLISHMENT,LD - City Locality,LD - City - Special Needs,Nursing Care
Cambridgeshire County Council,26-Apr-18,51300071489,-1800,GRANTA HOUSING- 71 /73 FEN ROAD,CARE ESTABLISHMENT,LD - City Locality,LD - City - Special Needs,Nursing Care
Cambridgeshire County Council,26-Apr-18,51300071504,-1800,GRANTA HOUSING- 71 /73 FEN ROAD,CARE ESTABLISHMENT,LD - City Locality,LD - City - Special Needs,Nursing Care
Cambridgeshire County Council,26-Apr-18,51300058814,-1800,GRANTA HOUSING- 71 /73 FEN ROAD,CARE ESTABLISHMENT,LD - City Locality,LD - City - Special Needs,Nursing Care
Cambridgeshire County Council,26-Apr-18,51300036138,-1800,GRANTA HOUSING- 71 /73 FEN ROAD,CARE ESTABLISHMENT,LD - City Locality,LD - City - Special Needs,Nursing Care
Cambridgeshire County Council,26-Apr-18,51300036164,-1800,GRANTA HOUSING- 71 /73 FEN ROAD,CARE ESTABLISHMENT,LD - City Locality,LD - City - Special Needs,Nursing Care
Cambridgeshire County Council,26-Apr-18,51300071498,-1800,GRANTA HOUSING- 71 /73 FEN ROAD,CARE ESTABLISHMENT,LD - City Locality,LD - City - Special Needs,Nursing Care
Cambridgeshire County Council,26-Apr-18,51300071513,-1800,GRANTA HOUSING- 71 /73 FEN ROAD,CARE ESTABLISHMENT,LD - City Locality,LD - City - Special Needs,Nursing Care
Cambridgeshire County Council,26-Apr-18,51300036230,-1800,GRANTA HOUSING- 71 /73 FEN ROAD,CARE ESTABLISHMENT,LD - City Locality,LD - City - Special Needs,Nursing Care
Cambridgeshire County Council,26-Apr-18,51300058795,-1800,GRANTA HOUSING- 71 /73 FEN ROAD,CARE ESTABLISHMENT,LD - City Locality,LD - City - Special Needs,Nursing Care
Cambridgeshire County Council,26-Apr-18,51300036165,-1800,GRANTA HOUSING- 71 /73 FEN ROAD,CARE ESTABLISHMENT,LD - City Locality,LD - City - Special Needs,Nursing Care
Cambridgeshire County Council,26-Apr-18,51300071488,-1800,GRANTA HOUSING- 71 /73 FEN ROAD,CARE ESTABLISHMENT,LD - City Locality,LD - City - Special Needs,Nursing Care
Cambridgeshire County Council,26-Apr-18,51300058815,-1800,GRANTA HOUSING- 71 /73 FEN ROAD,CARE ESTABLISHMENT,LD - City Locality,LD - City - Special Needs,Nursing Care
